Body Name,Body,Service Label    ,Service Code,Service Division Label,Service Division Code,Organisational Unit,Expenditure Category,Expenditure Code,CIPFA Detailed Expenditure Type,CIPFA Detailed Expenditure Code,Date,Transaction Number,     Net Amount     ,Supplier Name,     Payment_Amount     
Broxtowe Borough Council,http://statistics.data.gov.uk/id/local-authority/37UD,Works,WORKS,Repairs & Maintenance,REPMAIN,Tech and Works / Works Adminstration Kimberley,Materials - Stores,3203,Equipment,Equip,05/04/2019,V708268,2783.2, Agrovista UK Ltd T/A Sherriff Amenity,3339.84
Broxtowe Borough Council,http://statistics.data.gov.uk/id/local-authority/37UD,Works,WORKS,Repairs & Maintenance,REPMAIN,Tech and Works / Works Adminstration Kimberley,Protective Clothing,3222,Other Supplies & Services,OtherSS,23/04/2019,V709210,368, Agrovista UK Ltd T/A Sherriff Amenity,441.6,,Expenditure Code,3700,Grants Awarded During COVID-19 Pandemic
Broxtowe Borough Council,http://statistics.data.gov.uk/id/local-authority/37UD,Works Directorate,DIRWORKS,Works Directorate,DIRWORKS,Tech and Works / Works Adminstration Kimberley,Sub Contractors [day to day repairs],3107,Other Supplies & Services,OtherSS,03/05/2019,V711455,914.67, Agrovista UK Ltd T/A Sherriff Amenity,1097.6,,,3701,Grants Awarded During COVID-19 Pandemic
Broxtowe Borough Council,http://statistics.data.gov.uk/id/local-authority/37UD,Works,WORKS,Repairs & Maintenance,REPMAIN,Strategic Director / Enviromental Business and Project,Materials  - Direct,3202,Equipment,Equip,02/08/2019,V720145,469.5, Agrovista UK Ltd T/A Sherriff Amenity,563.4,,,3702,Grants Awarded During COVID-19 Pandemic
Broxtowe Borough Council,http://statistics.data.gov.uk/id/local-authority/37UD,Works Directorate,DIRWORKS,Works Directorate,DIRWORKS,Strategic Director / Enviromental Business and Project,Materials  - Direct,3202,Equipment,Equip,16/08/2019,V722458,857.4, Agrovista UK Ltd T/A Sherriff Amenity,1078.44,,,3703,Grants Awarded During COVID-19 Pandemic
Broxtowe Borough Council,http://statistics.data.gov.uk/id/local-authority/37UD,Works,WORKS,Repairs & Maintenance,REPMAIN,Strategic Director / Enviromental Business and Project,Sub Contractors [day to day repairs],3107,Other Supplies & Services,OtherSS,16/08/2019,V722304,41.3, Agrovista UK Ltd T/A Sherriff Amenity,1078.44
Broxtowe Borough Council,http://statistics.data.gov.uk/id/local-authority/37UD,Works,WORKS,Repairs & Maintenance,REPMAIN,Strategic Director / Enviromental Services,Materials  - Direct,3202,Equipment,Equip,27/09/2019,V725897,879.2, Agrovista UK Ltd T/A Sherriff Amenity,1055.04
Broxtowe Borough Council,http://statistics.data.gov.uk/id/local-authority/37UD,Works,WORKS,Repairs & Maintenance,REPMAIN,Strategic Director / Enviromental Services,Materials  - Direct,3202,Equipment,Equip,04/10/2019,V727066,2048.4, Agrovista UK Ltd T/A Sherriff Amenity,2458.08
Broxtowe Borough Council,http://statistics.data.gov.uk/id/local-authority/37UD,Works,WORKS,Repairs & Maintenance,REPMAIN,Strategic Director / Enviromental Services,Materials - Stores,3203,Equipment,Equip,08/11/2019,V730773,730.3, Agrovista UK Ltd T/A Sherriff Amenity,876.36
Broxtowe Borough Council,http://statistics.data.gov.uk/id/local-authority/37UD,Inventories,2INV,Inventories,2INV,Strategic Director / Enviromental Services,Stores Purchased - December,9368,Assets,Assets,22/11/2019,V731224,210, Agrovista UK Ltd T/A Sherriff Amenity,252
Broxtowe Borough Council,http://statistics.data.gov.uk/id/local-authority/37UD,Works,WORKS,Repairs & Maintenance,REPMAIN,Strategic Director / Enviromental Services,Materials  - Direct,3202,Equipment,Equip,29/11/2019,V731993,900, Agrovista UK Ltd T/A Sherriff Amenity,1080
Broxtowe Borough Council,http://statistics.data.gov.uk/id/local-authority/37UD,General,GEN,General,GEN,Strategic Director / Enviromental Services,Stores Purchased - February,9370,Stores,Stores,21/02/2020,V740103,210, Agrovista UK Ltd T/A Sherriff Amenity,252
Broxtowe Borough Council,http://statistics.data.gov.uk/id/local-authority/37UD,Works Directorate,DIRWORKS,Works Directorate,DIRWORKS,Strategic Director / Enviromental Services,Materials  - Direct,3202,Equipment,Equip,13/03/2020,V742243,1266.6, Agrovista UK Ltd T/A Sherriff Amenity,3039.84
Broxtowe Borough Council,http://statistics.data.gov.uk/id/local-authority/37UD,Works,WORKS,Repairs & Maintenance,REPMAIN,Strategic Director / Enviromental Services,Materials  - Direct,3202,Equipment,Equip,13/03/2020,V742243,1266.6, Agrovista UK Ltd T/A Sherriff Amenity,3039.84
Broxtowe Borough Council,http://statistics.data.gov.uk/id/local-authority/37UD,Works Directorate,DIRWORKS,Works Directorate,DIRWORKS,Strategic Director / Enviromental Services,Materials  - Direct,3202,Equipment,Equip,09/04/2020,V744834,571.2, Agrovista UK Ltd T/A Sherriff Amenity,1370.88
Broxtowe Borough Council,http://statistics.data.gov.uk/id/local-authority/37UD,Works,WORKS,Repairs & Maintenance,REPMAIN,Strategic Director / Enviromental Services,Materials  - Direct,3202,Equipment,Equip,09/04/2020,V744834,571.2, Agrovista UK Ltd T/A Sherriff Amenity,1370.88
Broxtowe Borough Council,http://statistics.data.gov.uk/id/local-authority/37UD,Works Directorate,DIRWORKS,Works Directorate,DIRWORKS,Strategic Director / Enviromental Services,Materials  - Direct,3202,Equipment,Equip,15/05/2020,V749199,296, Agrovista UK Ltd T/A Sherriff Amenity,4293.75
Broxtowe Borough Council,http://statistics.data.gov.uk/id/local-authority/37UD,Works,WORKS,Repairs & Maintenance,REPMAIN,Strategic Director / Enviromental Services,Materials  - Direct,3202,Equipment,Equip,15/05/2020,V744110,2801.68, Agrovista UK Ltd T/A Sherriff Amenity,4293.75
Broxtowe Borough Council,http://statistics.data.gov.uk/id/local-authority/37UD,Works,WORKS,Repairs & Maintenance,REPMAIN,Strategic Director / Enviromental Services,Materials  - Direct,3202,Equipment,Equip,15/05/2020,V744110,480.44, Agrovista UK Ltd T/A Sherriff Amenity,4293.75
Broxtowe Borough Council,http://statistics.data.gov.uk/id/local-authority/37UD,Works,WORKS,Repairs & Maintenance,REPMAIN,Strategic Director / Enviromental Services,Materials  - Direct,3202,Equipment,Equip,29/05/2020,V749964,570, Agrovista UK Ltd T/A Sherriff Amenity,684
Broxtowe Borough Council,http://statistics.data.gov.uk/id/local-authority/37UD,Works,WORKS,Repairs & Maintenance,REPMAIN,Strategic Director / Enviromental Services,Materials  - Direct,3202,Equipment,Equip,03/07/2020,V753330,711.56, Agrovista UK Ltd T/A Sherriff Amenity,853.87
Broxtowe Borough Council,http://statistics.data.gov.uk/id/local-authority/37UD,Works,WORKS,Repairs & Maintenance,REPMAIN,Strategic Director / Enviromental Services,Materials  - Direct,3202,Equipment,Equip,14/07/2020,V754518,287.4, Agrovista UK Ltd T/A Sherriff Amenity,344.88
Broxtowe Borough Council,http://statistics.data.gov.uk/id/local-authority/37UD,Works,WORKS,Repairs & Maintenance,REPMAIN,Strategic Director / Enviromental Services,Materials  - Direct,3202,Equipment,Equip,31/07/2020,V755037,582.8, Agrovista UK Ltd T/A Sherriff Amenity,699.36
Broxtowe Borough Council,http://statistics.data.gov.uk/id/local-authority/37UD,Works,WORKS,Repairs & Maintenance,REPMAIN,Strategic Director / Enviromental Services,Materials  - Direct,3202,Equipment,Equip,30/10/2020,V762802,894, Agrovista UK Ltd T/A Sherriff Amenity,1072.8
Broxtowe Borough Council,http://statistics.data.gov.uk/id/local-authority/37UD,Works Directorate,DIRWORKS,Works Directorate,DIRWORKS,Strategic Director / Enviromental Services,Sub Contractors [day to day repairs],3107,Other Supplies & Services,OtherSS,20/11/2020,V764887,869.9, Agrovista UK Ltd T/A Sherriff Amenity,1043.88
Broxtowe Borough Council,http://statistics.data.gov.uk/id/local-authority/37UD,Inventories,2INV,Inventories,2INV,Strategic Director / Enviromental Services,Stores Purchased - February,9370,Assets,Assets,12/02/2021,V778088,223.95, Agrovista UK Ltd T/A Sherriff Amenity,268.74
Broxtowe Borough Council,http://statistics.data.gov.uk/id/local-authority/37UD,Works,WORKS,Repairs & Maintenance,REPMAIN,Strategic Director / Enviromental Services,Materials  - Direct,3202,Equipment,Equip,26/03/2021,V782830,1384, Agrovista UK Ltd T/A Sherriff Amenity,1660.8
Broxtowe Borough Council,http://statistics.data.gov.uk/id/local-authority/37UD,Bramcote Crematorium,BCREM,Bramcote Crematorium,BCREM,Deputy Chief Executive / Bramcote Crematorium,Service Contracts,3056,Other Supplies & Services,OtherSS,11/10/2019,V727452,800, Gem Vending Limited ,960
Broxtowe Borough Council,http://statistics.data.gov.uk/id/local-authority/37UD,Finance,FINANCE,Finance Services,FINANCE,Deputy Chief Executive / Finance Services,Grants,3700,Other Supplies & Services,OtherSS,04/12/2020,V768174,1334, The Lighthouse Charity Shop,1334
Broxtowe Borough Council,http://statistics.data.gov.uk/id/local-authority/37UD,Finance,FINANCE,Regulatory Services,REG,Deputy Chief Executive / Finance Services,Grants,3700,Other Supplies & Services,OtherSS,22/01/2021,V773522,238.21, The Lighthouse Charity Shop,6239.21
Broxtowe Borough Council,http://statistics.data.gov.uk/id/local-authority/37UD,Finance,FINANCE,Regulatory Services,REG,Deputy Chief Executive / Finance Services,Grants,3700,Other Supplies & Services,OtherSS,22/01/2021,V774045,"2,001.00", The Lighthouse Charity Shop,6239.21
Broxtowe Borough Council,http://statistics.data.gov.uk/id/local-authority/37UD,Finance,FINANCE,Regulatory Services,REG,Deputy Chief Executive / Finance Services,Covid Closed lockdown payment,3704,Other Supplies & Services,OtherSS,22/01/2021,V774567,"4,000.00", The Lighthouse Charity Shop,6239.21
Broxtowe Borough Council,http://statistics.data.gov.uk/id/local-authority/37UD,Finance,FINANCE,Regulatory Services,REG,Deputy Chief Executive / Finance Services,Grants,3700,Other Supplies & Services,OtherSS,03/03/2021,V780908,2096, The Lighthouse Charity Shop,2096
Broxtowe Borough Council,http://statistics.data.gov.uk/id/local-authority/37UD,Finance,FINANCE,Finance Services,FINANCE,Deputy Chief Executive / Finance Services,Grants,3700,Other Supplies & Services,OtherSS,20/11/2020,V765632,"1,500.00",@itude Print & Designs,1500
Broxtowe Borough Council,http://statistics.data.gov.uk/id/local-authority/37UD,Finance,FINANCE,Finance Services,FINANCE,Deputy Chief Executive / Finance Services,Grants,3700,Other Supplies & Services,OtherSS,20/11/2020,V765455,"1,334.00",@itude Print & Designs,1334
Broxtowe Borough Council,http://statistics.data.gov.uk/id/local-authority/37UD,Finance,FINANCE,Finance Services,FINANCE,Deputy Chief Executive / Finance Services,Grants,3700,Other Supplies & Services,OtherSS,20/11/2020,V765380,285.86,@itude Print & Designs,285.86
Broxtowe Borough Council,http://statistics.data.gov.uk/id/local-authority/37UD,Finance,FINANCE,Finance Services,FINANCE,Deputy Chief Executive / Finance Services,Grants,3700,Other Supplies & Services,OtherSS,14/12/2020,V768935,750,@itude Print & Designs,750
Broxtowe Borough Council,http://statistics.data.gov.uk/id/local-authority/37UD,Finance,FINANCE,Regulatory Services,REG,Deputy Chief Executive / Finance Services,Grants,3700,Other Supplies & Services,OtherSS,22/01/2021,V773170,238.21,@itude Print & Designs,7539.21
Broxtowe Borough Council,http://statistics.data.gov.uk/id/local-authority/37UD,Finance,FINANCE,Regulatory Services,REG,Deputy Chief Executive / Finance Services,Grants,3700,Other Supplies & Services,OtherSS,22/01/2021,V773693,"2,001.00",@itude Print & Designs,7539.21
Broxtowe Borough Council,http://statistics.data.gov.uk/id/local-authority/37UD,Finance,FINANCE,Regulatory Services,REG,Deputy Chief Executive / Finance Services,Covid Closed lockdown payment,3704,Other Supplies & Services,OtherSS,22/01/2021,V774215,"4,000.00",@itude Print & Designs,7539.21
Broxtowe Borough Council,http://statistics.data.gov.uk/id/local-authority/37UD,Finance,FINANCE,Regulatory Services,REG,Deputy Chief Executive / Finance Services,Grants,3700,Other Supplies & Services,OtherSS,22/01/2021,V774737,"1,300.00",@itude Print & Designs,7539.21
Broxtowe Borough Council,http://statistics.data.gov.uk/id/local-authority/37UD,Finance,FINANCE,Regulatory Services,REG,Deputy Chief Executive / Finance Services,Grants,3700,Other Supplies & Services,OtherSS,03/03/2021,V780556,2096,@itude Print & Designs,2096
Broxtowe Borough Council,http://statistics.data.gov.uk/id/local-authority/37UD,Finance,FINANCE,Admin Services,ADMIN,Chief Executive  / Legal Services,Hire of Facilities,3223,Other Supplies & Services,OtherSS,10/07/2019,V718716,500,1st C & A Scout Group,1000
Broxtowe Borough Council,http://statistics.data.gov.uk/id/local-authority/37UD,Finance,FINANCE,Admin Services,ADMIN,Chief Executive  / Legal Services,Hire of Facilities,3223,Other Supplies & Services,OtherSS,10/07/2019,V718717,500,1st C & A Scout Group,1000
Broxtowe Borough Council,http://statistics.data.gov.uk/id/local-authority/37UD,Finance,FINANCE,Admin Services,ADMIN,Strategic Director / Administrative Services,Hire of Facilities,3223,Other Supplies & Services,OtherSS,05/02/2020,V739232,500,1st C & A Scout Group,500
Broxtowe Borough Council,http://statistics.data.gov.uk/id/local-authority/37UD,Finance,FINANCE,Finance Services,FINANCE,Deputy Chief Executive / Finance Services,Grants,3700,Other Supplies & Services,OtherSS,20/11/2020,V765764,"1,500.00",1st Chilwell and Attenborough Scout Group,1500
Broxtowe Borough Council,http://statistics.data.gov.uk/id/local-authority/37UD,Finance,FINANCE,Finance Services,FINANCE,Deputy Chief Executive / Finance Services,Grants,3700,Other Supplies & Services,OtherSS,20/11/2020,V765579,"1,334.00",1st Chilwell and Attenborough Scout Group,1334
Broxtowe Borough Council,http://statistics.data.gov.uk/id/local-authority/37UD,Finance,FINANCE,Finance Services,FINANCE,Deputy Chief Executive / Finance Services,Grants,3700,Other Supplies & Services,OtherSS,20/11/2020,V765311,533.71,1st Chilwell and Attenborough Scout Group,533.71
Broxtowe Borough Council,http://statistics.data.gov.uk/id/local-authority/37UD,Finance,FINANCE,Finance Services,FINANCE,Deputy Chief Executive / Finance Services,Grants,3700,Other Supplies & Services,OtherSS,14/12/2020,V769036,750,1st Chilwell and Attenborough Scout Group,750
Broxtowe Borough Council,http://statistics.data.gov.uk/id/local-authority/37UD,Finance,FINANCE,Finance Services,FINANCE,Deputy Chief Executive / Finance Services,Assistance to Local Businesses,3702,Other Supplies & Services,OtherSS,21/12/2020,V770159,467,1st Chilwell and Attenborough Scout Group,934
Broxtowe Borough Council,http://statistics.data.gov.uk/id/local-authority/37UD,Finance,FINANCE,Finance Services,FINANCE,Deputy Chief Executive / Finance Services,Assistance to Local Businesses,3702,Other Supplies & Services,OtherSS,21/12/2020,V769964,467,1st Chilwell and Attenborough Scout Group,934
Broxtowe Borough Council,http://statistics.data.gov.uk/id/local-authority/37UD,Finance,FINANCE,Regulatory Services,REG,Deputy Chief Executive / Finance Services,Grants,3700,Other Supplies & Services,OtherSS,22/01/2021,V773292,238.21,1st Chilwell and Attenborough Scout Group,7539.21
Broxtowe Borough Council,http://statistics.data.gov.uk/id/local-authority/37UD,Finance,FINANCE,Regulatory Services,REG,Deputy Chief Executive / Finance Services,Grants,3700,Other Supplies & Services,OtherSS,22/01/2021,V773815,"2,001.00",1st Chilwell and Attenborough Scout Group,7539.21
Broxtowe Borough Council,http://statistics.data.gov.uk/id/local-authority/37UD,Finance,FINANCE,Regulatory Services,REG,Deputy Chief Executive / Finance Services,Covid Closed lockdown payment,3704,Other Supplies & Services,OtherSS,22/01/2021,V774337,"4,000.00",1st Chilwell and Attenborough Scout Group,7539.21
Broxtowe Borough Council,http://statistics.data.gov.uk/id/local-authority/37UD,Finance,FINANCE,Regulatory Services,REG,Deputy Chief Executive / Finance Services,Grants,3700,Other Supplies & Services,OtherSS,22/01/2021,V774867,"1,300.00",1st Chilwell and Attenborough Scout Group,7539.21
Broxtowe Borough Council,http://statistics.data.gov.uk/id/local-authority/37UD,Finance,FINANCE,Regulatory Services,REG,Deputy Chief Executive / Finance Services,Grants,3700,Other Supplies & Services,OtherSS,03/03/2021,V780678,2096,1st Chilwell and Attenborough Scout Group,2096
Broxtowe Borough Council,http://statistics.data.gov.uk/id/local-authority/37UD,Finance,FINANCE,Finance Services,FINANCE,Deputy Chief Executive / Finance Services,Grants,3700,Other Supplies & Services,OtherSS,11/12/2020,V768811,1000,1st Class Recruitment Ltd,1000
Broxtowe Borough Council,http://statistics.data.gov.uk/id/local-authority/37UD,Finance,FINANCE,Finance Services,FINANCE,Deputy Chief Executive / Finance Services,Grants,3700,Other Supplies & Services,OtherSS,14/12/2020,V769449,1000,1st Class Recruitment Ltd,1000
Broxtowe Borough Council,http://statistics.data.gov.uk/id/local-authority/37UD,Finance,FINANCE,Regulatory Services,REG,Deputy Chief Executive / Finance Services,Grants,3700,Other Supplies & Services,OtherSS,22/01/2021,V775267,"2,000.00",1st Class Recruitment Ltd,2000
Broxtowe Borough Council,http://statistics.data.gov.uk/id/local-authority/37UD,Finance,FINANCE,Finance Services,FINANCE,Deputy Chief Executive / Finance Services,Grants,3700,Other Supplies & Services,OtherSS,04/12/2020,V768138,533.71,1st Nuthall Scout Group,3567.85
Broxtowe Borough Council,http://statistics.data.gov.uk/id/local-authority/37UD,Finance,FINANCE,Finance Services,FINANCE,Deputy Chief Executive / Finance Services,Grants,3700,Other Supplies & Services,OtherSS,04/12/2020,V768157,200.14,1st Nuthall Scout Group,3567.85
Broxtowe Borough Council,http://statistics.data.gov.uk/id/local-authority/37UD,Finance,FINANCE,Finance Services,FINANCE,Deputy Chief Executive / Finance Services,Grants,3700,Other Supplies & Services,OtherSS,04/12/2020,V768180,1334,1st Nuthall Scout Group,3567.85
Broxtowe Borough Council,http://statistics.data.gov.uk/id/local-authority/37UD,Finance,FINANCE,Finance Services,FINANCE,Deputy Chief Executive / Finance Services,Grants,3700,Other Supplies & Services,OtherSS,04/12/2020,V768238,1500,1st Nuthall Scout Group,3567.85
Broxtowe Borough Council,http://statistics.data.gov.uk/id/local-authority/37UD,Finance,FINANCE,Finance Services,FINANCE,Deputy Chief Executive / Finance Services,Grants,3700,Other Supplies & Services,OtherSS,14/12/2020,V769270,750,1st Nuthall Scout Group,750
Broxtowe Borough Council,http://statistics.data.gov.uk/id/local-authority/37UD,Finance,FINANCE,Finance Services,FINANCE,Deputy Chief Executive / Finance Services,Assistance to Local Businesses,3702,Other Supplies & Services,OtherSS,21/12/2020,V770164,467,1st Nuthall Scout Group,934
Broxtowe Borough Council,http://statistics.data.gov.uk/id/local-authority/37UD,Finance,FINANCE,Finance Services,FINANCE,Deputy Chief Executive / Finance Services,Assistance to Local Businesses,3702,Other Supplies & Services,OtherSS,21/12/2020,V769969,467,1st Nuthall Scout Group,934
Broxtowe Borough Council,http://statistics.data.gov.uk/id/local-authority/37UD,Finance,FINANCE,Regulatory Services,REG,Deputy Chief Executive / Finance Services,Grants,3700,Other Supplies & Services,OtherSS,22/01/2021,V773528,238.21,1st Nuthall Scout Group,7539.21
Broxtowe Borough Council,http://statistics.data.gov.uk/id/local-authority/37UD,Finance,FINANCE,Regulatory Services,REG,Deputy Chief Executive / Finance Services,Grants,3700,Other Supplies & Services,OtherSS,22/01/2021,V774051,"2,001.00",1st Nuthall Scout Group,7539.21
Broxtowe Borough Council,http://statistics.data.gov.uk/id/local-authority/37UD,Finance,FINANCE,Regulatory Services,REG,Deputy Chief Executive / Finance Services,Covid Closed lockdown payment,3704,Other Supplies & Services,OtherSS,22/01/2021,V774573,"4,000.00",1st Nuthall Scout Group,7539.21
Broxtowe Borough Council,http://statistics.data.gov.uk/id/local-authority/37UD,Finance,FINANCE,Regulatory Services,REG,Deputy Chief Executive / Finance Services,Grants,3700,Other Supplies & Services,OtherSS,22/01/2021,V775153,"1,300.00",1st Nuthall Scout Group,7539.21
Broxtowe Borough Council,http://statistics.data.gov.uk/id/local-authority/37UD,Finance,FINANCE,Regulatory Services,REG,Deputy Chief Executive / Finance Services,Grants,3700,Other Supplies & Services,OtherSS,03/03/2021,V780914,2096,1st Nuthall Scout Group,2096
Broxtowe Borough Council,http://statistics.data.gov.uk/id/local-authority/37UD,Finance,FINANCE,Finance Services,FINANCE,Deputy Chief Executive / Finance Services,Grants,3700,Other Supplies & Services,OtherSS,04/12/2020,V768141,533.71,1st Stapleford and Trowell Scout Group,3567.85
Broxtowe Borough Council,http://statistics.data.gov.uk/id/local-authority/37UD,Finance,FINANCE,Finance Services,FINANCE,Deputy Chief Executive / Finance Services,Grants,3700,Other Supplies & Services,OtherSS,04/12/2020,V768160,200.14,1st Stapleford and Trowell Scout Group,3567.85
Broxtowe Borough Council,http://statistics.data.gov.uk/id/local-authority/37UD,Finance,FINANCE,Finance Services,FINANCE,Deputy Chief Executive / Finance Services,Grants,3700,Other Supplies & Services,OtherSS,04/12/2020,V768189,1334,1st Stapleford and Trowell Scout Group,3567.85
Broxtowe Borough Council,http://statistics.data.gov.uk/id/local-authority/37UD,Finance,FINANCE,Finance Services,FINANCE,Deputy Chief Executive / Finance Services,Grants,3700,Other Supplies & Services,OtherSS,04/12/2020,V768261,1500,1st Stapleford and Trowell Scout Group,3567.85
Broxtowe Borough Council,http://statistics.data.gov.uk/id/local-authority/37UD,Finance,FINANCE,Finance Services,FINANCE,Deputy Chief Executive / Finance Services,Grants,3700,Other Supplies & Services,OtherSS,14/12/2020,V769276,750,1st Stapleford and Trowell Scout Group,750
Broxtowe Borough Council,http://statistics.data.gov.uk/id/local-authority/37UD,Finance,FINANCE,Finance Services,FINANCE,Deputy Chief Executive / Finance Services,Assistance to Local Businesses,3702,Other Supplies & Services,OtherSS,21/12/2020,V770169,467,1st Stapleford and Trowell Scout Group,934
Broxtowe Borough Council,http://statistics.data.gov.uk/id/local-authority/37UD,Finance,FINANCE,Finance Services,FINANCE,Deputy Chief Executive / Finance Services,Assistance to Local Businesses,3702,Other Supplies & Services,OtherSS,21/12/2020,V769974,467,1st Stapleford and Trowell Scout Group,934
Broxtowe Borough Council,http://statistics.data.gov.uk/id/local-authority/37UD,Finance,FINANCE,Regulatory Services,REG,Deputy Chief Executive / Finance Services,Grants,3700,Other Supplies & Services,OtherSS,22/01/2021,V773537,238.21,1st Stapleford and Trowell Scout Group,7539.21
Broxtowe Borough Council,http://statistics.data.gov.uk/id/local-authority/37UD,Finance,FINANCE,Regulatory Services,REG,Deputy Chief Executive / Finance Services,Grants,3700,Other Supplies & Services,OtherSS,22/01/2021,V774060,"2,001.00",1st Stapleford and Trowell Scout Group,7539.21
Broxtowe Borough Council,http://statistics.data.gov.uk/id/local-authority/37UD,Finance,FINANCE,Regulatory Services,REG,Deputy Chief Executive / Finance Services,Covid Closed lockdown payment,3704,Other Supplies & Services,OtherSS,22/01/2021,V774582,"4,000.00",1st Stapleford and Trowell Scout Group,7539.21
Broxtowe Borough Council,http://statistics.data.gov.uk/id/local-authority/37UD,Finance,FINANCE,Regulatory Services,REG,Deputy Chief Executive / Finance Services,Grants,3700,Other Supplies & Services,OtherSS,22/01/2021,V775176,"1,300.00",1st Stapleford and Trowell Scout Group,7539.21
Broxtowe Borough Council,http://statistics.data.gov.uk/id/local-authority/37UD,Finance,FINANCE,Regulatory Services,REG,Deputy Chief Executive / Finance Services,Grants,3700,Other Supplies & Services,OtherSS,03/03/2021,V780922,2096,1st Stapleford and Trowell Scout Group,2096
Broxtowe Borough Council,http://statistics.data.gov.uk/id/local-authority/37UD,Finance,FINANCE,Finance Services,FINANCE,Deputy Chief Executive / Finance Services,Grants,3700,Other Supplies & Services,OtherSS,24/11/2020,V765985,285.86,2 Perfections,3119.86
Broxtowe Borough Council,http://statistics.data.gov.uk/id/local-authority/37UD,Finance,FINANCE,Finance Services,FINANCE,Deputy Chief Executive / Finance Services,Grants,3700,Other Supplies & Services,OtherSS,24/11/2020,V765934,"1,334.00",2 Perfections,3119.86
Broxtowe Borough Council,http://statistics.data.gov.uk/id/local-authority/37UD,Finance,FINANCE,Finance Services,FINANCE,Deputy Chief Executive / Finance Services,Grants,3700,Other Supplies & Services,OtherSS,24/11/2020,V766028,"1,500.00",2 Perfections,3119.86
Broxtowe Borough Council,http://statistics.data.gov.uk/id/local-authority/37UD,Finance,FINANCE,Finance Services,FINANCE,Deputy Chief Executive / Finance Services,Grants,3700,Other Supplies & Services,OtherSS,14/12/2020,V768911,750,2 Perfections,750
Broxtowe Borough Council,http://statistics.data.gov.uk/id/local-authority/37UD,Finance,FINANCE,Regulatory Services,REG,Deputy Chief Executive / Finance Services,Grants,3700,Other Supplies & Services,OtherSS,22/01/2021,V773359,238.21,2 Perfections,7539.21
Broxtowe Borough Council,http://statistics.data.gov.uk/id/local-authority/37UD,Finance,FINANCE,Regulatory Services,REG,Deputy Chief Executive / Finance Services,Grants,3700,Other Supplies & Services,OtherSS,22/01/2021,V773882,"2,001.00",2 Perfections,7539.21
Broxtowe Borough Council,http://statistics.data.gov.uk/id/local-authority/37UD,Finance,FINANCE,Regulatory Services,REG,Deputy Chief Executive / Finance Services,Covid Closed lockdown payment,3704,Other Supplies & Services,OtherSS,22/01/2021,V774404,"4,000.00",2 Perfections,7539.21
Broxtowe Borough Council,http://statistics.data.gov.uk/id/local-authority/37UD,Finance,FINANCE,Regulatory Services,REG,Deputy Chief Executive / Finance Services,Grants,3700,Other Supplies & Services,OtherSS,22/01/2021,V774938,"1,300.00",2 Perfections,7539.21
Broxtowe Borough Council,http://statistics.data.gov.uk/id/local-authority/37UD,Finance,FINANCE,Regulatory Services,REG,Deputy Chief Executive / Finance Services,Grants,3700,Other Supplies & Services,OtherSS,03/03/2021,V780743,2096,2 Perfections,2096
Broxtowe Borough Council,http://statistics.data.gov.uk/id/local-authority/37UD,Finance,FINANCE,Finance Services,FINANCE,Deputy Chief Executive / Finance Services,Grants,3700,Other Supplies & Services,OtherSS,27/11/2020,V766364,800,2Bar Limited,6100
Broxtowe Borough Council,http://statistics.data.gov.uk/id/local-authority/37UD,Finance,FINANCE,Finance Services,FINANCE,Deputy Chief Executive / Finance Services,Grants,3700,Other Supplies & Services,OtherSS,27/11/2020,V766378,300,2Bar Limited,6100
Broxtowe Borough Council,http://statistics.data.gov.uk/id/local-authority/37UD,Finance,FINANCE,Finance Services,FINANCE,Deputy Chief Executive / Finance Services,Grants,3700,Other Supplies & Services,OtherSS,27/11/2020,V766424,"2,000.00",2Bar Limited,6100
Broxtowe Borough Council,http://statistics.data.gov.uk/id/local-authority/37UD,Finance,FINANCE,Finance Services,FINANCE,Deputy Chief Executive / Finance Services,Grants,3700,Other Supplies & Services,OtherSS,27/11/2020,V766499,"3,000.00",2Bar Limited,6100
Broxtowe Borough Council,http://statistics.data.gov.uk/id/local-authority/37UD,Finance,FINANCE,Finance Services,FINANCE,Deputy Chief Executive / Finance Services,Grants,3700,Other Supplies & Services,OtherSS,21/12/2020,V770150,1000,2Bar Limited,3000
Broxtowe Borough Council,http://statistics.data.gov.uk/id/local-authority/37UD,Finance,FINANCE,Finance Services,FINANCE,Deputy Chief Executive / Finance Services,Covid Grants Closed,3703,Obsolete Supplies,ObsSupp,21/12/2020,V770278,1000,2Bar Limited,3000
Broxtowe Borough Council,http://statistics.data.gov.uk/id/local-authority/37UD,Finance,FINANCE,Finance Services,FINANCE,Deputy Chief Executive / Finance Services,Covid Grants Closed,3703,Obsolete Supplies,ObsSupp,21/12/2020,V770083,1000,2Bar Limited,3000
Broxtowe Borough Council,http://statistics.data.gov.uk/id/local-authority/37UD,Finance,FINANCE,Finance Services,FINANCE,Deputy Chief Executive / Finance Services,Grants,3700,Other Supplies & Services,OtherSS,21/12/2020,V770310,1500,2Bar Limited,1500
Broxtowe Borough Council,http://statistics.data.gov.uk/id/local-authority/37UD,Finance,FINANCE,Regulatory Services,REG,Deputy Chief Executive / Finance Services,Grants,3700,Other Supplies & Services,OtherSS,22/01/2021,V773448,357.14,2Bar Limited,11057.14
Broxtowe Borough Council,http://statistics.data.gov.uk/id/local-authority/37UD,Finance,FINANCE,Regulatory Services,REG,Deputy Chief Executive / Finance Services,Grants,3700,Other Supplies & Services,OtherSS,22/01/2021,V773971,"3,000.00",2Bar Limited,11057.14
Broxtowe Borough Council,http://statistics.data.gov.uk/id/local-authority/37UD,Finance,FINANCE,Regulatory Services,REG,Deputy Chief Executive / Finance Services,Covid Closed lockdown payment,3704,Other Supplies & Services,OtherSS,22/01/2021,V774493,"6,000.00",2Bar Limited,11057.14
Broxtowe Borough Council,http://statistics.data.gov.uk/id/local-authority/37UD,Finance,FINANCE,Regulatory Services,REG,Deputy Chief Executive / Finance Services,Grants,3700,Other Supplies & Services,OtherSS,22/01/2021,V775044,"1,700.00",2Bar Limited,11057.14
Broxtowe Borough Council,http://statistics.data.gov.uk/id/local-authority/37UD,Finance,FINANCE,Regulatory Services,REG,Deputy Chief Executive / Finance Services,Grants,3700,Other Supplies & Services,OtherSS,03/03/2021,V780832,3143,2Bar Limited,3143
Broxtowe Borough Council,http://statistics.data.gov.uk/id/local-authority/37UD,Works,WORKS,Other Works,WKSOTHER,Tech and Works / Works Administration Beeston,Health and Safety,3024,Equipment,Equip,26/04/2019,V709343,480,2M Asbestos Consultancy,576
Broxtowe Borough Council,http://statistics.data.gov.uk/id/local-authority/37UD,Housing,HOUSING,Repairs,REPS,Strategic Director / Enviromental Business and Project,Sub Contractors [day to day repairs],3107,Other Supplies & Services,OtherSS,16/08/2019,V721917,925,2M Asbestos Consultancy,1110
Broxtowe Borough Council,http://statistics.data.gov.uk/id/local-authority/37UD,Housing,HOUSING,Repairs,REPS,Deputy Chief Executive / Property Services,Sub Contractors [day to day repairs],3107,Other Supplies & Services,OtherSS,04/10/2019,V725805,3650,2M Asbestos Consultancy,4380
Broxtowe Borough Council,http://statistics.data.gov.uk/id/local-authority/37UD,Works,WORKS,Other Works,WKSOTHER,Deputy Chief Executive / Health and Safety,Health and Safety,3024,Equipment,Equip,01/11/2019,V728877,650,2M Asbestos Consultancy,2000
Broxtowe Borough Council,http://statistics.data.gov.uk/id/local-authority/37UD,Works,WORKS,Other Works,WKSOTHER,Deputy Chief Executive / Health and Safety,Health and Safety,3024,Equipment,Equip,01/11/2019,V728878,450,2M Asbestos Consultancy,2000
Broxtowe Borough Council,http://statistics.data.gov.uk/id/local-authority/37UD,Works,WORKS,Other Works,WKSOTHER,Deputy Chief Executive / Health and Safety,Health and Safety,3024,Equipment,Equip,01/11/2019,V728881,450,2M Asbestos Consultancy,2000
Broxtowe Borough Council,http://statistics.data.gov.uk/id/local-authority/37UD,Works,WORKS,Other Works,WKSOTHER,Deputy Chief Executive / Health and Safety,Health and Safety,3024,Equipment,Equip,01/11/2019,V728938,450,2M Asbestos Consultancy,2000
Broxtowe Borough Council,http://statistics.data.gov.uk/id/local-authority/37UD,Works,WORKS,Other Works,WKSOTHER,Deputy Chief Executive / Health and Safety,Health and Safety,3024,Equipment,Equip,08/11/2019,V730750,450,2M Asbestos Consultancy,900
Broxtowe Borough Council,http://statistics.data.gov.uk/id/local-authority/37UD,Works,WORKS,Other Works,WKSOTHER,Deputy Chief Executive / Health and Safety,Health and Safety,3024,Equipment,Equip,08/11/2019,V730587,450,2M Asbestos Consultancy,900
Broxtowe Borough Council,http://statistics.data.gov.uk/id/local-authority/37UD,Works,WORKS,Other Works,WKSOTHER,Chief Executive  / Health and Safety,Health and Safety,3024,Equipment,Equip,17/01/2020,V736269,350,2M Asbestos Consultancy,650
Broxtowe Borough Council,http://statistics.data.gov.uk/id/local-authority/37UD,Works,WORKS,Other Works,WKSOTHER,Chief Executive  / Health and Safety,Health and Safety,3024,Equipment,Equip,17/01/2020,V736273,300,2M Asbestos Consultancy,650
Broxtowe Borough Council,http://statistics.data.gov.uk/id/local-authority/37UD,Leisure,LEIS,Leisure,LEIS,Chief Executive  / CE Miscellaneous,New construction,9002,Capital Expenditure,CapExp,06/03/2020,V741890,480,2M Asbestos Consultancy,576
Broxtowe Borough Council,http://statistics.data.gov.uk/id/local-authority/37UD,Leisure,LEIS,Leisure,LEIS,Deputy Chief Executive / Liberty Leisure,Other Capital Expenditure,9007,Capital Expenditure,CapExp,07/08/2020,V756257,"1,520.00",2M Asbestos Consultancy,1824
Broxtowe Borough Council,http://statistics.data.gov.uk/id/local-authority/37UD,Works,WORKS,Repairs & Maintenance,REPMAIN,Strategic Director / Enviromental Services,Premises Costs,1017,Other Maintenance,Maint,23/10/2020,V762563,350,2M Asbestos Consultancy,420
Broxtowe Borough Council,http://statistics.data.gov.uk/id/local-authority/37UD,Works,WORKS,Waste Management,WASTMAN,Tech and Works / Works Adminstration Kimberley,B&B Invoices,3818,Other Supplies & Services,OtherSS,10/04/2019,V708758,274.07,2nd Beeston Sea Scouts,274.07
Broxtowe Borough Council,http://statistics.data.gov.uk/id/local-authority/37UD,Finance,FINANCE,Finance Services,FINANCE,Deputy Chief Executive / Finance Services,Grants,3700,Other Supplies & Services,OtherSS,04/12/2020,V768145,533.71,2nd Beeston Sea Scouts,3567.85
Broxtowe Borough Council,http://statistics.data.gov.uk/id/local-authority/37UD,Finance,FINANCE,Finance Services,FINANCE,Deputy Chief Executive / Finance Services,Grants,3700,Other Supplies & Services,OtherSS,04/12/2020,V768163,200.14,2nd Beeston Sea Scouts,3567.85
Broxtowe Borough Council,http://statistics.data.gov.uk/id/local-authority/37UD,Finance,FINANCE,Finance Services,FINANCE,Deputy Chief Executive / Finance Services,Grants,3700,Other Supplies & Services,OtherSS,04/12/2020,V768197,1334,2nd Beeston Sea Scouts,3567.85
Broxtowe Borough Council,http://statistics.data.gov.uk/id/local-authority/37UD,Finance,FINANCE,Finance Services,FINANCE,Deputy Chief Executive / Finance Services,Grants,3700,Other Supplies & Services,OtherSS,04/12/2020,V768269,1500,2nd Beeston Sea Scouts,3567.85
Broxtowe Borough Council,http://statistics.data.gov.uk/id/local-authority/37UD,Finance,FINANCE,Finance Services,FINANCE,Deputy Chief Executive / Finance Services,Grants,3700,Other Supplies & Services,OtherSS,14/12/2020,V769283,750,2nd Beeston Sea Scouts,750
Broxtowe Borough Council,http://statistics.data.gov.uk/id/local-authority/37UD,Finance,FINANCE,Finance Services,FINANCE,Deputy Chief Executive / Finance Services,Covid Grants Closed,3703,Obsolete Supplies,ObsSupp,21/12/2020,V770252,667,2nd Beeston Sea Scouts,1334
Broxtowe Borough Council,http://statistics.data.gov.uk/id/local-authority/37UD,Finance,FINANCE,Finance Services,FINANCE,Deputy Chief Executive / Finance Services,Covid Grants Closed,3703,Obsolete Supplies,ObsSupp,21/12/2020,V770057,667,2nd Beeston Sea Scouts,1334
Broxtowe Borough Council,http://statistics.data.gov.uk/id/local-authority/37UD,Finance,FINANCE,Regulatory Services,REG,Deputy Chief Executive / Finance Services,Grants,3700,Other Supplies & Services,OtherSS,22/01/2021,V773545,238.21,2nd Beeston Sea Scouts,7539.21
Broxtowe Borough Council,http://statistics.data.gov.uk/id/local-authority/37UD,Finance,FINANCE,Regulatory Services,REG,Deputy Chief Executive / Finance Services,Grants,3700,Other Supplies & Services,OtherSS,22/01/2021,V774068,"2,001.00",2nd Beeston Sea Scouts,7539.21
Broxtowe Borough Council,http://statistics.data.gov.uk/id/local-authority/37UD,Finance,FINANCE,Regulatory Services,REG,Deputy Chief Executive / Finance Services,Covid Closed lockdown payment,3704,Other Supplies & Services,OtherSS,22/01/2021,V774590,"4,000.00",2nd Beeston Sea Scouts,7539.21
Broxtowe Borough Council,http://statistics.data.gov.uk/id/local-authority/37UD,Finance,FINANCE,Regulatory Services,REG,Deputy Chief Executive / Finance Services,Grants,3700,Other Supplies & Services,OtherSS,22/01/2021,V775184,"1,300.00",2nd Beeston Sea Scouts,7539.21
Broxtowe Borough Council,http://statistics.data.gov.uk/id/local-authority/37UD,Finance,FINANCE,Regulatory Services,REG,Deputy Chief Executive / Finance Services,Grants,3700,Other Supplies & Services,OtherSS,03/03/2021,V780930,2096,2nd Beeston Sea Scouts,2096
Broxtowe Borough Council,http://statistics.data.gov.uk/id/local-authority/37UD,Finance,FINANCE,Finance Services,FINANCE,Deputy Chief Executive / Finance Services,Grants,3700,Other Supplies & Services,OtherSS,11/12/2020,V768674,533.71,2nd Bramcote Scout Group,3567.85
Broxtowe Borough Council,http://statistics.data.gov.uk/id/local-authority/37UD,Finance,FINANCE,Finance Services,FINANCE,Deputy Chief Executive / Finance Services,Grants,3700,Other Supplies & Services,OtherSS,11/12/2020,V768685,200.14,2nd Bramcote Scout Group,3567.85
Broxtowe Borough Council,http://statistics.data.gov.uk/id/local-authority/37UD,Finance,FINANCE,Finance Services,FINANCE,Deputy Chief Executive / Finance Services,Grants,3700,Other Supplies & Services,OtherSS,11/12/2020,V768716,1334,2nd Bramcote Scout Group,3567.85
Broxtowe Borough Council,http://statistics.data.gov.uk/id/local-authority/37UD,Finance,FINANCE,Finance Services,FINANCE,Deputy Chief Executive / Finance Services,Grants,3700,Other Supplies & Services,OtherSS,11/12/2020,V768792,1500,2nd Bramcote Scout Group,3567.85
Broxtowe Borough Council,http://statistics.data.gov.uk/id/local-authority/37UD,Finance,FINANCE,Finance Services,FINANCE,Deputy Chief Executive / Finance Services,Grants,3700,Other Supplies & Services,OtherSS,14/12/2020,V769430,750,2nd Bramcote Scout Group,750
Broxtowe Borough Council,http://statistics.data.gov.uk/id/local-authority/37UD,Finance,FINANCE,Finance Services,FINANCE,Deputy Chief Executive / Finance Services,Covid Grants Closed,3703,Obsolete Supplies,ObsSupp,21/12/2020,V770257,667,2nd Bramcote Scout Group,1334
Broxtowe Borough Council,http://statistics.data.gov.uk/id/local-authority/37UD,Finance,FINANCE,Finance Services,FINANCE,Deputy Chief Executive / Finance Services,Covid Grants Closed,3703,Obsolete Supplies,ObsSupp,21/12/2020,V770062,667,2nd Bramcote Scout Group,1334
Broxtowe Borough Council,http://statistics.data.gov.uk/id/local-authority/37UD,Finance,FINANCE,Regulatory Services,REG,Deputy Chief Executive / Finance Services,Grants,3700,Other Supplies & Services,OtherSS,22/01/2021,V773587,238.21,2nd Bramcote Scout Group,7539.21
Broxtowe Borough Council,http://statistics.data.gov.uk/id/local-authority/37UD,Finance,FINANCE,Regulatory Services,REG,Deputy Chief Executive / Finance Services,Grants,3700,Other Supplies & Services,OtherSS,22/01/2021,V774110,"2,001.00",2nd Bramcote Scout Group,7539.21
Broxtowe Borough Council,http://statistics.data.gov.uk/id/local-authority/37UD,Finance,FINANCE,Regulatory Services,REG,Deputy Chief Executive / Finance Services,Covid Closed lockdown payment,3704,Other Supplies & Services,OtherSS,22/01/2021,V774632,"4,000.00",2nd Bramcote Scout Group,7539.21
Broxtowe Borough Council,http://statistics.data.gov.uk/id/local-authority/37UD,Finance,FINANCE,Regulatory Services,REG,Deputy Chief Executive / Finance Services,Grants,3700,Other Supplies & Services,OtherSS,22/01/2021,V775248,"1,300.00",2nd Bramcote Scout Group,7539.21
Broxtowe Borough Council,http://statistics.data.gov.uk/id/local-authority/37UD,Finance,FINANCE,Regulatory Services,REG,Deputy Chief Executive / Finance Services,Grants,3700,Other Supplies & Services,OtherSS,03/03/2021,V780973,2096,2nd Bramcote Scout Group,2096
Broxtowe Borough Council,http://statistics.data.gov.uk/id/local-authority/37UD,Finance,FINANCE,Finance Services,FINANCE,Deputy Chief Executive / Finance Services,Grants,3700,Other Supplies & Services,OtherSS,20/11/2020,V765732,"1,500.00",2nd dimension hair salon,1500
Broxtowe Borough Council,http://statistics.data.gov.uk/id/local-authority/37UD,Finance,FINANCE,Finance Services,FINANCE,Deputy Chief Executive / Finance Services,Grants,3700,Other Supplies & Services,OtherSS,20/11/2020,V765550,"1,334.00",2nd dimension hair salon,1334
Broxtowe Borough Council,http://statistics.data.gov.uk/id/local-authority/37UD,Finance,FINANCE,Finance Services,FINANCE,Deputy Chief Executive / Finance Services,Grants,3700,Other Supplies & Services,OtherSS,14/12/2020,V769008,750,2nd dimension hair salon,750
Broxtowe Borough Council,http://statistics.data.gov.uk/id/local-authority/37UD,Finance,FINANCE,Regulatory Services,REG,Deputy Chief Executive / Finance Services,Grants,3700,Other Supplies & Services,OtherSS,22/01/2021,V773263,238.21,2nd dimension hair salon,7539.21
Broxtowe Borough Council,http://statistics.data.gov.uk/id/local-authority/37UD,Finance,FINANCE,Regulatory Services,REG,Deputy Chief Executive / Finance Services,Grants,3700,Other Supplies & Services,OtherSS,22/01/2021,V773786,"2,001.00",2nd dimension hair salon,7539.21
Broxtowe Borough Council,http://statistics.data.gov.uk/id/local-authority/37UD,Finance,FINANCE,Regulatory Services,REG,Deputy Chief Executive / Finance Services,Covid Closed lockdown payment,3704,Other Supplies & Services,OtherSS,22/01/2021,V774308,"4,000.00",2nd dimension hair salon,7539.21
Broxtowe Borough Council,http://statistics.data.gov.uk/id/local-authority/37UD,Finance,FINANCE,Regulatory Services,REG,Deputy Chief Executive / Finance Services,Grants,3700,Other Supplies & Services,OtherSS,22/01/2021,V774835,"1,300.00",2nd dimension hair salon,7539.21
Broxtowe Borough Council,http://statistics.data.gov.uk/id/local-authority/37UD,Finance,FINANCE,Regulatory Services,REG,Deputy Chief Executive / Finance Services,Grants,3700,Other Supplies & Services,OtherSS,03/03/2021,V780625,2096,2nd dimension hair salon,2096
Broxtowe Borough Council,http://statistics.data.gov.uk/id/local-authority/37UD,Works,WORKS,Other Works,WKSOTHER,Deputy Chief Executive / Property Services,Health and Safety,3024,Equipment,Equip,11/10/2019,V727873,2450,2PS Safety Ltd,2940
Broxtowe Borough Council,http://statistics.data.gov.uk/id/local-authority/37UD,Bramcote Crematorium,BCREM,Bramcote Crem Reserves,BCRes,Deputy Chief Executive / Bramcote Crematorium,Other Memorialisation Costs,3087,Other Supplies & Services,OtherSS,01/11/2019,V729050,1250,360 IMAGERY,1500
Broxtowe Borough Council,http://statistics.data.gov.uk/id/local-authority/37UD,Finance,FINANCE,Regulatory Services,REG,Deputy Chief Executive / Finance Services,Grants,3700,Other Supplies & Services,OtherSS,25/02/2021,V779474,238.2,3rd Chilwell (Inham Nook) Scout Group,8307.05
Broxtowe Borough Council,http://statistics.data.gov.uk/id/local-authority/37UD,Finance,FINANCE,Regulatory Services,REG,Deputy Chief Executive / Finance Services,Grants,3700,Other Supplies & Services,OtherSS,25/02/2021,V779475,2001,3rd Chilwell (Inham Nook) Scout Group,8307.05
Broxtowe Borough Council,http://statistics.data.gov.uk/id/local-authority/37UD,Finance,FINANCE,Regulatory Services,REG,Deputy Chief Executive / Finance Services,Covid Closed lockdown payment,3704,Other Supplies & Services,OtherSS,25/02/2021,V779476,4000,3rd Chilwell (Inham Nook) Scout Group,8307.05
Broxtowe Borough Council,http://statistics.data.gov.uk/id/local-authority/37UD,Finance,FINANCE,Regulatory Services,REG,Deputy Chief Executive / Finance Services,Grants,3700,Other Supplies & Services,OtherSS,25/02/2021,V779471,533.71,3rd Chilwell (Inham Nook) Scout Group,8307.05
Broxtowe Borough Council,http://statistics.data.gov.uk/id/local-authority/37UD,Finance,FINANCE,Regulatory Services,REG,Deputy Chief Executive / Finance Services,Grants,3700,Other Supplies & Services,OtherSS,25/02/2021,V779472,200.14,3rd Chilwell (Inham Nook) Scout Group,8307.05
Broxtowe Borough Council,http://statistics.data.gov.uk/id/local-authority/37UD,Finance,FINANCE,Regulatory Services,REG,Deputy Chief Executive / Finance Services,Grants,3700,Other Supplies & Services,OtherSS,25/02/2021,V779473,1334,3rd Chilwell (Inham Nook) Scout Group,8307.05
Broxtowe Borough Council,http://statistics.data.gov.uk/id/local-authority/37UD,Finance,FINANCE,Regulatory Services,REG,Deputy Chief Executive / Finance Services,Grants,3700,Other Supplies & Services,OtherSS,03/03/2021,V781148,2096,3rd Chilwell (Inham Nook) Scout Group,2096
Broxtowe Borough Council,http://statistics.data.gov.uk/id/local-authority/37UD,Finance,FINANCE,Regulatory Services,REG,Deputy Chief Executive / Finance Services,Covid Grants Closed,3703,Other Supplies & Services,OtherSS,04/03/2021,V781317,667,3rd Chilwell (Inham Nook) Scout Group,1334
Broxtowe Borough Council,http://statistics.data.gov.uk/id/local-authority/37UD,Finance,FINANCE,Regulatory Services,REG,Deputy Chief Executive / Finance Services,Covid Grants Closed,3703,Other Supplies & Services,OtherSS,04/03/2021,V781325,667,3rd Chilwell (Inham Nook) Scout Group,1334
Broxtowe Borough Council,http://statistics.data.gov.uk/id/local-authority/37UD,Finance,FINANCE,Finance Services,FINANCE,Deputy Chief Executive / Finance Services,Grants,3700,Other Supplies & Services,OtherSS,11/12/2020,V768690,1334,63 barbershop ltd,2834
Broxtowe Borough Council,http://statistics.data.gov.uk/id/local-authority/37UD,Finance,FINANCE,Finance Services,FINANCE,Deputy Chief Executive / Finance Services,Grants,3700,Other Supplies & Services,OtherSS,11/12/2020,V768750,1500,63 barbershop ltd,2834
Broxtowe Borough Council,http://statistics.data.gov.uk/id/local-authority/37UD,Finance,FINANCE,Finance Services,FINANCE,Deputy Chief Executive / Finance Services,Grants,3700,Other Supplies & Services,OtherSS,14/12/2020,V769388,750,63 barbershop ltd,750
Broxtowe Borough Council,http://statistics.data.gov.uk/id/local-authority/37UD,Finance,FINANCE,Regulatory Services,REG,Deputy Chief Executive / Finance Services,Grants,3700,Other Supplies & Services,OtherSS,22/01/2021,V773561,238.21,63 barbershop ltd,7539.21
Broxtowe Borough Council,http://statistics.data.gov.uk/id/local-authority/37UD,Finance,FINANCE,Regulatory Services,REG,Deputy Chief Executive / Finance Services,Grants,3700,Other Supplies & Services,OtherSS,22/01/2021,V774084,"2,001.00",63 barbershop ltd,7539.21
Broxtowe Borough Council,http://statistics.data.gov.uk/id/local-authority/37UD,Finance,FINANCE,Regulatory Services,REG,Deputy Chief Executive / Finance Services,Covid Closed lockdown payment,3704,Other Supplies & Services,OtherSS,22/01/2021,V774606,"4,000.00",63 barbershop ltd,7539.21
Broxtowe Borough Council,http://statistics.data.gov.uk/id/local-authority/37UD,Finance,FINANCE,Regulatory Services,REG,Deputy Chief Executive / Finance Services,Grants,3700,Other Supplies & Services,OtherSS,22/01/2021,V775206,"1,300.00",63 barbershop ltd,7539.21
Broxtowe Borough Council,http://statistics.data.gov.uk/id/local-authority/37UD,Finance,FINANCE,Regulatory Services,REG,Deputy Chief Executive / Finance Services,Grants,3700,Other Supplies & Services,OtherSS,03/03/2021,V780947,2096,63 barbershop ltd,2096
Broxtowe Borough Council,http://statistics.data.gov.uk/id/local-authority/37UD,Finance,FINANCE,Regulatory Services,REG,Deputy Chief Executive / Finance Services,Grants,3700,Other Supplies & Services,OtherSS,15/02/2021,V778345,238.2,6th Beeston Scout Group,8307.05
Broxtowe Borough Council,http://statistics.data.gov.uk/id/local-authority/37UD,Finance,FINANCE,Regulatory Services,REG,Deputy Chief Executive / Finance Services,Grants,3700,Other Supplies & Services,OtherSS,15/02/2021,V778381,2001,6th Beeston Scout Group,8307.05
Broxtowe Borough Council,http://statistics.data.gov.uk/id/local-authority/37UD,Finance,FINANCE,Regulatory Services,REG,Deputy Chief Executive / Finance Services,Covid Closed lockdown payment,3704,Other Supplies & Services,OtherSS,15/02/2021,V778417,4000,6th Beeston Scout Group,8307.05
Broxtowe Borough Council,http://statistics.data.gov.uk/id/local-authority/37UD,Finance,FINANCE,Regulatory Services,REG,Deputy Chief Executive / Finance Services,Grants,3700,Other Supplies & Services,OtherSS,15/02/2021,V778215,533.71,6th Beeston Scout Group,8307.05
Broxtowe Borough Council,http://statistics.data.gov.uk/id/local-authority/37UD,Finance,FINANCE,Regulatory Services,REG,Deputy Chief Executive / Finance Services,Grants,3700,Other Supplies & Services,OtherSS,15/02/2021,V778228,200.14,6th Beeston Scout Group,8307.05
Broxtowe Borough Council,http://statistics.data.gov.uk/id/local-authority/37UD,Finance,FINANCE,Regulatory Services,REG,Deputy Chief Executive / Finance Services,Grants,3700,Other Supplies & Services,OtherSS,15/02/2021,V778247,1334,6th Beeston Scout Group,8307.05
Broxtowe Borough Council,http://statistics.data.gov.uk/id/local-authority/37UD,Finance,FINANCE,Regulatory Services,REG,Deputy Chief Executive / Finance Services,Covid Grants Closed,3703,Other Supplies & Services,OtherSS,19/02/2021,V778911,47.64,6th Beeston Scout Group,1381.64
Broxtowe Borough Council,http://statistics.data.gov.uk/id/local-authority/37UD,Finance,FINANCE,Regulatory Services,REG,Deputy Chief Executive / Finance Services,Covid Grants Closed,3703,Other Supplies & Services,OtherSS,19/02/2021,V778897,667,6th Beeston Scout Group,1381.64
Broxtowe Borough Council,http://statistics.data.gov.uk/id/local-authority/37UD,Finance,FINANCE,Regulatory Services,REG,Deputy Chief Executive / Finance Services,Covid Grants Closed,3703,Other Supplies & Services,OtherSS,19/02/2021,V778878,667,6th Beeston Scout Group,1381.64
Broxtowe Borough Council,http://statistics.data.gov.uk/id/local-authority/37UD,Finance,FINANCE,Regulatory Services,REG,Deputy Chief Executive / Finance Services,Grants,3700,Other Supplies & Services,OtherSS,03/03/2021,V781128,2096,6th Beeston Scout Group,2096
Broxtowe Borough Council,http://statistics.data.gov.uk/id/local-authority/37UD,Finance,FINANCE,Finance Services,FINANCE,Deputy Chief Executive / Finance Services,Grants,3700,Other Supplies & Services,OtherSS,04/12/2020,V768186,2000,8 stoney street Ltd,5000
Broxtowe Borough Council,http://statistics.data.gov.uk/id/local-authority/37UD,Finance,FINANCE,Finance Services,FINANCE,Deputy Chief Executive / Finance Services,Grants,3700,Other Supplies & Services,OtherSS,04/12/2020,V768257,3000,8 stoney street Ltd,5000
Broxtowe Borough Council,http://statistics.data.gov.uk/id/local-authority/37UD,Finance,FINANCE,Finance Services,FINANCE,Deputy Chief Executive / Finance Services,Grants,3700,Other Supplies & Services,OtherSS,14/12/2020,V769362,1500,8 stoney street Ltd,1500
Broxtowe Borough Council,http://statistics.data.gov.uk/id/local-authority/37UD,Finance,FINANCE,Regulatory Services,REG,Deputy Chief Executive / Finance Services,Grants,3700,Other Supplies & Services,OtherSS,22/01/2021,V773534,357.14,8 stoney street Ltd,11057.14
Broxtowe Borough Council,http://statistics.data.gov.uk/id/local-authority/37UD,Finance,FINANCE,Regulatory Services,REG,Deputy Chief Executive / Finance Services,Grants,3700,Other Supplies & Services,OtherSS,22/01/2021,V774057,"3,000.00",8 stoney street Ltd,11057.14
Broxtowe Borough Council,http://statistics.data.gov.uk/id/local-authority/37UD,Finance,FINANCE,Regulatory Services,REG,Deputy Chief Executive / Finance Services,Covid Closed lockdown payment,3704,Other Supplies & Services,OtherSS,22/01/2021,V774579,"6,000.00",8 stoney street Ltd,11057.14
Broxtowe Borough Council,http://statistics.data.gov.uk/id/local-authority/37UD,Finance,FINANCE,Regulatory Services,REG,Deputy Chief Executive / Finance Services,Grants,3700,Other Supplies & Services,OtherSS,22/01/2021,V775172,"1,700.00",8 stoney street Ltd,11057.14
Broxtowe Borough Council,http://statistics.data.gov.uk/id/local-authority/37UD,Finance,FINANCE,Regulatory Services,REG,Deputy Chief Executive / Finance Services,Grants,3700,Other Supplies & Services,OtherSS,03/03/2021,V780919,3143,8 stoney street Ltd,3143
Broxtowe Borough Council,http://statistics.data.gov.uk/id/local-authority/37UD,Works,WORKS,Repairs & Maintenance,REPMAIN,Tech and Works / Works Adminstration Kimberley,Sub Contractors [day to day repairs],3107,Other Supplies & Services,OtherSS,12/04/2019,V709006,768,A J Steeples,921.6
Broxtowe Borough Council,http://statistics.data.gov.uk/id/local-authority/37UD,Works,WORKS,Repairs & Maintenance,REPMAIN,Tech and Works / Works Adminstration Kimberley,Sub Contractors [day to day repairs],3107,Other Supplies & Services,OtherSS,23/04/2019,V709282,3968,A J Steeples,5421.6
Broxtowe Borough Council,http://statistics.data.gov.uk/id/local-authority/37UD,Works,WORKS,Other Works,WKSOTHER,Tech and Works / Works Adminstration Kimberley,Premises Costs,1017,Other Maintenance,Maint,23/04/2019,V709283,550,A J Steeples,5421.6
Broxtowe Borough Council,http://statistics.data.gov.uk/id/local-authority/37UD,Works Directorate,DIRWORKS,Works Directorate,DIRWORKS,Tech and Works / Works Adminstration Kimberley,Sub Contractors [day to day repairs],3107,Other Supplies & Services,OtherSS,07/06/2019,V713837,4736,A J Steeples,9508.8
Broxtowe Borough Council,http://statistics.data.gov.uk/id/local-authority/37UD,Works,WORKS,Repairs & Maintenance,REPMAIN,Tech and Works / Works Adminstration Kimberley,Sub Contractors [day to day repairs],3107,Other Supplies & Services,OtherSS,07/06/2019,V713837,1908,A J Steeples,9508.8
Broxtowe Borough Council,http://statistics.data.gov.uk/id/local-authority/37UD,Technical,TECHNICA,Highways,HIGHWYS,Tech and Works / Works Adminstration Kimberley,Clean & Green Initiative,3980,Miscellaneous,Msc,07/06/2019,V713837,768,A J Steeples,9508.8
Broxtowe Borough Council,http://statistics.data.gov.uk/id/local-authority/37UD,Works,WORKS,Repairs & Maintenance,REPMAIN,Tech and Works / Works Adminstration Kimberley,Sub Contractors [day to day repairs],3107,Other Supplies & Services,OtherSS,07/06/2019,V713836,512,A J Steeples,9508.8
Broxtowe Borough Council,http://statistics.data.gov.uk/id/local-authority/37UD,Works Directorate,DIRWORKS,Works Directorate,DIRWORKS,Strategic Director / Enviromental Business and Project,Sub Contractors [day to day repairs],3107,Other Supplies & Services,OtherSS,19/07/2019,V718611,3328,A J Steeples,8678.4
Broxtowe Borough Council,http://statistics.data.gov.uk/id/local-authority/37UD,Works,WORKS,Repairs & Maintenance,REPMAIN,Strategic Director / Enviromental Business and Project,Sub Contractors [day to day repairs],3107,Other Supplies & Services,OtherSS,19/07/2019,V718611,2880,A J Steeples,8678.4
Broxtowe Borough Council,http://statistics.data.gov.uk/id/local-authority/37UD,Technical,TECHNICA,Highways,HIGHWYS,Strategic Director / Enviromental Business and Project,Clean & Green Initiative,3980,Other Supplies & Services,OtherSS,19/07/2019,V718611,256,A J Steeples,8678.4
Broxtowe Borough Council,http://statistics.data.gov.uk/id/local-authority/37UD,Technical,TECHNICA,Highways,HIGHWYS,Strategic Director / Enviromental Business and Project,Clean & Green Initiative,3980,Other Supplies & Services,OtherSS,19/07/2019,V718611,256,A J Steeples,8678.4
Broxtowe Borough Council,http://statistics.data.gov.uk/id/local-authority/37UD,Bramcote Crematorium,BCREM,Bramcote Crematorium,BCREM,Strategic Director / Enviromental Business and Project,Repairs & Maintenance,1000,Central Pot,Central,19/07/2019,V718611,512,A J Steeples,8678.4
Broxtowe Borough Council,http://statistics.data.gov.uk/id/local-authority/37UD,Works,WORKS,Repairs & Maintenance,REPMAIN,Strategic Director / Enviromental Business and Project,Sub Contractors [day to day repairs],3107,Other Supplies & Services,OtherSS,26/07/2019,V719548,512,A J Steeples,614.4
Broxtowe Borough Council,http://statistics.data.gov.uk/id/local-authority/37UD,Works,WORKS,Repairs & Maintenance,REPMAIN,Strategic Director / Enviromental Business and Project,Sub Contractors [day to day repairs],3107,Other Supplies & Services,OtherSS,23/08/2019,V722873,1024,A J Steeples,1228.8
Broxtowe Borough Council,http://statistics.data.gov.uk/id/local-authority/37UD,Works,WORKS,Repairs & Maintenance,REPMAIN,Strategic Director / Enviromental Services,Sub Contractors [day to day repairs],3107,Other Supplies & Services,OtherSS,06/09/2019,V724565,1864,A J Steeples,2697.6
Broxtowe Borough Council,http://statistics.data.gov.uk/id/local-authority/37UD,Works,WORKS,Repairs & Maintenance,REPMAIN,Strategic Director / Enviromental Services,Sub Contractors [day to day repairs],3107,Other Supplies & Services,OtherSS,06/09/2019,V724566,384,A J Steeples,2697.6
Broxtowe Borough Council,http://statistics.data.gov.uk/id/local-authority/37UD,Works,WORKS,Repairs & Maintenance,REPMAIN,Strategic Director / Enviromental Services,Sub Contractors [day to day repairs],3107,Other Supplies & Services,OtherSS,11/10/2019,V727939,1152,A J Steeples,1382.4
Broxtowe Borough Council,http://statistics.data.gov.uk/id/local-authority/37UD,Works,WORKS,Repairs & Maintenance,REPMAIN,Strategic Director / Enviromental Services,Sub Contractors [day to day repairs],3107,Other Supplies & Services,OtherSS,08/11/2019,V730625,512,A J Steeples,614.4
Broxtowe Borough Council,http://statistics.data.gov.uk/id/local-authority/37UD,Works Directorate,DIRWORKS,Works Directorate,DIRWORKS,Strategic Director / Enviromental Operations,Sub Contractors [day to day repairs],3107,Other Supplies & Services,OtherSS,15/11/2019,V727940,4736,A J Steeples,9830.4
Broxtowe Borough Council,http://statistics.data.gov.uk/id/local-authority/37UD,Works,WORKS,Repairs & Maintenance,REPMAIN,Strategic Director / Enviromental Operations,Sub Contractors [day to day repairs],3107,Other Supplies & Services,OtherSS,15/11/2019,V727940,1024,A J Steeples,9830.4
Broxtowe Borough Council,http://statistics.data.gov.uk/id/local-authority/37UD,Works,WORKS,Repairs & Maintenance,REPMAIN,Strategic Director / Enviromental Operations,Sub Contractors [day to day repairs],3107,Other Supplies & Services,OtherSS,15/11/2019,V727940,256,A J Steeples,9830.4
Broxtowe Borough Council,http://statistics.data.gov.uk/id/local-authority/37UD,Works,WORKS,Repairs & Maintenance,REPMAIN,Strategic Director / Enviromental Operations,Sub Contractors [day to day repairs],3107,Other Supplies & Services,OtherSS,15/11/2019,V727940,2048,A J Steeples,9830.4
Broxtowe Borough Council,http://statistics.data.gov.uk/id/local-authority/37UD,Technical,TECHNICA,Highways,HIGHWYS,Strategic Director / Enviromental Operations,Clean & Green Initiative,3980,Other Supplies & Services,OtherSS,15/11/2019,V727940,128,A J Steeples,9830.4
Broxtowe Borough Council,http://statistics.data.gov.uk/id/local-authority/37UD,Works Directorate,DIRWORKS,Works Directorate,DIRWORKS,Strategic Director / Enviromental Services,Sub Contractors [day to day repairs],3107,Other Supplies & Services,OtherSS,06/12/2019,V733461,3328,A J Steeples,5990.4
Broxtowe Borough Council,http://statistics.data.gov.uk/id/local-authority/37UD,Works,WORKS,Repairs & Maintenance,REPMAIN,Strategic Director / Enviromental Services,Sub Contractors [day to day repairs],3107,Other Supplies & Services,OtherSS,06/12/2019,V733461,256,A J Steeples,5990.4
Broxtowe Borough Council,http://statistics.data.gov.uk/id/local-authority/37UD,Technical,TECHNICA,Highways,HIGHWYS,Strategic Director / Enviromental Services,Clean & Green Initiative,3980,Miscellaneous,Msc,06/12/2019,V733461,512,A J Steeples,5990.4
Broxtowe Borough Council,http://statistics.data.gov.uk/id/local-authority/37UD,Works,WORKS,Other Works,WKSOTHER,Strategic Director / Enviromental Services,Premises Costs,1017,Other Maintenance,Maint,06/12/2019,V733461,768,A J Steeples,5990.4
Broxtowe Borough Council,http://statistics.data.gov.uk/id/local-authority/37UD,Works,WORKS,Repairs & Maintenance,REPMAIN,Strategic Director / Enviromental Services,Sub Contractors [day to day repairs],3107,Other Supplies & Services,OtherSS,13/12/2019,V733765,768,A J Steeples,921.6
Broxtowe Borough Council,http://statistics.data.gov.uk/id/local-authority/37UD,Works,WORKS,Repairs & Maintenance,REPMAIN,Strategic Director / Enviromental Services,Sub Contractors [day to day repairs],3107,Other Supplies & Services,OtherSS,24/01/2020,V737245,1250,A J Steeples,13082.4
Broxtowe Borough Council,http://statistics.data.gov.uk/id/local-authority/37UD,Works,WORKS,Repairs & Maintenance,REPMAIN,Strategic Director / Enviromental Services,Sub Contractors [day to day repairs],3107,Other Supplies & Services,OtherSS,24/01/2020,V737245,8192,A J Steeples,13082.4
Broxtowe Borough Council,http://statistics.data.gov.uk/id/local-authority/37UD,Works,WORKS,Repairs & Maintenance,REPMAIN,Strategic Director / Enviromental Services,Sub Contractors [day to day repairs],3107,Other Supplies & Services,OtherSS,24/01/2020,V737246,896,A J Steeples,13082.4
Broxtowe Borough Council,http://statistics.data.gov.uk/id/local-authority/37UD,Technical,TECHNICA,Highways,HIGHWYS,Strategic Director / Enviromental Services,Drainage/Dykes & Ditches,1243,Other Prem,OthPrem,24/01/2020,V737245,256,A J Steeples,13082.4
Broxtowe Borough Council,http://statistics.data.gov.uk/id/local-authority/37UD,Works,WORKS,Repairs & Maintenance,REPMAIN,Strategic Director / Enviromental Services,Sub Contractors [day to day repairs],3107,Other Supplies & Services,OtherSS,13/03/2020,V742145,128,A J Steeples,3043.2
Broxtowe Borough Council,http://statistics.data.gov.uk/id/local-authority/37UD,Works,WORKS,Repairs & Maintenance,REPMAIN,Strategic Director / Enviromental Services,Sub Contractors [day to day repairs],3107,Other Supplies & Services,OtherSS,13/03/2020,V742144,1024,A J Steeples,3043.2
Broxtowe Borough Council,http://statistics.data.gov.uk/id/local-authority/37UD,Works,WORKS,Repairs & Maintenance,REPMAIN,Strategic Director / Enviromental Services,Sub Contractors [day to day repairs],3107,Other Supplies & Services,OtherSS,13/03/2020,V742145,360,A J Steeples,3043.2
Broxtowe Borough Council,http://statistics.data.gov.uk/id/local-authority/37UD,Technical,TECHNICA,Parks & Recreation Grounds,RECGRD,Strategic Director / Enviromental Services,Nottingham Canal - General Maintenance,4402,Works,Works,13/03/2020,V742145,512,A J Steeples,3043.2
Broxtowe Borough Council,http://statistics.data.gov.uk/id/local-authority/37UD,Bramcote Crematorium,BCREM,Bramcote Crematorium,BCREM,Strategic Director / Enviromental Services,Repairs & Maintenance,1000,Central Pot,Central,13/03/2020,V742145,512,A J Steeples,3043.2
Broxtowe Borough Council,http://statistics.data.gov.uk/id/local-authority/37UD,Works,WORKS,Repairs & Maintenance,REPMAIN,Strategic Director / Enviromental Services,Sub Contractors [day to day repairs],3107,Other Supplies & Services,OtherSS,09/04/2020,V744817,1824,A J Steeples,4531.2
Broxtowe Borough Council,http://statistics.data.gov.uk/id/local-authority/37UD,Works,WORKS,Other Works,WKSOTHER,Strategic Director / Enviromental Services,Grounds Maintenance - External,1205,Other Prem,OthPrem,09/04/2020,V744817,1368,A J Steeples,4531.2
Broxtowe Borough Council,http://statistics.data.gov.uk/id/local-authority/37UD,Bramcote Crematorium,BCREM,Bramcote Crematorium,BCREM,Strategic Director / Enviromental Services,Repairs & Maintenance,1000,Central Pot,Central,09/04/2020,V744817,456,A J Steeples,4531.2
Broxtowe Borough Council,http://statistics.data.gov.uk/id/local-authority/37UD,Works,WORKS,Repairs & Maintenance,REPMAIN,Strategic Director / Enviromental Services,Sub Contractors [day to day repairs],3107,Other Supplies & Services,OtherSS,09/04/2020,V744817,128,A J Steeples,4531.2
Broxtowe Borough Council,http://statistics.data.gov.uk/id/local-authority/37UD,Works,WORKS,Repairs & Maintenance,REPMAIN,Strategic Director / Enviromental Services,Sub Contractors [day to day repairs],3107,Other Supplies & Services,OtherSS,05/06/2020,V751096,768,A J Steeples,921.6
Broxtowe Borough Council,http://statistics.data.gov.uk/id/local-authority/37UD,Works,WORKS,Repairs & Maintenance,REPMAIN,Strategic Director / Enviromental Services,Sub Contractors [day to day repairs],3107,Other Supplies & Services,OtherSS,19/06/2020,V752030,716.8,A J Steeples,5529.6
Broxtowe Borough Council,http://statistics.data.gov.uk/id/local-authority/37UD,Works,WORKS,Repairs & Maintenance,REPMAIN,Strategic Director / Enviromental Services,Sub Contractors [day to day repairs],3107,Other Supplies & Services,OtherSS,19/06/2020,V752030,"1,920.00",A J Steeples,5529.6
Broxtowe Borough Council,http://statistics.data.gov.uk/id/local-authority/37UD,Works,WORKS,Repairs & Maintenance,REPMAIN,Strategic Director / Enviromental Services,Sub Contractors [day to day repairs],3107,Other Supplies & Services,OtherSS,19/06/2020,V752030,384,A J Steeples,5529.6
Broxtowe Borough Council,http://statistics.data.gov.uk/id/local-authority/37UD,Works Directorate,DIRWORKS,Works Directorate,DIRWORKS,Strategic Director / Enviromental Services,Sub Contractors [day to day repairs],3107,Other Supplies & Services,OtherSS,19/06/2020,V752030,"1,075.20",A J Steeples,5529.6
Broxtowe Borough Council,http://statistics.data.gov.uk/id/local-authority/37UD,Bramcote Crematorium,BCREM,Bramcote Crematorium,BCREM,Strategic Director / Enviromental Services,Repairs & Maintenance,1000,Central Pot,Central,19/06/2020,V752030,512,A J Steeples,5529.6
Broxtowe Borough Council,http://statistics.data.gov.uk/id/local-authority/37UD,Works,WORKS,Repairs & Maintenance,REPMAIN,Strategic Director / Enviromental Services,Sub Contractors [day to day repairs],3107,Other Supplies & Services,OtherSS,28/08/2020,V757771,384,A J Steeples,460.8
Broxtowe Borough Council,http://statistics.data.gov.uk/id/local-authority/37UD,Works,WORKS,Other Works,WKSOTHER,Strategic Director / Enviromental Services,Grounds Maintenance - External,1205,Other Prem,OthPrem,02/10/2020,V760387,768,A J Steeples,921.6
Broxtowe Borough Council,http://statistics.data.gov.uk/id/local-authority/37UD,Works Directorate,DIRWORKS,Works Directorate,DIRWORKS,Strategic Director / Enviromental Services,Sub Contractors [day to day repairs],3107,Other Supplies & Services,OtherSS,16/10/2020,V762146,"4,736.00",A J Steeples,12276.96
Broxtowe Borough Council,http://statistics.data.gov.uk/id/local-authority/37UD,Works,WORKS,Repairs & Maintenance,REPMAIN,Strategic Director / Enviromental Services,Sub Contractors [day to day repairs],3107,Other Supplies & Services,OtherSS,16/10/2020,V762146,"2,048.00",A J Steeples,12276.96
Broxtowe Borough Council,http://statistics.data.gov.uk/id/local-authority/37UD,Works,WORKS,Repairs & Maintenance,REPMAIN,Strategic Director / Enviromental Services,Sub Contractors [day to day repairs],3107,Other Supplies & Services,OtherSS,16/10/2020,V762146,"1,280.00",A J Steeples,12276.96
Broxtowe Borough Council,http://statistics.data.gov.uk/id/local-authority/37UD,Works,WORKS,Repairs & Maintenance,REPMAIN,Strategic Director / Enviromental Services,Sub Contractors [day to day repairs],3107,Other Supplies & Services,OtherSS,16/10/2020,V762153,256,A J Steeples,12276.96
Broxtowe Borough Council,http://statistics.data.gov.uk/id/local-authority/37UD,Works,WORKS,Repairs & Maintenance,REPMAIN,Strategic Director / Enviromental Services,Sub Contractors [day to day repairs],3107,Other Supplies & Services,OtherSS,16/10/2020,V762153,384,A J Steeples,12276.96
Broxtowe Borough Council,http://statistics.data.gov.uk/id/local-authority/37UD,Works,WORKS,Repairs & Maintenance,REPMAIN,Strategic Director / Enviromental Services,Sub Contractors [day to day repairs],3107,Other Supplies & Services,OtherSS,16/10/2020,V762153,640,A J Steeples,12276.96
Broxtowe Borough Council,http://statistics.data.gov.uk/id/local-authority/37UD,Technical,TECHNICA,Highways,HIGHWYS,Strategic Director / Enviromental Services,Clean & Green Initiative,3980,Other Supplies & Services,OtherSS,16/10/2020,V762146,384,A J Steeples,12276.96
Broxtowe Borough Council,http://statistics.data.gov.uk/id/local-authority/37UD,Technical,TECHNICA,Parks & Recreation Grounds,RECGRD,Strategic Director / Enviromental Services,Premises Costs,1017,Other Maintenance,Maint,16/10/2020,V762146,502.8,A J Steeples,12276.96
Broxtowe Borough Council,http://statistics.data.gov.uk/id/local-authority/37UD,Works,WORKS,Repairs & Maintenance,REPMAIN,Strategic Director / Enviromental Services,Sub Contractors [day to day repairs],3107,Other Supplies & Services,OtherSS,20/11/2020,V765061,384,A J Steeples,460.8
Broxtowe Borough Council,http://statistics.data.gov.uk/id/local-authority/37UD,Works,WORKS,Repairs & Maintenance,REPMAIN,Strategic Director / Enviromental Services,Sub Contractors [day to day repairs],3107,Other Supplies & Services,OtherSS,27/11/2020,V766145,256,A J Steeples,1228.8
Broxtowe Borough Council,http://statistics.data.gov.uk/id/local-authority/37UD,Works,WORKS,Repairs & Maintenance,REPMAIN,Strategic Director / Enviromental Services,Sub Contractors [day to day repairs],3107,Other Supplies & Services,OtherSS,27/11/2020,V766145,384,A J Steeples,1228.8
Broxtowe Borough Council,http://statistics.data.gov.uk/id/local-authority/37UD,Works,WORKS,Repairs & Maintenance,REPMAIN,Strategic Director / Enviromental Services,Sub Contractors [day to day repairs],3107,Other Supplies & Services,OtherSS,27/11/2020,V766145,384,A J Steeples,1228.8
Broxtowe Borough Council,http://statistics.data.gov.uk/id/local-authority/37UD,Works Directorate,DIRWORKS,Works Directorate,DIRWORKS,Strategic Director / Enviromental Services,Sub Contractors [day to day repairs],3107,Other Supplies & Services,OtherSS,04/12/2020,V768014,3328,A J Steeples,14709.6
Broxtowe Borough Council,http://statistics.data.gov.uk/id/local-authority/37UD,Works,WORKS,Repairs & Maintenance,REPMAIN,Strategic Director / Enviromental Services,Sub Contractors [day to day repairs],3107,Other Supplies & Services,OtherSS,04/12/2020,V768014,1250,A J Steeples,14709.6
Broxtowe Borough Council,http://statistics.data.gov.uk/id/local-authority/37UD,Works,WORKS,Repairs & Maintenance,REPMAIN,Strategic Director / Enviromental Services,Sub Contractors [day to day repairs],3107,Other Supplies & Services,OtherSS,04/12/2020,V768014,7680,A J Steeples,14709.6
Broxtowe Borough Council,http://statistics.data.gov.uk/id/local-authority/37UD,Works,WORKS,Repairs & Maintenance,REPMAIN,Strategic Director / Enviromental Services,Sub Contractors [day to day repairs],3107,Other Supplies & Services,OtherSS,22/01/2021,V773135,256,A J Steeples,768
Broxtowe Borough Council,http://statistics.data.gov.uk/id/local-authority/37UD,Works,WORKS,Repairs & Maintenance,REPMAIN,Strategic Director / Enviromental Services,Sub Contractors [day to day repairs],3107,Other Supplies & Services,OtherSS,22/01/2021,V773135,384,A J Steeples,768
Broxtowe Borough Council,http://statistics.data.gov.uk/id/local-authority/37UD,Works,WORKS,Repairs & Maintenance,REPMAIN,Strategic Director / Enviromental Services,Sub Contractors [day to day repairs],3107,Other Supplies & Services,OtherSS,05/02/2021,V777413,1792,A J Steeples,6009.6
Broxtowe Borough Council,http://statistics.data.gov.uk/id/local-authority/37UD,Works,WORKS,Repairs & Maintenance,REPMAIN,Strategic Director / Enviromental Services,Sub Contractors [day to day repairs],3107,Other Supplies & Services,OtherSS,05/02/2021,V777414,640,A J Steeples,6009.6
Broxtowe Borough Council,http://statistics.data.gov.uk/id/local-authority/37UD,Works,WORKS,Other Works,WKSOTHER,Strategic Director / Enviromental Services,Premises Costs,1017,Other Maintenance,Maint,05/02/2021,V777413,2576,A J Steeples,6009.6
Broxtowe Borough Council,http://statistics.data.gov.uk/id/local-authority/37UD,Works,WORKS,Repairs & Maintenance,REPMAIN,Strategic Director / Enviromental Services,Sub Contractors [day to day repairs],3107,Other Supplies & Services,OtherSS,05/03/2021,V781328,384,A J Steeples,460.8
Broxtowe Borough Council,http://statistics.data.gov.uk/id/local-authority/37UD,Housing,HOUSING,Repairs,REPS,"Housing, Health & Leisure / Housing Administration",Sub Contractors [day to day repairs],3107,Other Supplies & Services,OtherSS,07/06/2019,V715108,813,A L Dalton Limited,975.6
Broxtowe Borough Council,http://statistics.data.gov.uk/id/local-authority/37UD,Housing,HOUSING,Repairs,REPS,Chief Executive  / Housing repairs,Sub Contractors [day to day repairs],3107,Other Supplies & Services,OtherSS,07/08/2020,V756216,505,A L Dalton Limited,804
Broxtowe Borough Council,http://statistics.data.gov.uk/id/local-authority/37UD,Housing,HOUSING,Repairs,REPS,Chief Executive  / Housing repairs,Sub Contractors [day to day repairs],3107,Other Supplies & Services,OtherSS,07/08/2020,V756215,165,A L Dalton Limited,804
Broxtowe Borough Council,http://statistics.data.gov.uk/id/local-authority/37UD,Housing,HOUSING,Repairs,REPS,Chief Executive  / Housing repairs,Sub Contractors [day to day repairs],3107,Other Supplies & Services,OtherSS,12/03/2021,V781696,650,A L Dalton Limited,780
Broxtowe Borough Council,http://statistics.data.gov.uk/id/local-authority/37UD,Finance,FINANCE,Regulatory Services,REG,Deputy Chief Executive / Finance Services,Grants,3700,Other Supplies & Services,OtherSS,15/03/2021,V781976,238.2,A M Sports Cars Nottingham Ltd,9669.2
Broxtowe Borough Council,http://statistics.data.gov.uk/id/local-authority/37UD,Finance,FINANCE,Regulatory Services,REG,Deputy Chief Executive / Finance Services,Grants,3700,Other Supplies & Services,OtherSS,15/03/2021,V782016,2096,A M Sports Cars Nottingham Ltd,9669.2
Broxtowe Borough Council,http://statistics.data.gov.uk/id/local-authority/37UD,Finance,FINANCE,Regulatory Services,REG,Deputy Chief Executive / Finance Services,Grants,3700,Other Supplies & Services,OtherSS,15/03/2021,V781989,2001,A M Sports Cars Nottingham Ltd,9669.2
Broxtowe Borough Council,http://statistics.data.gov.uk/id/local-authority/37UD,Finance,FINANCE,Regulatory Services,REG,Deputy Chief Executive / Finance Services,Covid Closed lockdown payment,3704,Other Supplies & Services,OtherSS,15/03/2021,V782002,4000,A M Sports Cars Nottingham Ltd,9669.2
Broxtowe Borough Council,http://statistics.data.gov.uk/id/local-authority/37UD,Finance,FINANCE,Regulatory Services,REG,Deputy Chief Executive / Finance Services,Grants,3700,Other Supplies & Services,OtherSS,15/03/2021,V781946,1334,A M Sports Cars Nottingham Ltd,9669.2
Broxtowe Borough Council,http://statistics.data.gov.uk/id/local-authority/37UD,Works,WORKS,Other Works,WKSOTHER,Strategic Director / Enviromental Services,Premises Costs,1017,Other Maintenance,Maint,18/10/2019,V728240,322.21,A T  Alarms,386.65
Broxtowe Borough Council,http://statistics.data.gov.uk/id/local-authority/37UD,Works,WORKS,Other Works,WKSOTHER,Strategic Director / Enviromental Services,Equipment Tools and Materials,3006,Equipment,Equip,27/12/2019,V734577,288,A T  Alarms,345.6
Broxtowe Borough Council,http://statistics.data.gov.uk/id/local-authority/37UD,Works,WORKS,Other Works,WKSOTHER,Strategic Director / Enviromental Services,Premises Costs,1017,Other Maintenance,Maint,23/10/2020,V762014,328.65,A T  Alarms,394.38
Broxtowe Borough Council,http://statistics.data.gov.uk/id/local-authority/37UD,Works,WORKS,Other Works,WKSOTHER,"Housing, Health & Leisure / Health & Safety",National Assistance Act,3812,Other Supplies & Services,OtherSS,07/06/2019,V715231,1393.13,A W Lymn,1393.13
Broxtowe Borough Council,http://statistics.data.gov.uk/id/local-authority/37UD,Works,WORKS,Other Works,WKSOTHER,Chief Executive  / Enviromental Health,National Assistance Act,3812,Other Supplies & Services,OtherSS,11/10/2019,V727964,1327,A W Lymn,1419.87
Broxtowe Borough Council,http://statistics.data.gov.uk/id/local-authority/37UD,Works,WORKS,Other Works,WKSOTHER,Chief Executive  / Enviromental Health,National Assistance Act,3812,Other Supplies & Services,OtherSS,20/12/2019,V734315,1327,A W Lymn,1327
Broxtowe Borough Council,http://statistics.data.gov.uk/id/local-authority/37UD,Works,WORKS,Other Works,WKSOTHER,Chief Executive  / Enviromental Health,National Assistance Act,3812,Other Supplies & Services,OtherSS,03/01/2020,V735976,1327,A W Lymn,1327
Broxtowe Borough Council,http://statistics.data.gov.uk/id/local-authority/37UD,Works,WORKS,Other Works,WKSOTHER,Chief Executive  / Enviromental Health,National Assistance Act,3812,Other Supplies & Services,OtherSS,31/01/2020,V738068,1342,A W Lymn,1342
Broxtowe Borough Council,http://statistics.data.gov.uk/id/local-authority/37UD,Works,WORKS,Other Works,WKSOTHER,Chief Executive  / Enviromental Health,National Assistance Act,3812,Other Supplies & Services,OtherSS,07/02/2020,V739330,1100,A W Lymn,2496.73
Broxtowe Borough Council,http://statistics.data.gov.uk/id/local-authority/37UD,Works,WORKS,Other Works,WKSOTHER,Chief Executive  / Enviromental Health,National Assistance Act,3812,Other Supplies & Services,OtherSS,07/02/2020,V739331,1396.73,A W Lymn,2496.73
Broxtowe Borough Council,http://statistics.data.gov.uk/id/local-authority/37UD,Works,WORKS,Other Works,WKSOTHER,Chief Executive  / Enviromental Health,National Assistance Act,3812,Other Supplies & Services,OtherSS,06/03/2020,V742067,1539.81,A W Lymn,1539.81
Broxtowe Borough Council,http://statistics.data.gov.uk/id/local-authority/37UD,Works,WORKS,Other Works,WKSOTHER,Chief Executive  / Enviromental Health,National Assistance Act,3812,Other Supplies & Services,OtherSS,24/07/2020,V754782,"1,399.73",A W Lymn,1399.73
Broxtowe Borough Council,http://statistics.data.gov.uk/id/local-authority/37UD,Works,WORKS,Other Works,WKSOTHER,Chief Executive  / Enviromental Health,National Assistance Act,3812,Other Supplies & Services,OtherSS,02/10/2020,V760488,"1,566.73",A W Lymn,1566.73
Broxtowe Borough Council,http://statistics.data.gov.uk/id/local-authority/37UD,Works,WORKS,Other Works,WKSOTHER,Strategic Director / Enviromental Services,Miscellaneous Expenses,3800,Other Supplies & Services,OtherSS,13/11/2020,V764444,76.41,A W Lymn,1658.42
Broxtowe Borough Council,http://statistics.data.gov.uk/id/local-authority/37UD,Works,WORKS,Other Works,WKSOTHER,Chief Executive  / Enviromental Health,National Assistance Act,3812,Other Supplies & Services,OtherSS,13/11/2020,V762134,"1,566.73",A W Lymn,1658.42
Broxtowe Borough Council,http://statistics.data.gov.uk/id/local-authority/37UD,Works,WORKS,Other Works,WKSOTHER,Chief Executive  / Environmental Health,National Assistance Act,3812,Other Supplies & Services,OtherSS,18/12/2020,V768474,1419.73,A W Lymn,1419.73
Broxtowe Borough Council,http://statistics.data.gov.uk/id/local-authority/37UD,Works,WORKS,Other Works,WKSOTHER,Chief Executive  / Environmental Health,National Assistance Act,3812,Other Supplies & Services,OtherSS,01/02/2021,V769559,1430.71,A W Lymn,1430.71
Broxtowe Borough Council,http://statistics.data.gov.uk/id/local-authority/37UD,Works,WORKS,Other Works,WKSOTHER,Strategic Director / Enviromental Services,Miscellaneous Expenses,3800,Other Supplies & Services,OtherSS,19/02/2021,V778072,67.92,A W Lymn,1501.23
Broxtowe Borough Council,http://statistics.data.gov.uk/id/local-authority/37UD,Works,WORKS,Other Works,WKSOTHER,Chief Executive  / Environmental Health,National Assistance Act,3812,Other Supplies & Services,OtherSS,19/02/2021,V778138,1419.73,A W Lymn,1501.23
Broxtowe Borough Council,http://statistics.data.gov.uk/id/local-authority/37UD,Works,WORKS,Other Works,WKSOTHER,Strategic Director / Enviromental Services,Miscellaneous Expenses,3800,Other Supplies & Services,OtherSS,12/03/2021,V781690,152.82,A W Lymn,1609.86
Broxtowe Borough Council,http://statistics.data.gov.uk/id/local-authority/37UD,Works,WORKS,Other Works,WKSOTHER,Chief Executive  / Environmental Health,National Assistance Act,3812,Other Supplies & Services,OtherSS,12/03/2021,V781687,1426.48,A W Lymn,1609.86
Broxtowe Borough Council,http://statistics.data.gov.uk/id/local-authority/37UD,Works,WORKS,Other Works,WKSOTHER,Chief Executive  / Environmental Health,National Assistance Act,3812,Other Supplies & Services,OtherSS,26/03/2021,V782918,1426.48,A W Lymn,1426.48
Broxtowe Borough Council,http://statistics.data.gov.uk/id/local-authority/37UD,Resources,RES,Resources,RES,Tech and Works / Parks & Environment,Equipment,9004,Capital Expenditure,CapExp,23/04/2019,V709155,5120,A&N Signs,6144
Broxtowe Borough Council,http://statistics.data.gov.uk/id/local-authority/37UD,Planning Community Development,PCD,Planning Community Development,PCD,Chief Executive  / Planning & Ecnomic Development,New construction,9002,Capital Expenditure,CapExp,26/02/2021,V779556,32789.51,A&S Enterprises Limited,39347.41
Broxtowe Borough Council,http://statistics.data.gov.uk/id/local-authority/37UD,Planning Community Development,PCD,Planning Community Development,PCD,Chief Executive  / Planning & Ecnomic Development,New construction,9002,Capital Expenditure,CapExp,19/03/2021,V782208,36600.84,A&S Enterprises Limited,43921.01
Broxtowe Borough Council,http://statistics.data.gov.uk/id/local-authority/37UD,Works,WORKS,Repairs & Maintenance,REPMAIN,Strategic Director / Enviromental Services,Repairs / Servicing  - Materials,5520,Transport Account,TranAcc,27/09/2019,V725802,21,AB Components Ltd,254.73
Broxtowe Borough Council,http://statistics.data.gov.uk/id/local-authority/37UD,Works,WORKS,Repairs & Maintenance,REPMAIN,Strategic Director / Enviromental Services,Repairs / Servicing  - Materials,5520,Transport Account,TranAcc,27/09/2019,V725802,24.36,AB Components Ltd,254.73
Broxtowe Borough Council,http://statistics.data.gov.uk/id/local-authority/37UD,Works,WORKS,Repairs & Maintenance,REPMAIN,Strategic Director / Enviromental Services,Repairs / Servicing  - Materials,5520,Transport Account,TranAcc,27/09/2019,V725802,17.92,AB Components Ltd,254.73
Broxtowe Borough Council,http://statistics.data.gov.uk/id/local-authority/37UD,Works,WORKS,Repairs & Maintenance,REPMAIN,Strategic Director / Enviromental Services,Repairs / Servicing  - Materials,5520,Transport Account,TranAcc,27/09/2019,V725800,149,AB Components Ltd,254.73
Broxtowe Borough Council,http://statistics.data.gov.uk/id/local-authority/37UD,Works,WORKS,Waste Management,WASTMAN,Strategic Director / Enviromental Services,Repairs / Servicing  - Materials,5520,Transport Account,TRANACC,22/05/2020,V749589,6.96,AB Components Ltd,283.66
Broxtowe Borough Council,http://statistics.data.gov.uk/id/local-authority/37UD,Works,WORKS,Waste Management,WASTMAN,Strategic Director / Enviromental Services,Repairs / Servicing  - Materials,5520,Transport Account,TRANACC,22/05/2020,V749589,4,AB Components Ltd,283.66
Broxtowe Borough Council,http://statistics.data.gov.uk/id/local-authority/37UD,Works,WORKS,Waste Management,WASTMAN,Strategic Director / Enviromental Services,Repairs / Servicing  - Materials,5520,Transport Account,TRANACC,22/05/2020,V749589,8.18,AB Components Ltd,283.66
Broxtowe Borough Council,http://statistics.data.gov.uk/id/local-authority/37UD,Works,WORKS,Waste Management,WASTMAN,Strategic Director / Enviromental Services,Repairs / Servicing  - Materials,5520,Transport Account,TRANACC,22/05/2020,V749589,8.66,AB Components Ltd,283.66
Broxtowe Borough Council,http://statistics.data.gov.uk/id/local-authority/37UD,Works,WORKS,Waste Management,WASTMAN,Strategic Director / Enviromental Services,Repairs / Servicing  - Materials,5520,Transport Account,TRANACC,22/05/2020,V749589,9.48,AB Components Ltd,283.66
Broxtowe Borough Council,http://statistics.data.gov.uk/id/local-authority/37UD,Works,WORKS,Waste Management,WASTMAN,Strategic Director / Enviromental Services,Repairs / Servicing  - Materials,5520,Transport Account,TRANACC,22/05/2020,V749589,3.41,AB Components Ltd,283.66
Broxtowe Borough Council,http://statistics.data.gov.uk/id/local-authority/37UD,Works,WORKS,Waste Management,WASTMAN,Strategic Director / Enviromental Services,Repairs / Servicing  - Materials,5520,Transport Account,TRANACC,22/05/2020,V749871,48,AB Components Ltd,283.66
Broxtowe Borough Council,http://statistics.data.gov.uk/id/local-authority/37UD,Works,WORKS,Waste Management,WASTMAN,Strategic Director / Enviromental Services,Repairs / Servicing  - Materials,5520,Transport Account,TRANACC,22/05/2020,V749589,40.36,AB Components Ltd,283.66
Broxtowe Borough Council,http://statistics.data.gov.uk/id/local-authority/37UD,Works,WORKS,Waste Management,WASTMAN,Strategic Director / Enviromental Services,Repairs / Servicing  - Materials,5520,Transport Account,TRANACC,22/05/2020,V749871,26.8,AB Components Ltd,283.66
Broxtowe Borough Council,http://statistics.data.gov.uk/id/local-authority/37UD,Works,WORKS,Waste Management,WASTMAN,Strategic Director / Enviromental Services,Repairs / Servicing  - Materials,5520,Transport Account,TRANACC,22/05/2020,V749871,20,AB Components Ltd,283.66
Broxtowe Borough Council,http://statistics.data.gov.uk/id/local-authority/37UD,Works,WORKS,Waste Management,WASTMAN,Strategic Director / Enviromental Services,Repairs / Servicing  - Materials,5520,Transport Account,TRANACC,22/05/2020,V749589,30.27,AB Components Ltd,283.66
Broxtowe Borough Council,http://statistics.data.gov.uk/id/local-authority/37UD,Works,WORKS,Waste Management,WASTMAN,Strategic Director / Enviromental Services,Repairs / Servicing  - Materials,5520,Transport Account,TRANACC,22/05/2020,V749871,30.27,AB Components Ltd,283.66
Broxtowe Borough Council,http://statistics.data.gov.uk/id/local-authority/37UD,Works,WORKS,Waste Management,WASTMAN,Strategic Director / Enviromental Services,Repairs / Servicing  - Materials,5520,Transport Account,TranAcc,13/11/2020,V764437,60.54,AB Components Ltd,277.32
Broxtowe Borough Council,http://statistics.data.gov.uk/id/local-authority/37UD,Works,WORKS,Repairs & Maintenance,REPMAIN,Strategic Director / Enviromental Services,Repairs / Servicing  - Materials,5520,Transport Account,TranAcc,13/11/2020,V764485,48,AB Components Ltd,277.32
Broxtowe Borough Council,http://statistics.data.gov.uk/id/local-authority/37UD,Works,WORKS,Repairs & Maintenance,REPMAIN,Strategic Director / Enviromental Services,Repairs / Servicing  - Materials,5520,Transport Account,TranAcc,13/11/2020,V764484,10.78,AB Components Ltd,277.32
Broxtowe Borough Council,http://statistics.data.gov.uk/id/local-authority/37UD,Works,WORKS,Repairs & Maintenance,REPMAIN,Strategic Director / Enviromental Services,Repairs / Servicing  - Materials,5520,Transport Account,TranAcc,13/11/2020,V764485,26.8,AB Components Ltd,277.32
Broxtowe Borough Council,http://statistics.data.gov.uk/id/local-authority/37UD,Works,WORKS,Repairs & Maintenance,REPMAIN,Strategic Director / Enviromental Services,Repairs / Servicing  - Materials,5520,Transport Account,TranAcc,13/11/2020,V764484,9.04,AB Components Ltd,277.32
Broxtowe Borough Council,http://statistics.data.gov.uk/id/local-authority/37UD,Works,WORKS,Repairs & Maintenance,REPMAIN,Strategic Director / Enviromental Services,Repairs / Servicing  - Materials,5520,Transport Account,TranAcc,13/11/2020,V764485,39.63,AB Components Ltd,277.32
Broxtowe Borough Council,http://statistics.data.gov.uk/id/local-authority/37UD,Works,WORKS,Repairs & Maintenance,REPMAIN,Strategic Director / Enviromental Services,Repairs / Servicing  - Materials,5520,Transport Account,TranAcc,13/11/2020,V764484,3.46,AB Components Ltd,277.32
Broxtowe Borough Council,http://statistics.data.gov.uk/id/local-authority/37UD,Works,WORKS,Repairs & Maintenance,REPMAIN,Strategic Director / Enviromental Services,Repairs / Servicing  - Materials,5520,Transport Account,TranAcc,13/11/2020,V764485,7.2,AB Components Ltd,277.32
Broxtowe Borough Council,http://statistics.data.gov.uk/id/local-authority/37UD,Technical,TECHNICA,Highways,HIGHWYS,Strategic Director / Enviromental Services,Repairs / Servicing  - Materials,5520,Transport Account,TranAcc,13/11/2020,V764483,25.64,AB Components Ltd,277.32
Broxtowe Borough Council,http://statistics.data.gov.uk/id/local-authority/37UD,Works,WORKS,Waste Management,WASTMAN,Strategic Director / Enviromental Services,Repairs / Servicing  - Materials,5520,Transport Account,TranAcc,12/02/2021,V777924,31.5,AB Components Ltd,702.17
Broxtowe Borough Council,http://statistics.data.gov.uk/id/local-authority/37UD,Works,WORKS,Waste Management,WASTMAN,Strategic Director / Enviromental Services,Repairs / Servicing  - Materials,5520,Transport Account,TranAcc,12/02/2021,V777927,40.64,AB Components Ltd,702.17
Broxtowe Borough Council,http://statistics.data.gov.uk/id/local-authority/37UD,Works,WORKS,Waste Management,WASTMAN,Strategic Director / Enviromental Services,Repairs / Servicing  - Materials,5520,Transport Account,TranAcc,12/02/2021,V778089,26.8,AB Components Ltd,702.17
Broxtowe Borough Council,http://statistics.data.gov.uk/id/local-authority/37UD,Works,WORKS,Waste Management,WASTMAN,Strategic Director / Enviromental Services,Repairs / Servicing  - Materials,5520,Transport Account,TranAcc,12/02/2021,V777924,390,AB Components Ltd,702.17
Broxtowe Borough Council,http://statistics.data.gov.uk/id/local-authority/37UD,Works,WORKS,Waste Management,WASTMAN,Strategic Director / Enviromental Services,Repairs / Servicing  - Materials,5520,Transport Account,TranAcc,12/02/2021,V777924,30.27,AB Components Ltd,702.17
Broxtowe Borough Council,http://statistics.data.gov.uk/id/local-authority/37UD,Works,WORKS,Waste Management,WASTMAN,Strategic Director / Enviromental Services,Repairs / Servicing  - Materials,5520,Transport Account,TranAcc,12/02/2021,V778089,30.27,AB Components Ltd,702.17
Broxtowe Borough Council,http://statistics.data.gov.uk/id/local-authority/37UD,Works,WORKS,Waste Management,WASTMAN,Strategic Director / Enviromental Services,Repairs / Servicing  - Materials,5520,Transport Account,TranAcc,12/02/2021,V777927,30.27,AB Components Ltd,702.17
Broxtowe Borough Council,http://statistics.data.gov.uk/id/local-authority/37UD,Works,WORKS,Waste Management,WASTMAN,Strategic Director / Enviromental Services,Repairs / Servicing  - Materials,5520,Transport Account,TranAcc,12/02/2021,V778089,5.4,AB Components Ltd,702.17
Broxtowe Borough Council,http://statistics.data.gov.uk/id/local-authority/37UD,Works,WORKS,Waste Management,WASTMAN,Strategic Director / Enviromental Services,Repairs / Servicing  - Materials,5520,Transport Account,TranAcc,05/03/2021,V780461,4.96,AB Components Ltd,397.39
Broxtowe Borough Council,http://statistics.data.gov.uk/id/local-authority/37UD,Works,WORKS,Waste Management,WASTMAN,Strategic Director / Enviromental Services,Repairs / Servicing  - Materials,5520,Transport Account,TranAcc,05/03/2021,V780467,31.5,AB Components Ltd,397.39
Broxtowe Borough Council,http://statistics.data.gov.uk/id/local-authority/37UD,Works,WORKS,Waste Management,WASTMAN,Strategic Director / Enviromental Services,Repairs / Servicing  - Materials,5520,Transport Account,TranAcc,05/03/2021,V780467,80.4,AB Components Ltd,397.39
Broxtowe Borough Council,http://statistics.data.gov.uk/id/local-authority/37UD,Works,WORKS,Waste Management,WASTMAN,Strategic Director / Enviromental Services,Repairs / Servicing  - Materials,5520,Transport Account,TranAcc,05/03/2021,V780467,4.82,AB Components Ltd,397.39
Broxtowe Borough Council,http://statistics.data.gov.uk/id/local-authority/37UD,Works,WORKS,Waste Management,WASTMAN,Strategic Director / Enviromental Services,Repairs / Servicing  - Materials,5520,Transport Account,TranAcc,05/03/2021,V780467,66.6,AB Components Ltd,397.39
Broxtowe Borough Council,http://statistics.data.gov.uk/id/local-authority/37UD,Works,WORKS,Waste Management,WASTMAN,Strategic Director / Enviromental Services,Repairs / Servicing  - Materials,5520,Transport Account,TranAcc,05/03/2021,V780467,39.63,AB Components Ltd,397.39
Broxtowe Borough Council,http://statistics.data.gov.uk/id/local-authority/37UD,Works,WORKS,Waste Management,WASTMAN,Strategic Director / Enviromental Services,Repairs / Servicing  - Materials,5520,Transport Account,TranAcc,05/03/2021,V780467,7.63,AB Components Ltd,397.39
Broxtowe Borough Council,http://statistics.data.gov.uk/id/local-authority/37UD,Works,WORKS,Waste Management,WASTMAN,Strategic Director / Enviromental Services,Repairs / Servicing  - Materials,5520,Transport Account,TranAcc,05/03/2021,V780467,59.02,AB Components Ltd,397.39
Broxtowe Borough Council,http://statistics.data.gov.uk/id/local-authority/37UD,Works,WORKS,Waste Management,WASTMAN,Strategic Director / Enviromental Services,Repairs / Servicing  - Materials,5520,Transport Account,TranAcc,05/03/2021,V780467,36.6,AB Components Ltd,397.39
Broxtowe Borough Council,http://statistics.data.gov.uk/id/local-authority/37UD,Finance,FINANCE,Finance Services,FINANCE,Deputy Chief Executive / Finance Services,Grants,3700,Other Supplies & Services,OtherSS,27/11/2020,V766352,533.71,ABBEY VIEW LODGE,3567.85
Broxtowe Borough Council,http://statistics.data.gov.uk/id/local-authority/37UD,Finance,FINANCE,Finance Services,FINANCE,Deputy Chief Executive / Finance Services,Grants,3700,Other Supplies & Services,OtherSS,27/11/2020,V766369,200.14,ABBEY VIEW LODGE,3567.85
Broxtowe Borough Council,http://statistics.data.gov.uk/id/local-authority/37UD,Finance,FINANCE,Finance Services,FINANCE,Deputy Chief Executive / Finance Services,Grants,3700,Other Supplies & Services,OtherSS,27/11/2020,V766395,"1,334.00",ABBEY VIEW LODGE,3567.85
Broxtowe Borough Council,http://statistics.data.gov.uk/id/local-authority/37UD,Finance,FINANCE,Finance Services,FINANCE,Deputy Chief Executive / Finance Services,Grants,3700,Other Supplies & Services,OtherSS,27/11/2020,V766460,"1,500.00",ABBEY VIEW LODGE,3567.85
Broxtowe Borough Council,http://statistics.data.gov.uk/id/local-authority/37UD,Finance,FINANCE,Finance Services,FINANCE,Deputy Chief Executive / Finance Services,Covid Grants Closed,3703,Obsolete Supplies,ObsSupp,21/12/2020,V770237,667,ABBEY VIEW LODGE,1334
Broxtowe Borough Council,http://statistics.data.gov.uk/id/local-authority/37UD,Finance,FINANCE,Finance Services,FINANCE,Deputy Chief Executive / Finance Services,Covid Grants Closed,3703,Obsolete Supplies,ObsSupp,21/12/2020,V770042,667,ABBEY VIEW LODGE,1334
Broxtowe Borough Council,http://statistics.data.gov.uk/id/local-authority/37UD,Finance,FINANCE,Finance Services,FINANCE,Deputy Chief Executive / Finance Services,Grants,3700,Other Supplies & Services,OtherSS,21/12/2020,V770311,750,ABBEY VIEW LODGE,750
Broxtowe Borough Council,http://statistics.data.gov.uk/id/local-authority/37UD,Finance,FINANCE,Regulatory Services,REG,Deputy Chief Executive / Finance Services,Grants,3700,Other Supplies & Services,OtherSS,22/01/2021,V773420,238.21,ABBEY VIEW LODGE,7539.21
Broxtowe Borough Council,http://statistics.data.gov.uk/id/local-authority/37UD,Finance,FINANCE,Regulatory Services,REG,Deputy Chief Executive / Finance Services,Grants,3700,Other Supplies & Services,OtherSS,22/01/2021,V773943,"2,001.00",ABBEY VIEW LODGE,7539.21
Broxtowe Borough Council,http://statistics.data.gov.uk/id/local-authority/37UD,Finance,FINANCE,Regulatory Services,REG,Deputy Chief Executive / Finance Services,Covid Closed lockdown payment,3704,Other Supplies & Services,OtherSS,22/01/2021,V774465,"4,000.00",ABBEY VIEW LODGE,7539.21
Broxtowe Borough Council,http://statistics.data.gov.uk/id/local-authority/37UD,Finance,FINANCE,Regulatory Services,REG,Deputy Chief Executive / Finance Services,Grants,3700,Other Supplies & Services,OtherSS,22/01/2021,V775006,"1,300.00",ABBEY VIEW LODGE,7539.21
Broxtowe Borough Council,http://statistics.data.gov.uk/id/local-authority/37UD,Finance,FINANCE,Regulatory Services,REG,Deputy Chief Executive / Finance Services,Grants,3700,Other Supplies & Services,OtherSS,03/03/2021,V780804,2096,ABBEY VIEW LODGE,2096
Broxtowe Borough Council,http://statistics.data.gov.uk/id/local-authority/37UD,GF Housing,GFHSG,GF Housing,GFHSG,"Housing, Health & Leisure / Health & Safety",Grants,9006,Capital Expenditure,CapExp,17/05/2019,V712516,9579,Abbott & Mason Building & Joinery Contractors Ltd,9579
Broxtowe Borough Council,http://statistics.data.gov.uk/id/local-authority/37UD,GF Housing,GFHSG,GF Housing,GFHSG,"Housing, Health & Leisure / Health & Safety",Grants,9006,Capital Expenditure,CapExp,31/05/2019,V713665,1563.4,Abbott & Mason Building & Joinery Contractors Ltd,1563.4
Broxtowe Borough Council,http://statistics.data.gov.uk/id/local-authority/37UD,GF Housing,GFHSG,GF Housing,GFHSG,Deputy Chief Executive / Health and Safety,Grants,9006,Capital Expenditure,CapExp,13/09/2019,V725229,15972,Abbott & Mason Building & Joinery Contractors Ltd,15972
Broxtowe Borough Council,http://statistics.data.gov.uk/id/local-authority/37UD,GF Housing,GFHSG,GF Housing,GFHSG,Chief Executive  / Enviromental Health,Grants,9006,Capital Expenditure,CapExp,14/02/2020,V739632,22185.66,Abbott & Mason Building & Joinery Contractors Ltd,24525.89
Broxtowe Borough Council,http://statistics.data.gov.uk/id/local-authority/37UD,General,GEN,General,GEN,Chief Executive  / Enviromental Health,DFG client cont`n,9378,Miscellaneous,Msc,14/02/2020,V739632,2340.23,Abbott & Mason Building & Joinery Contractors Ltd,24525.89
Broxtowe Borough Council,http://statistics.data.gov.uk/id/local-authority/37UD,Finance,FINANCE,Regulatory Services,REG,Deputy Chief Executive / Finance Services,Grants,3700,Other Supplies & Services,OtherSS,08/02/2021,V777725,1000,Abdul hameed barki,1000
Broxtowe Borough Council,http://statistics.data.gov.uk/id/local-authority/37UD,Works,WORKS,Other Works,WKSOTHER,Tech and Works / Works Administration Beeston,Repairs & Maintenance,1000,Central Pot,Central,26/04/2019,V709338,2145.6,Ackroyd Electrical,2574.72
Broxtowe Borough Council,http://statistics.data.gov.uk/id/local-authority/37UD,Community Development,COMDEV,Industrial Development,INDDEV,Tech and Works / Works Administration Beeston,Repairs & Maintenance,1000,Central Pot,Central,03/05/2019,V711279,1119.66,Ackroyd Electrical,2048.61
Broxtowe Borough Council,http://statistics.data.gov.uk/id/local-authority/37UD,Community Development,COMDEV,Industrial Development,INDDEV,Tech and Works / Works Administration Beeston,Repairs & Maintenance,1000,Central Pot,Central,03/05/2019,V711280,587.52,Ackroyd Electrical,2048.61
Broxtowe Borough Council,http://statistics.data.gov.uk/id/local-authority/37UD,Chief Executive,CE,ICT & Customer Services,ICT,Assistant Chief Executive / IT,Printing & Stationery,3300,Printing,Print,12/04/2019,V708574,267.42,ACS Business Supplies,2788.46
Broxtowe Borough Council,http://statistics.data.gov.uk/id/local-authority/37UD,Bramcote Crematorium,BCREM,Bramcote Crematorium,BCREM,Bramcote Crematorium / Bramcote Crematorium,Printing & Stationery,3300,Printing,Print,10/05/2019,V711835,469.45,ACS Business Supplies,1253.2
Broxtowe Borough Council,http://statistics.data.gov.uk/id/local-authority/37UD,Bramcote Crematorium,BCREM,Bramcote Crematorium,BCREM,Bramcote Crematorium / Bramcote Crematorium,Printing & Stationery,3300,Printing,Print,10/05/2019,V711957,425.88,ACS Business Supplies,1253.2
Broxtowe Borough Council,http://statistics.data.gov.uk/id/local-authority/37UD,Resources,RES,Resources,RES,Assistant Chief Executive / IT,Equipment,9004,Capital Expenditure,CapExp,17/05/2019,V712628,1279,ACS Business Supplies,1524.02
Broxtowe Borough Council,http://statistics.data.gov.uk/id/local-authority/37UD,Bramcote Crematorium,BCREM,Bramcote Crematorium,BCREM,Deputy Chief Executive / Bramcote Crematorium,Printing & Stationery,3300,Printing,Print,12/07/2019,V718702,1099.95,ACS Business Supplies,7919.94
Broxtowe Borough Council,http://statistics.data.gov.uk/id/local-authority/37UD,Resources,RES,Resources,RES,Strategic Director / IT Services,Equipment,9004,Capital Expenditure,CapExp,12/07/2019,V718856,5500,ACS Business Supplies,7919.94
Broxtowe Borough Council,http://statistics.data.gov.uk/id/local-authority/37UD,Chief Executive,CE,ICT & Customer Services,ICT,Strategic Director / IT Services,Printing & Stationery,3300,Printing,Print,26/07/2019,V719396,149.9,ACS Business Supplies,3321.62
Broxtowe Borough Council,http://statistics.data.gov.uk/id/local-authority/37UD,Chief Executive,CE,ICT & Customer Services,ICT,Strategic Director / IT Services,Printing & Stationery,3300,Printing,Print,26/07/2019,V719396,519,ACS Business Supplies,3321.62
Broxtowe Borough Council,http://statistics.data.gov.uk/id/local-authority/37UD,Chief Executive,CE,ICT & Customer Services,ICT,Strategic Director / IT Services,Printing & Stationery,3300,Printing,Print,26/07/2019,V719396,59.9,ACS Business Supplies,3321.62
Broxtowe Borough Council,http://statistics.data.gov.uk/id/local-authority/37UD,Chief Executive,CE,ICT & Customer Services,ICT,Strategic Director / IT Services,Printing & Stationery,3300,Printing,Print,26/07/2019,V719396,29.9,ACS Business Supplies,3321.62
Broxtowe Borough Council,http://statistics.data.gov.uk/id/local-authority/37UD,Chief Executive,CE,ICT & Customer Services,ICT,Strategic Director / IT Services,Printing & Stationery,3300,Printing,Print,26/07/2019,V719396,77.69,ACS Business Supplies,3321.62
Broxtowe Borough Council,http://statistics.data.gov.uk/id/local-authority/37UD,Chief Executive,CE,ICT & Customer Services,ICT,Strategic Director / IT Services,Printing & Stationery,3300,Printing,Print,26/07/2019,V719396,77.69,ACS Business Supplies,3321.62
Broxtowe Borough Council,http://statistics.data.gov.uk/id/local-authority/37UD,Chief Executive,CE,ICT & Customer Services,ICT,Strategic Director / IT Services,Printing & Stationery,3300,Printing,Print,26/07/2019,V719396,128,ACS Business Supplies,3321.62
Broxtowe Borough Council,http://statistics.data.gov.uk/id/local-authority/37UD,Chief Executive,CE,ICT & Customer Services,ICT,Strategic Director / IT Services,Printing & Stationery,3300,Printing,Print,26/07/2019,V719396,64,ACS Business Supplies,3321.62
Broxtowe Borough Council,http://statistics.data.gov.uk/id/local-authority/37UD,Chief Executive,CE,ICT & Customer Services,ICT,Strategic Director / IT Services,Printing & Stationery,3300,Printing,Print,26/07/2019,V719396,192,ACS Business Supplies,3321.62
Broxtowe Borough Council,http://statistics.data.gov.uk/id/local-authority/37UD,Chief Executive,CE,ICT & Customer Services,ICT,Strategic Director / IT Services,Printing & Stationery,3300,Printing,Print,26/07/2019,V719396,128,ACS Business Supplies,3321.62
Broxtowe Borough Council,http://statistics.data.gov.uk/id/local-authority/37UD,Chief Executive,CE,ICT & Customer Services,ICT,Strategic Director / IT Services,Printing & Stationery,3300,Printing,Print,26/07/2019,V719396,128,ACS Business Supplies,3321.62
Broxtowe Borough Council,http://statistics.data.gov.uk/id/local-authority/37UD,Chief Executive,CE,ICT & Customer Services,ICT,Strategic Director / IT Services,Printing & Stationery,3300,Printing,Print,26/07/2019,V719396,64,ACS Business Supplies,3321.62
Broxtowe Borough Council,http://statistics.data.gov.uk/id/local-authority/37UD,Chief Executive,CE,ICT & Customer Services,ICT,Strategic Director / IT Services,Printing & Stationery,3300,Printing,Print,26/07/2019,V719396,128,ACS Business Supplies,3321.62
Broxtowe Borough Council,http://statistics.data.gov.uk/id/local-authority/37UD,Chief Executive,CE,ICT & Customer Services,ICT,Strategic Director / IT Services,Printing & Stationery,3300,Printing,Print,26/07/2019,V719396,125.9,ACS Business Supplies,3321.62
Broxtowe Borough Council,http://statistics.data.gov.uk/id/local-authority/37UD,Chief Executive,CE,ICT & Customer Services,ICT,Strategic Director / IT Services,Printing & Stationery,3300,Printing,Print,26/07/2019,V719396,77.69,ACS Business Supplies,3321.62
Broxtowe Borough Council,http://statistics.data.gov.uk/id/local-authority/37UD,Chief Executive,CE,ICT & Customer Services,ICT,Strategic Director / IT Services,Printing & Stationery,3300,Printing,Print,26/07/2019,V719396,3.99,ACS Business Supplies,3321.62
Broxtowe Borough Council,http://statistics.data.gov.uk/id/local-authority/37UD,Chief Executive,CE,ICT & Customer Services,ICT,Strategic Director / IT Services,Printing & Stationery,3300,Printing,Print,26/07/2019,V719396,7.53,ACS Business Supplies,3321.62
Broxtowe Borough Council,http://statistics.data.gov.uk/id/local-authority/37UD,Chief Executive,CE,ICT & Customer Services,ICT,Strategic Director / IT Services,Printing & Stationery,3300,Printing,Print,26/07/2019,V719396,23.94,ACS Business Supplies,3321.62
Broxtowe Borough Council,http://statistics.data.gov.uk/id/local-authority/37UD,Chief Executive,CE,ICT & Customer Services,ICT,Strategic Director / IT Services,Printing & Stationery,3300,Printing,Print,26/07/2019,V719396,11.94,ACS Business Supplies,3321.62
Broxtowe Borough Council,http://statistics.data.gov.uk/id/local-authority/37UD,Chief Executive,CE,ICT & Customer Services,ICT,Strategic Director / IT Services,Printing & Stationery,3300,Printing,Print,26/07/2019,V719396,34.95,ACS Business Supplies,3321.62
Broxtowe Borough Council,http://statistics.data.gov.uk/id/local-authority/37UD,Chief Executive,CE,ICT & Customer Services,ICT,Strategic Director / IT Services,Hardware Maintenance,3434,Other Supplies & Services,OtherSS,26/07/2019,V719728,736,ACS Business Supplies,3321.62
Broxtowe Borough Council,http://statistics.data.gov.uk/id/local-authority/37UD,Chief Executive,CE,ICT & Customer Services,ICT,Strategic Director / IT Services,Printing & Stationery,3300,Printing,Print,02/08/2019,V720413,714,ACS Business Supplies,899.82
Broxtowe Borough Council,http://statistics.data.gov.uk/id/local-authority/37UD,Bramcote Crematorium,BCREM,Bramcote Crematorium,BCREM,Deputy Chief Executive / Bramcote Crematorium,Equipment Tools and Materials,3006,Equipment,Equip,02/08/2019,V720202,35.85,ACS Business Supplies,899.82
Broxtowe Borough Council,http://statistics.data.gov.uk/id/local-authority/37UD,Chief Executive,CE,ICT & Customer Services,ICT,Deputy Chief Executive / IT,Hardware Maintenance,3434,Other Supplies & Services,OtherSS,06/09/2019,V724586,244,ACS Business Supplies,292.8
Broxtowe Borough Council,http://statistics.data.gov.uk/id/local-authority/37UD,Bramcote Crematorium,BCREM,Bramcote Crematorium,BCREM,Deputy Chief Executive / Bramcote Crematorium,Equipment Tools and Materials,3006,Equipment,Equip,20/09/2019,V725236,99.98,ACS Business Supplies,392.93
Broxtowe Borough Council,http://statistics.data.gov.uk/id/local-authority/37UD,Bramcote Crematorium,BCREM,Bramcote Crematorium,BCREM,Deputy Chief Executive / Bramcote Crematorium,Equipment Tools and Materials,3006,Equipment,Equip,20/09/2019,V725236,45,ACS Business Supplies,392.93
Broxtowe Borough Council,http://statistics.data.gov.uk/id/local-authority/37UD,Bramcote Crematorium,BCREM,Bramcote Crematorium,BCREM,Deputy Chief Executive / Bramcote Crematorium,Equipment Tools and Materials,3006,Equipment,Equip,20/09/2019,V725236,51.74,ACS Business Supplies,392.93
Broxtowe Borough Council,http://statistics.data.gov.uk/id/local-authority/37UD,Bramcote Crematorium,BCREM,Bramcote Crematorium,BCREM,Deputy Chief Executive / Bramcote Crematorium,Printing & Stationery,3300,Printing,Print,20/09/2019,V725236,7.49,ACS Business Supplies,392.93
Broxtowe Borough Council,http://statistics.data.gov.uk/id/local-authority/37UD,Bramcote Crematorium,BCREM,Bramcote Crematorium,BCREM,Deputy Chief Executive / Bramcote Crematorium,Printing & Stationery,3300,Printing,Print,20/09/2019,V725236,10.95,ACS Business Supplies,392.93
Broxtowe Borough Council,http://statistics.data.gov.uk/id/local-authority/37UD,Bramcote Crematorium,BCREM,Bramcote Crematorium,BCREM,Deputy Chief Executive / Bramcote Crematorium,Printing & Stationery,3300,Printing,Print,20/09/2019,V725236,21.9,ACS Business Supplies,392.93
Broxtowe Borough Council,http://statistics.data.gov.uk/id/local-authority/37UD,Bramcote Crematorium,BCREM,Bramcote Crematorium,BCREM,Deputy Chief Executive / Bramcote Crematorium,Printing & Stationery,3300,Printing,Print,20/09/2019,V725236,15.96,ACS Business Supplies,392.93
Broxtowe Borough Council,http://statistics.data.gov.uk/id/local-authority/37UD,Bramcote Crematorium,BCREM,Bramcote Crematorium,BCREM,Deputy Chief Executive / Bramcote Crematorium,Printing & Stationery,3300,Printing,Print,20/09/2019,V725236,9.95,ACS Business Supplies,392.93
Broxtowe Borough Council,http://statistics.data.gov.uk/id/local-authority/37UD,Bramcote Crematorium,BCREM,Bramcote Crematorium,BCREM,Deputy Chief Executive / Bramcote Crematorium,Printing & Stationery,3300,Printing,Print,20/09/2019,V725236,19.9,ACS Business Supplies,392.93
Broxtowe Borough Council,http://statistics.data.gov.uk/id/local-authority/37UD,Bramcote Crematorium,BCREM,Bramcote Crematorium,BCREM,Deputy Chief Executive / Bramcote Crematorium,Printing & Stationery,3300,Printing,Print,20/09/2019,V725236,5.99,ACS Business Supplies,392.93
Broxtowe Borough Council,http://statistics.data.gov.uk/id/local-authority/37UD,Bramcote Crematorium,BCREM,Bramcote Crematorium,BCREM,Deputy Chief Executive / Bramcote Crematorium,Printing & Stationery,3300,Printing,Print,20/09/2019,V725236,29.72,ACS Business Supplies,392.93
Broxtowe Borough Council,http://statistics.data.gov.uk/id/local-authority/37UD,Bramcote Crematorium,BCREM,Bramcote Crematorium,BCREM,Deputy Chief Executive / Bramcote Crematorium,Printing & Stationery,3300,Printing,Print,20/09/2019,V725236,8.86,ACS Business Supplies,392.93
Broxtowe Borough Council,http://statistics.data.gov.uk/id/local-authority/37UD,Bramcote Crematorium,BCREM,Bramcote Crem Reserves,BCRes,Deputy Chief Executive / Bramcote Crematorium,Printing & Stationery,3300,Printing,Print,01/11/2019,V729046,303.22,ACS Business Supplies,363.86
Broxtowe Borough Council,http://statistics.data.gov.uk/id/local-authority/37UD,Chief Executive,CE,ICT & Customer Services,ICT,Strategic Director / IT Services,Printing & Stationery,3300,Printing,Print,20/12/2019,V734207,725.25,ACS Business Supplies,2547.3
Broxtowe Borough Council,http://statistics.data.gov.uk/id/local-authority/37UD,Chief Executive,CE,ICT & Customer Services,ICT,Strategic Director / IT Services,Computer Equipment Supplies,3438,Equipment,Equip,20/12/2019,V734210,314.25,ACS Business Supplies,2547.3
Broxtowe Borough Council,http://statistics.data.gov.uk/id/local-authority/37UD,Chief Executive,CE,ICT & Customer Services,ICT,Strategic Director / IT Services,Computer Equipment Supplies,3438,Equipment,Equip,20/12/2019,V734210,598.5,ACS Business Supplies,2547.3
Broxtowe Borough Council,http://statistics.data.gov.uk/id/local-authority/37UD,Chief Executive,CE,ICT & Customer Services,ICT,Strategic Director / IT Services,Hardware Maintenance,3434,Other Supplies & Services,OtherSS,13/03/2020,V742480,983.7,ACS Business Supplies,870.84
Broxtowe Borough Council,http://statistics.data.gov.uk/id/local-authority/37UD,Bramcote Crematorium,BCREM,Bramcote Crematorium,BCREM,Deputy Chief Executive / Bramcote Crematorium,Printing & Stationery,3300,Printing,Print,13/03/2020,V736172,-258,ACS Business Supplies,870.84
Broxtowe Borough Council,http://statistics.data.gov.uk/id/local-authority/37UD,Resources,RES,Resources,RES,Strategic Director / IT Services,Equipment,9004,Capital Expenditure,CapExp,09/04/2020,V744976,685.33,ACS Business Supplies,822.4
Broxtowe Borough Council,http://statistics.data.gov.uk/id/local-authority/37UD,Bramcote Crematorium,BCREM,Bramcote Crematorium,BCREM,Deputy Chief Executive / Bramcote Crematorium,Cleaning Materials,1510,Other Prem,OthPrem,19/06/2020,V748837,200,ACS Business Supplies,4731.89
Broxtowe Borough Council,http://statistics.data.gov.uk/id/local-authority/37UD,Bramcote Crematorium,BCREM,Bramcote Crematorium,BCREM,Deputy Chief Executive / Bramcote Crematorium,Equipment Tools and Materials,3006,Equipment,Equip,19/06/2020,V751003,49.95,ACS Business Supplies,4731.89
Broxtowe Borough Council,http://statistics.data.gov.uk/id/local-authority/37UD,Bramcote Crematorium,BCREM,Bramcote Crematorium,BCREM,Deputy Chief Executive / Bramcote Crematorium,Equipment Tools and Materials,3006,Equipment,Equip,19/06/2020,V750991,848.84,ACS Business Supplies,4731.89
Broxtowe Borough Council,http://statistics.data.gov.uk/id/local-authority/37UD,Bramcote Crematorium,BCREM,Bramcote Crematorium,BCREM,Deputy Chief Executive / Bramcote Crematorium,Cleaning Materials,1510,Other Prem,OthPrem,19/06/2020,V748835,"1,825.38",ACS Business Supplies,4731.89
Broxtowe Borough Council,http://statistics.data.gov.uk/id/local-authority/37UD,Bramcote Crematorium,BCREM,Bramcote Crematorium,BCREM,Deputy Chief Executive / Bramcote Crematorium,Cleaning Materials,1510,Other Prem,OthPrem,19/06/2020,V748837,135.31,ACS Business Supplies,4731.89
Broxtowe Borough Council,http://statistics.data.gov.uk/id/local-authority/37UD,Bramcote Crematorium,BCREM,Bramcote Crematorium,BCREM,Deputy Chief Executive / Bramcote Crematorium,Cleaning Materials,1510,Other Prem,OthPrem,19/06/2020,V748837,349.5,ACS Business Supplies,4731.89
Broxtowe Borough Council,http://statistics.data.gov.uk/id/local-authority/37UD,Bramcote Crematorium,BCREM,Bramcote Crematorium,BCREM,Deputy Chief Executive / Bramcote Crematorium,Printing & Stationery,3300,Printing,Print,19/06/2020,V751004,339.41,ACS Business Supplies,4731.89
Broxtowe Borough Council,http://statistics.data.gov.uk/id/local-authority/37UD,Bramcote Crematorium,BCREM,Bramcote Crem Reserves,BCRes,Deputy Chief Executive / Bramcote Crematorium,Printing & Stationery,3300,Printing,Print,19/06/2020,V748834,194.85,ACS Business Supplies,4731.89
Broxtowe Borough Council,http://statistics.data.gov.uk/id/local-authority/37UD,Chief Executive,CE,ICT & Customer Services,ICT,Strategic Director / IT Services,Hardware Maintenance,3434,Other Supplies & Services,OtherSS,26/06/2020,V752187,"3,749.40",ACS Business Supplies,4512.42
Broxtowe Borough Council,http://statistics.data.gov.uk/id/local-authority/37UD,Chief Executive,CE,ICT & Customer Services,ICT,Strategic Director / IT Services,Hardware Maintenance,3434,Other Supplies & Services,OtherSS,26/06/2020,V752187,10.95,ACS Business Supplies,4512.42
Broxtowe Borough Council,http://statistics.data.gov.uk/id/local-authority/37UD,Chief Executive,CE,ICT & Customer Services,ICT,Strategic Director / IT Services,Hardware Maintenance,3434,Other Supplies & Services,OtherSS,03/07/2020,V753439,"1,897.50",ACS Business Supplies,2277
Broxtowe Borough Council,http://statistics.data.gov.uk/id/local-authority/37UD,Bramcote Crematorium,BCREM,Bramcote Crematorium,BCREM,Deputy Chief Executive / Bramcote Crematorium,Repairs & Maintenance,1000,Central Pot,Central,21/08/2020,V753423,870,ACS Business Supplies,1324.15
Broxtowe Borough Council,http://statistics.data.gov.uk/id/local-authority/37UD,Bramcote Crematorium,BCREM,Bramcote Crematorium,BCREM,Deputy Chief Executive / Bramcote Crematorium,Equipment Tools and Materials,3006,Equipment,Equip,21/08/2020,V753427,233.46,ACS Business Supplies,1324.15
Broxtowe Borough Council,http://statistics.data.gov.uk/id/local-authority/37UD,Chief Executive,CE,ICT & Customer Services,ICT,Strategic Director / IT Services,Hardware Maintenance,3434,Other Supplies & Services,OtherSS,02/10/2020,V760281,"3,561.42",ACS Business Supplies,5651.9
Broxtowe Borough Council,http://statistics.data.gov.uk/id/local-authority/37UD,Chief Executive,CE,ICT & Customer Services,ICT,Strategic Director / IT Services,Hardware Maintenance,3434,Other Supplies & Services,OtherSS,02/10/2020,V760281,800.8,ACS Business Supplies,5651.9
Broxtowe Borough Council,http://statistics.data.gov.uk/id/local-authority/37UD,Chief Executive,CE,ICT & Customer Services,ICT,Strategic Director / IT Services,Computer Equipment Supplies,3438,Equipment,Equip,02/10/2020,V760407,5.95,ACS Business Supplies,5651.9
Broxtowe Borough Council,http://statistics.data.gov.uk/id/local-authority/37UD,Chief Executive,CE,ICT & Customer Services,ICT,Strategic Director / IT Services,Computer Equipment Supplies,3438,Equipment,Equip,02/10/2020,V760407,217.1,ACS Business Supplies,5651.9
Broxtowe Borough Council,http://statistics.data.gov.uk/id/local-authority/37UD,Chief Executive,CE,ICT & Customer Services,ICT,Strategic Director / IT Services,Computer Equipment Supplies,3438,Equipment,Equip,02/10/2020,V760407,124.65,ACS Business Supplies,5651.9
Broxtowe Borough Council,http://statistics.data.gov.uk/id/local-authority/37UD,Bramcote Crematorium,BCREM,Bramcote Crematorium,BCREM,Deputy Chief Executive / Bramcote Crematorium,Cleaning Materials,1510,Other Prem,OthPrem,09/10/2020,V759423,"1,635.45",ACS Business Supplies,1977.49
Broxtowe Borough Council,http://statistics.data.gov.uk/id/local-authority/37UD,Bramcote Crematorium,BCREM,Bramcote Crematorium,BCREM,Deputy Chief Executive / Bramcote Crematorium,Printing & Stationery,3300,Printing,Print,09/10/2020,V759424,12.46,ACS Business Supplies,1977.49
Broxtowe Borough Council,http://statistics.data.gov.uk/id/local-authority/37UD,Chief Executive,CE,ICT & Customer Services,ICT,Strategic Director / IT Services,Hardware Maintenance,3434,Other Supplies & Services,OtherSS,23/10/2020,V762392,725.25,ACS Business Supplies,870.3
Broxtowe Borough Council,http://statistics.data.gov.uk/id/local-authority/37UD,Chief Executive,CE,ICT & Customer Services,ICT,Strategic Director / IT Services,Computer Equipment Supplies,3438,Equipment,Equip,30/11/2020,V767594,69.95,ACS Business Supplies,1103.94
Broxtowe Borough Council,http://statistics.data.gov.uk/id/local-authority/37UD,Chief Executive,CE,ICT & Customer Services,ICT,Strategic Director / IT Services,Computer Equipment Supplies,3438,Equipment,Equip,30/11/2020,V767594,850,ACS Business Supplies,1103.94
Broxtowe Borough Council,http://statistics.data.gov.uk/id/local-authority/37UD,Chief Executive,CE,ICT & Customer Services,ICT,Strategic Director / IT Services,Hardware Maintenance,3434,Other Supplies & Services,OtherSS,04/12/2020,V767888,561.6,ACS Business Supplies,673.92
Broxtowe Borough Council,http://statistics.data.gov.uk/id/local-authority/37UD,Chief Executive,CE,ICT & Customer Services,ICT,Strategic Director / IT Services,Hardware Maintenance,3434,Other Supplies & Services,OtherSS,01/02/2021,V776020,561.6,ACS Business Supplies,1889.47
Broxtowe Borough Council,http://statistics.data.gov.uk/id/local-authority/37UD,Chief Executive,CE,ICT & Customer Services,ICT,Strategic Director / IT Services,Hardware Maintenance,3434,Other Supplies & Services,OtherSS,01/02/2021,V776020,145,ACS Business Supplies,1889.47
Broxtowe Borough Council,http://statistics.data.gov.uk/id/local-authority/37UD,Chief Executive,CE,ICT & Customer Services,ICT,Strategic Director / IT Services,Hardware Maintenance,3434,Other Supplies & Services,OtherSS,01/02/2021,V776020,219.3,ACS Business Supplies,1889.47
Broxtowe Borough Council,http://statistics.data.gov.uk/id/local-authority/37UD,Chief Executive,CE,ICT & Customer Services,ICT,Strategic Director / IT Services,Hardware Maintenance,3434,Other Supplies & Services,OtherSS,01/02/2021,V776020,10.95,ACS Business Supplies,1889.47
Broxtowe Borough Council,http://statistics.data.gov.uk/id/local-authority/37UD,Chief Executive,CE,ICT & Customer Services,ICT,Strategic Director / IT Services,Hardware Maintenance,3434,Other Supplies & Services,OtherSS,01/02/2021,V776020,19.9,ACS Business Supplies,1889.47
Broxtowe Borough Council,http://statistics.data.gov.uk/id/local-authority/37UD,Chief Executive,CE,ICT & Customer Services,ICT,Strategic Director / IT Services,Hardware Maintenance,3434,Other Supplies & Services,OtherSS,01/02/2021,V776020,6.99,ACS Business Supplies,1889.47
Broxtowe Borough Council,http://statistics.data.gov.uk/id/local-authority/37UD,Chief Executive,CE,ICT & Customer Services,ICT,Strategic Director / IT Services,Computer Equipment Supplies,3438,Equipment,Equip,01/02/2021,V776014,5.81,ACS Business Supplies,1889.47
Broxtowe Borough Council,http://statistics.data.gov.uk/id/local-authority/37UD,Chief Executive,CE,ICT & Customer Services,ICT,Strategic Director / IT Services,Computer Equipment Supplies,3438,Equipment,Equip,01/02/2021,V776018,3.51,ACS Business Supplies,1889.47
Broxtowe Borough Council,http://statistics.data.gov.uk/id/local-authority/37UD,Chief Executive,CE,ICT & Customer Services,ICT,Strategic Director / IT Services,Computer Equipment Supplies,3438,Equipment,Equip,01/02/2021,V776018,219.3,ACS Business Supplies,1889.47
Broxtowe Borough Council,http://statistics.data.gov.uk/id/local-authority/37UD,Chief Executive,CE,ICT & Customer Services,ICT,Strategic Director / IT Services,Computer Equipment Supplies,3438,Equipment,Equip,01/02/2021,V776014,231.45,ACS Business Supplies,1889.47
Broxtowe Borough Council,http://statistics.data.gov.uk/id/local-authority/37UD,Chief Executive,CE,ICT & Customer Services,ICT,Strategic Director / IT Services,Computer Equipment Supplies,3438,Equipment,Equip,01/02/2021,V776014,139.8,ACS Business Supplies,1889.47
Broxtowe Borough Council,http://statistics.data.gov.uk/id/local-authority/37UD,Chief Executive,CE,ICT & Customer Services,ICT,Strategic Director / IT Services,Computer Equipment Supplies,3438,Equipment,Equip,01/02/2021,V776014,10.95,ACS Business Supplies,1889.47
Broxtowe Borough Council,http://statistics.data.gov.uk/id/local-authority/37UD,Chief Executive,CE,ICT & Customer Services,ICT,Strategic Director / IT Services,Computer Equipment Supplies,3438,Equipment,Equip,12/03/2021,V781278,150.57,ACS Business Supplies,512.15
Broxtowe Borough Council,http://statistics.data.gov.uk/id/local-authority/37UD,Chief Executive,CE,ICT & Customer Services,ICT,Strategic Director / IT Services,Computer Equipment Supplies,3438,Equipment,Equip,12/03/2021,V781278,6.62,ACS Business Supplies,512.15
Broxtowe Borough Council,http://statistics.data.gov.uk/id/local-authority/37UD,Chief Executive,CE,ICT & Customer Services,ICT,Strategic Director / IT Services,Computer Equipment Supplies,3438,Equipment,Equip,12/03/2021,V781278,101.08,ACS Business Supplies,512.15
Broxtowe Borough Council,http://statistics.data.gov.uk/id/local-authority/37UD,Chief Executive,CE,ICT & Customer Services,ICT,Strategic Director / IT Services,Computer Equipment Supplies,3438,Equipment,Equip,12/03/2021,V781278,157.57,ACS Business Supplies,512.15
Broxtowe Borough Council,http://statistics.data.gov.uk/id/local-authority/37UD,Chief Executive,CE,ICT & Customer Services,ICT,Strategic Director / IT Services,Computer Equipment Supplies,3438,Equipment,Equip,12/03/2021,V781278,10.95,ACS Business Supplies,512.15
Broxtowe Borough Council,http://statistics.data.gov.uk/id/local-authority/37UD,Bramcote Crematorium,BCREM,Bramcote Crem Reserves,BCRes,Bramcote Crematorium / Bramcote Crem,Printing & Stationery,3300,Printing,Print,19/03/2021,V782176,570.25,ACS Business Supplies,2007.43
Broxtowe Borough Council,http://statistics.data.gov.uk/id/local-authority/37UD,Bramcote Crematorium,BCREM,Bramcote Crematorium,BCREM,Bramcote Crematorium / Bramcote Crem,Cleaning Materials,1510,Other Prem,OthPrem,19/03/2021,V782183,1102.61,ACS Business Supplies,2007.43
Broxtowe Borough Council,http://statistics.data.gov.uk/id/local-authority/37UD,Chief Executive,CE,ICT & Customer Services,ICT,Strategic Director / IT Services,Computer Equipment Supplies,3438,Equipment,Equip,26/03/2021,V782998,129.95,ACS Business Supplies,1190.14
Broxtowe Borough Council,http://statistics.data.gov.uk/id/local-authority/37UD,Chief Executive,CE,ICT & Customer Services,ICT,Strategic Director / IT Services,Computer Equipment Supplies,3438,Equipment,Equip,26/03/2021,V782998,3,ACS Business Supplies,1190.14
Broxtowe Borough Council,http://statistics.data.gov.uk/id/local-authority/37UD,Chief Executive,CE,ICT & Customer Services,ICT,Strategic Director / IT Services,Computer Equipment Supplies,3438,Equipment,Equip,26/03/2021,V782999,170,ACS Business Supplies,1190.14
Broxtowe Borough Council,http://statistics.data.gov.uk/id/local-authority/37UD,Chief Executive,CE,ICT & Customer Services,ICT,Strategic Director / IT Services,Computer Equipment Supplies,3438,Equipment,Equip,26/03/2021,V782999,19.9,ACS Business Supplies,1190.14
Broxtowe Borough Council,http://statistics.data.gov.uk/id/local-authority/37UD,Chief Executive,CE,ICT & Customer Services,ICT,Strategic Director / IT Services,Computer Equipment Supplies,3438,Equipment,Equip,26/03/2021,V782999,15.98,ACS Business Supplies,1190.14
Broxtowe Borough Council,http://statistics.data.gov.uk/id/local-authority/37UD,Chief Executive,CE,ICT & Customer Services,ICT,Strategic Director / IT Services,Computer Equipment Supplies,3438,Equipment,Equip,26/03/2021,V782999,642,ACS Business Supplies,1190.14
Broxtowe Borough Council,http://statistics.data.gov.uk/id/local-authority/37UD,Chief Executive,CE,ICT & Customer Services,ICT,Strategic Director / IT Services,Computer Equipment Supplies,3438,Equipment,Equip,26/03/2021,V782999,10.95,ACS Business Supplies,1190.14
Broxtowe Borough Council,http://statistics.data.gov.uk/id/local-authority/37UD,General,GEN,General,GEN,"Housing, Health & Leisure / Housing Administration",Homelessness - Sanctuary Project,9272,Liabilities,Liabil,05/04/2019,V705328,695,Action Alarms (Midlands) Limited,834
Broxtowe Borough Council,http://statistics.data.gov.uk/id/local-authority/37UD,General,GEN,General,GEN,"Housing, Health & Leisure / Housing Administration",Homelessness - Sanctuary Project,9272,Liabilities,Liabil,07/06/2019,V714936,695,Action Alarms (Midlands) Limited,834
Broxtowe Borough Council,http://statistics.data.gov.uk/id/local-authority/37UD,Short Term Creditors,2STC,Short Term Creditors,2STC,Chief Executive  / CE Miscellaneous,Homelessness - Sanctuary Project,9272,Liabilities,Liabil,26/07/2019,V719706,695,Action Alarms (Midlands) Limited,834
Broxtowe Borough Council,http://statistics.data.gov.uk/id/local-authority/37UD,Housing,HOUS,Homelessness,HOME,Chief Executive  / Housing Operations,Miscellaneous Expenses,3800,Miscellaneous,Msc,21/02/2020,V739992,650,Action Alarms (Midlands) Limited,1614
Broxtowe Borough Council,http://statistics.data.gov.uk/id/local-authority/37UD,Housing,HOUS,Homelessness,HOME,Chief Executive  / Housing Operations,Miscellaneous Expenses,3800,Miscellaneous,Msc,21/02/2020,V739994,695,Action Alarms (Midlands) Limited,1614
Broxtowe Borough Council,http://statistics.data.gov.uk/id/local-authority/37UD,Housing,HOUS,Hostels,HOSTL,Chief Executive  / Housing repairs,Repairs & Maintenance,1000,Central Pot,Central,09/10/2020,V761744,650,Action Alarms (Midlands) Limited,1560
Broxtowe Borough Council,http://statistics.data.gov.uk/id/local-authority/37UD,Housing,HOUS,Hostels,HOSTL,Chief Executive  / Housing repairs,Repairs & Maintenance,1000,Central Pot,Central,09/10/2020,V761745,650,Action Alarms (Midlands) Limited,1560
Broxtowe Borough Council,http://statistics.data.gov.uk/id/local-authority/37UD,Technical Works,TW,Technical Works,TW,Planning / Planning Administration,New construction,9002,Capital Expenditure,CapExp,24/05/2019,V713159,2300,ADC Infrastructure Ltd,2760
Broxtowe Borough Council,http://statistics.data.gov.uk/id/local-authority/37UD,Technical Works,TW,Technical Works,TW,Chief Executive  / Neighbourhoods and Prosperity,New construction,9002,Capital Expenditure,CapExp,18/10/2019,V727225,2600,ADC Infrastructure Ltd,3120
Broxtowe Borough Council,http://statistics.data.gov.uk/id/local-authority/37UD,Finance,FINANCE,Admin Services,ADMIN,Finance / Finance Admin,Hire of Facilities,3223,Other Supplies & Services,OtherSS,05/04/2019,V708330,10973.86,Adnix UK LTD,13168.63
Broxtowe Borough Council,http://statistics.data.gov.uk/id/local-authority/37UD,Finance,FINANCE,Admin Services,ADMIN,Finance / Finance Admin,Miscellaneous Expenses,3800,Miscellaneous,Msc,23/04/2019,V709334,10973.86,Adnix UK LTD,13168.63
Broxtowe Borough Council,http://statistics.data.gov.uk/id/local-authority/37UD,Finance,FINANCE,Admin Services,ADMIN,Strategic Director / Administrative Services,Hire of Facilities,3223,Other Supplies & Services,OtherSS,15/11/2019,V731024,11649.96,Adnix UK LTD,13979.95
Broxtowe Borough Council,http://statistics.data.gov.uk/id/local-authority/37UD,Finance,FINANCE,Finance Services,FINANCE,Deputy Chief Executive / Finance Services,Grants,3700,Other Supplies & Services,OtherSS,20/11/2020,V765526,"1,334.00",Adonaifields Properties Ltd,1334
Broxtowe Borough Council,http://statistics.data.gov.uk/id/local-authority/37UD,Finance,FINANCE,Finance Services,FINANCE,Deputy Chief Executive / Finance Services,Grants,3700,Other Supplies & Services,OtherSS,20/11/2020,V765290,533.71,Adonaifields Properties Ltd,533.71
Broxtowe Borough Council,http://statistics.data.gov.uk/id/local-authority/37UD,Finance,FINANCE,Finance Services,FINANCE,Deputy Chief Executive / Finance Services,Covid Grants Closed,3703,Obsolete Supplies,ObsSupp,21/12/2020,V770212,667,Adonaifields Properties Ltd,1334
Broxtowe Borough Council,http://statistics.data.gov.uk/id/local-authority/37UD,Finance,FINANCE,Finance Services,FINANCE,Deputy Chief Executive / Finance Services,Covid Grants Closed,3703,Obsolete Supplies,ObsSupp,21/12/2020,V770017,667,Adonaifields Properties Ltd,1334
Broxtowe Borough Council,http://statistics.data.gov.uk/id/local-authority/37UD,Finance,FINANCE,Regulatory Services,REG,Deputy Chief Executive / Finance Services,Grants,3700,Other Supplies & Services,OtherSS,22/01/2021,V773239,238.21,Adonaifields Properties Ltd,6239.21
Broxtowe Borough Council,http://statistics.data.gov.uk/id/local-authority/37UD,Finance,FINANCE,Regulatory Services,REG,Deputy Chief Executive / Finance Services,Grants,3700,Other Supplies & Services,OtherSS,22/01/2021,V773762,"2,001.00",Adonaifields Properties Ltd,6239.21
Broxtowe Borough Council,http://statistics.data.gov.uk/id/local-authority/37UD,Finance,FINANCE,Regulatory Services,REG,Deputy Chief Executive / Finance Services,Covid Closed lockdown payment,3704,Other Supplies & Services,OtherSS,22/01/2021,V774284,"4,000.00",Adonaifields Properties Ltd,6239.21
Broxtowe Borough Council,http://statistics.data.gov.uk/id/local-authority/37UD,Finance,FINANCE,Regulatory Services,REG,Deputy Chief Executive / Finance Services,Grants,3700,Other Supplies & Services,OtherSS,03/03/2021,V780606,2096,Adonaifields Properties Ltd,2096
Broxtowe Borough Council,http://statistics.data.gov.uk/id/local-authority/37UD,Planning Community Development,PCD,Planning Community Development,PCD,Deputy Chief Executive / Property Services,New construction,9002,Capital Expenditure,CapExp,05/03/2021,V780506,9580,Adrian Flowers Joinery Contractor,9580
Broxtowe Borough Council,http://statistics.data.gov.uk/id/local-authority/37UD,Works,WORKS,Repairs & Maintenance,REPMAIN,Strategic Director / Enviromental Business and Project,Alarm System,1002,Other Prem,OthPrem,09/08/2019,V721678,151.25,ADT Fire & Security Plc,306.49
Broxtowe Borough Council,http://statistics.data.gov.uk/id/local-authority/37UD,Works,WORKS,Repairs & Maintenance,REPMAIN,Strategic Director / Enviromental Business and Project,Alarm System,1002,Other Prem,OthPrem,09/08/2019,V721678,104.16,ADT Fire & Security Plc,306.49
Broxtowe Borough Council,http://statistics.data.gov.uk/id/local-authority/37UD,Community Development,COMDEV,Community Facilities,COMFAC,Deputy Chief Executive / Property Services,Alarm System,1002,Other Prem,OthPrem,22/11/2019,V731319,301.56,ADT Fire & Security Plc,486.86
Broxtowe Borough Council,http://statistics.data.gov.uk/id/local-authority/37UD,Works,WORKS,Repairs & Maintenance,REPMAIN,Strategic Director / Enviromental Services,Alarm System,1002,Other Prem,OthPrem,22/11/2019,V731573,104.16,ADT Fire & Security Plc,486.86
Broxtowe Borough Council,http://statistics.data.gov.uk/id/local-authority/37UD,Works,WORKS,Repairs & Maintenance,REPMAIN,Strategic Director / Enviromental Services,Alarm System,1002,Other Prem,OthPrem,28/02/2020,V740904,235.53,ADT Fire & Security Plc,282.64
Broxtowe Borough Council,http://statistics.data.gov.uk/id/local-authority/37UD,Works,WORKS,Repairs & Maintenance,REPMAIN,Strategic Director / Enviromental Services,Alarm System,1002,Other Prem,OthPrem,10/07/2020,V753962,158.82,ADT Fire & Security Plc,320.51
Broxtowe Borough Council,http://statistics.data.gov.uk/id/local-authority/37UD,Works,WORKS,Repairs & Maintenance,REPMAIN,Strategic Director / Enviromental Services,Alarm System,1002,Other Prem,OthPrem,10/07/2020,V753962,108.27,ADT Fire & Security Plc,320.51
Broxtowe Borough Council,http://statistics.data.gov.uk/id/local-authority/37UD,Works,WORKS,Repairs & Maintenance,REPMAIN,Strategic Director / Enviromental Services,Alarm System,1002,Other Prem,OthPrem,31/07/2020,V755155,382.22,ADT Fire & Security Plc,458.66
Broxtowe Borough Council,http://statistics.data.gov.uk/id/local-authority/37UD,Works,WORKS,Repairs & Maintenance,REPMAIN,Strategic Director / Enviromental Services,Alarm System,1002,Other Prem,OthPrem,09/10/2020,V761932,158.82,ADT Fire & Security Plc,320.51
Broxtowe Borough Council,http://statistics.data.gov.uk/id/local-authority/37UD,Works,WORKS,Repairs & Maintenance,REPMAIN,Strategic Director / Enviromental Services,Alarm System,1002,Other Prem,OthPrem,09/10/2020,V761932,108.27,ADT Fire & Security Plc,320.51
Broxtowe Borough Council,http://statistics.data.gov.uk/id/local-authority/37UD,Works,WORKS,Repairs & Maintenance,REPMAIN,Strategic Director / Enviromental Services,Alarm System,1002,Other Prem,OthPrem,15/01/2021,V772220,158.82,ADT Fire & Security Plc,326.1
Broxtowe Borough Council,http://statistics.data.gov.uk/id/local-authority/37UD,Works,WORKS,Repairs & Maintenance,REPMAIN,Strategic Director / Enviromental Services,Alarm System,1002,Other Prem,OthPrem,15/01/2021,V772220,112.93,ADT Fire & Security Plc,326.1
Broxtowe Borough Council,http://statistics.data.gov.uk/id/local-authority/37UD,Technical,TECHNICA,Highways,HIGHWYS,Tech and Works / Works Administration Beeston,Water Charges,1410,Utilities,Utility,05/04/2019,V708378,786.34,Advanced Demand Side Management Ltd,2114.53
Broxtowe Borough Council,http://statistics.data.gov.uk/id/local-authority/37UD,Technical,TECHNICA,Highways,HIGHWYS,Tech and Works / Works Administration Beeston,Water Charges,1410,Utilities,Utility,05/04/2019,V708366,759.09,Advanced Demand Side Management Ltd,2114.53
Broxtowe Borough Council,http://statistics.data.gov.uk/id/local-authority/37UD,Technical,TECHNICA,Highways,HIGHWYS,Tech and Works / Works Administration Beeston,Water Charges,1410,Utilities,Utility,21/06/2019,V715987,674.8,Advanced Demand Side Management Ltd,1443.48
Broxtowe Borough Council,http://statistics.data.gov.uk/id/local-authority/37UD,Technical,TECHNICA,Highways,HIGHWYS,Tech and Works / Works Administration Beeston,Water Charges,1410,Utilities,Utility,21/06/2019,V715988,528.1,Advanced Demand Side Management Ltd,1443.48
Broxtowe Borough Council,http://statistics.data.gov.uk/id/local-authority/37UD,Technical,TECHNICA,Highways,HIGHWYS,Strategic Director / Enviromental Business and Project,Water Charges,1410,Utilities,Utility,19/07/2019,V719433,830.95,Advanced Demand Side Management Ltd,1094.8
Broxtowe Borough Council,http://statistics.data.gov.uk/id/local-authority/37UD,Technical,TECHNICA,Highways,HIGHWYS,Strategic Director / Enviromental Business and Project,Water Charges,1410,Utilities,Utility,19/07/2019,V719355,81.38,Advanced Demand Side Management Ltd,1094.8
Broxtowe Borough Council,http://statistics.data.gov.uk/id/local-authority/37UD,Technical,TECHNICA,Highways,HIGHWYS,Strategic Director / Enviromental Business and Project,Water Charges,1410,Utilities,Utility,09/08/2019,V721743,106.11,Advanced Demand Side Management Ltd,1070.95
Broxtowe Borough Council,http://statistics.data.gov.uk/id/local-authority/37UD,Technical,TECHNICA,Highways,HIGHWYS,Strategic Director / Enviromental Business and Project,Water Charges,1410,Utilities,Utility,09/08/2019,V721742,786.35,Advanced Demand Side Management Ltd,1070.95
Broxtowe Borough Council,http://statistics.data.gov.uk/id/local-authority/37UD,Technical,TECHNICA,Highways,HIGHWYS,Chief Executive  / CE Miscellaneous,Water Charges,1410,Utilities,Utility,18/10/2019,V727143,1696.71,Advanced Demand Side Management Ltd,2168.67
Broxtowe Borough Council,http://statistics.data.gov.uk/id/local-authority/37UD,Technical,TECHNICA,Highways,HIGHWYS,Strategic Director / Enviromental Business and Project,Water Charges,1410,Utilities,Utility,20/12/2019,V715443,837.4,Advanced Demand Side Management Ltd,1004.88
Broxtowe Borough Council,http://statistics.data.gov.uk/id/local-authority/37UD,Technical,TECHNICA,Highways,HIGHWYS,Deputy Chief Executive / Property Services,Water Charges,1410,Utilities,Utility,07/02/2020,V738141,1859.61,Advanced Demand Side Management Ltd,4931.69
Broxtowe Borough Council,http://statistics.data.gov.uk/id/local-authority/37UD,Technical,TECHNICA,Highways,HIGHWYS,Deputy Chief Executive / Property Services,Water Charges,1410,Utilities,Utility,07/02/2020,V738136,837.73,Advanced Demand Side Management Ltd,4931.69
Broxtowe Borough Council,http://statistics.data.gov.uk/id/local-authority/37UD,Technical,TECHNICA,Highways,HIGHWYS,Deputy Chief Executive / Property Services,Water Charges,1410,Utilities,Utility,07/02/2020,V738144,746.67,Advanced Demand Side Management Ltd,4931.69
Broxtowe Borough Council,http://statistics.data.gov.uk/id/local-authority/37UD,Technical,TECHNICA,Highways,HIGHWYS,Deputy Chief Executive / Property Services,Water Charges,1410,Utilities,Utility,07/02/2020,V738139,665.73,Advanced Demand Side Management Ltd,4931.69
Broxtowe Borough Council,http://statistics.data.gov.uk/id/local-authority/37UD,Technical,TECHNICA,Highways,HIGHWYS,Deputy Chief Executive / Property Services,Water Charges,1410,Utilities,Utility,28/02/2020,V740661,879.61,Advanced Demand Side Management Ltd,1055.53
Broxtowe Borough Council,http://statistics.data.gov.uk/id/local-authority/37UD,Technical,TECHNICA,Highways,HIGHWYS,Tech and Works / Works Adminstration Kimberley,Repairs / Servicing  - Materials,5520,Transport Account,TRANACC,31/05/2019,V713481,472.98,Aebi Schmidt UK Ltd,567.58
Broxtowe Borough Council,http://statistics.data.gov.uk/id/local-authority/37UD,Technical,TECHNICA,Highways,HIGHWYS,Strategic Director / Enviromental Business and Project,Repairs / Servicing  - Materials,5520,Transport Account,TranAcc,23/08/2019,V722829,512.64,Aebi Schmidt UK Ltd,615.17
Broxtowe Borough Council,http://statistics.data.gov.uk/id/local-authority/37UD,Technical,TECHNICA,Highways,HIGHWYS,Strategic Director / Enviromental Services,Repairs / Servicing  - Materials,5520,Transport Account,TranAcc,30/08/2019,V723178,29.15,Aebi Schmidt UK Ltd,307.44
Broxtowe Borough Council,http://statistics.data.gov.uk/id/local-authority/37UD,Technical,TECHNICA,Highways,HIGHWYS,Strategic Director / Enviromental Services,Repairs / Servicing  - Materials,5520,Transport Account,TranAcc,30/08/2019,V723087,29.15,Aebi Schmidt UK Ltd,307.44
Broxtowe Borough Council,http://statistics.data.gov.uk/id/local-authority/37UD,Technical,TECHNICA,Highways,HIGHWYS,Strategic Director / Enviromental Services,Repairs / Servicing  - Materials,5520,Transport Account,TranAcc,30/08/2019,V723087,15,Aebi Schmidt UK Ltd,307.44
Broxtowe Borough Council,http://statistics.data.gov.uk/id/local-authority/37UD,Technical,TECHNICA,Highways,HIGHWYS,Strategic Director / Enviromental Services,Repairs / Servicing  - Materials,5520,Transport Account,TranAcc,30/08/2019,V723178,15,Aebi Schmidt UK Ltd,307.44
Broxtowe Borough Council,http://statistics.data.gov.uk/id/local-authority/37UD,Technical,TECHNICA,Highways,HIGHWYS,Strategic Director / Enviromental Services,Repairs / Servicing  - Materials,5520,Transport Account,TranAcc,30/08/2019,V723178,113.42,Aebi Schmidt UK Ltd,307.44
Broxtowe Borough Council,http://statistics.data.gov.uk/id/local-authority/37UD,Technical,TECHNICA,Highways,HIGHWYS,Strategic Director / Enviromental Services,Repairs / Servicing  - Materials,5520,Transport Account,TranAcc,30/08/2019,V723178,54.48,Aebi Schmidt UK Ltd,307.44
Broxtowe Borough Council,http://statistics.data.gov.uk/id/local-authority/37UD,Technical,TECHNICA,Highways,HIGHWYS,Strategic Director / Enviromental Services,Repairs / Servicing  - Materials,5520,Transport Account,TRANACC,10/01/2020,V736572,922.9,Aebi Schmidt UK Ltd,1365.05
Broxtowe Borough Council,http://statistics.data.gov.uk/id/local-authority/37UD,Technical,TECHNICA,Highways,HIGHWYS,Strategic Director / Enviromental Services,Repairs / Servicing  - Materials,5520,Transport Account,TRANACC,06/03/2020,V741927,631.77,Aebi Schmidt UK Ltd,758.13
Broxtowe Borough Council,http://statistics.data.gov.uk/id/local-authority/37UD,Technical,TECHNICA,Highways,HIGHWYS,Strategic Director / Enviromental Services,Repairs / Servicing  - Materials,5520,Transport Account,TranAcc,23/10/2020,V762385,625.82,Aebi Schmidt UK Ltd,750.99
Broxtowe Borough Council,http://statistics.data.gov.uk/id/local-authority/37UD,Technical Works,TW,Technical Works,TW,Strategic Director / Enviromental Services,Vehicles & Plant,9003,Capital Expenditure,CapExp,20/11/2020,V765079,165,Aebi Schmidt UK Ltd,89432.8
Broxtowe Borough Council,http://statistics.data.gov.uk/id/local-authority/37UD,Technical Works,TW,Technical Works,TW,Strategic Director / Enviromental Services,Vehicles & Plant,9003,Capital Expenditure,CapExp,20/11/2020,V765079,55,Aebi Schmidt UK Ltd,89432.8
Broxtowe Borough Council,http://statistics.data.gov.uk/id/local-authority/37UD,Technical Works,TW,Technical Works,TW,Strategic Director / Enviromental Services,Vehicles & Plant,9003,Capital Expenditure,CapExp,20/11/2020,V765079,"74,344.00",Aebi Schmidt UK Ltd,89432.8
Broxtowe Borough Council,http://statistics.data.gov.uk/id/local-authority/37UD,Technical,TECHNICA,Highways,HIGHWYS,Strategic Director / Enviromental Services,Repairs / Servicing  - Materials,5520,Transport Account,TranAcc,08/01/2021,V771765,407.16,Aebi Schmidt UK Ltd,488.59
Broxtowe Borough Council,http://statistics.data.gov.uk/id/local-authority/37UD,Planning,PLAN,Planning,PLAN,Chief Executive  / Neighbourhoods and Prosperity,Joint Planning Advisory Board,3659,Other Supplies & Services,OtherSS,28/08/2020,V757514,"73,620.00",AECOM Infrastructure & Env UK Ltd,88344
Broxtowe Borough Council,http://statistics.data.gov.uk/id/local-authority/37UD,Finance,FINANCE,Admin Services,ADMIN,Finance / Finance Admin,Hire of Facilities,3223,Other Supplies & Services,OtherSS,22/05/2019,V713395,385.45,Age Concern Eastwood,770.9
Broxtowe Borough Council,http://statistics.data.gov.uk/id/local-authority/37UD,Finance,FINANCE,Admin Services,ADMIN,Strategic Director / Administrative Services,Hire of Facilities,3223,Other Supplies & Services,OtherSS,25/03/2020,V743074,502,Age Concern Eastwood,502
Broxtowe Borough Council,http://statistics.data.gov.uk/id/local-authority/37UD,Community Development,COMDEV,Grants,GRANTS,Deputy Chief Executive / Finance Services,Grants,3700,Other Supplies & Services,OtherSS,19/03/2021,V782194,5150,Age Concern Eastwood,5150
Broxtowe Borough Council,http://statistics.data.gov.uk/id/local-authority/37UD,Works,WORKS,Repairs & Maintenance,REPMAIN,Tech and Works / Works Adminstration Kimberley,Waste Disposal,3208,Equipment,Equip,03/05/2019,V711471,4065.6,AHS LTD,4878.72
Broxtowe Borough Council,http://statistics.data.gov.uk/id/local-authority/37UD,Housing,HOUSING,Repairs,REPS,Chief Executive  / Housing repairs,Sub Contractors [day to day repairs],3107,Other Supplies & Services,OtherSS,10/01/2020,V736129,750,Ainsley Stokes Limited,1800
Broxtowe Borough Council,http://statistics.data.gov.uk/id/local-authority/37UD,Housing,HOUSING,Repairs,REPS,Chief Executive  / Housing repairs,Sub Contractors [day to day repairs],3107,Other Supplies & Services,OtherSS,10/01/2020,V736128,750,Ainsley Stokes Limited,1800
Broxtowe Borough Council,http://statistics.data.gov.uk/id/local-authority/37UD,Works,WORKS,Repairs & Maintenance,REPMAIN,Strategic Director / Enviromental Services,Repairs / Servicing  - Materials,5520,Transport Account,TranAcc,21/08/2020,V757257,479.9,Air Seal Products,575.88
Broxtowe Borough Council,http://statistics.data.gov.uk/id/local-authority/37UD,Finance,FINANCE,Regulatory Services,REG,Deputy Chief Executive / Finance Services,Grants,3700,Other Supplies & Services,OtherSS,03/03/2021,V781175,238.2,Airbase Make-Up,9669.2
Broxtowe Borough Council,http://statistics.data.gov.uk/id/local-authority/37UD,Finance,FINANCE,Regulatory Services,REG,Deputy Chief Executive / Finance Services,Grants,3700,Other Supplies & Services,OtherSS,03/03/2021,V781178,2096,Airbase Make-Up,9669.2
Broxtowe Borough Council,http://statistics.data.gov.uk/id/local-authority/37UD,Finance,FINANCE,Regulatory Services,REG,Deputy Chief Executive / Finance Services,Grants,3700,Other Supplies & Services,OtherSS,03/03/2021,V781176,2001,Airbase Make-Up,9669.2
Broxtowe Borough Council,http://statistics.data.gov.uk/id/local-authority/37UD,Finance,FINANCE,Regulatory Services,REG,Deputy Chief Executive / Finance Services,Covid Closed lockdown payment,3704,Other Supplies & Services,OtherSS,03/03/2021,V781177,4000,Airbase Make-Up,9669.2
Broxtowe Borough Council,http://statistics.data.gov.uk/id/local-authority/37UD,Finance,FINANCE,Regulatory Services,REG,Deputy Chief Executive / Finance Services,Grants,3700,Other Supplies & Services,OtherSS,03/03/2021,V781174,1334,Airbase Make-Up,9669.2
Broxtowe Borough Council,http://statistics.data.gov.uk/id/local-authority/37UD,Finance,FINANCE,Finance Services,FINANCE,Deputy Chief Executive / Finance Services,Grants,3700,Other Supplies & Services,OtherSS,18/12/2020,V769767,1334,AJW Motors Ltd,2834
Broxtowe Borough Council,http://statistics.data.gov.uk/id/local-authority/37UD,Finance,FINANCE,Finance Services,FINANCE,Deputy Chief Executive / Finance Services,Grants,3700,Other Supplies & Services,OtherSS,18/12/2020,V769809,1500,AJW Motors Ltd,2834
Broxtowe Borough Council,http://statistics.data.gov.uk/id/local-authority/37UD,Finance,FINANCE,Finance Services,FINANCE,Deputy Chief Executive / Finance Services,Grants,3700,Other Supplies & Services,OtherSS,21/12/2020,V770312,750,AJW Motors Ltd,750
Broxtowe Borough Council,http://statistics.data.gov.uk/id/local-authority/37UD,Finance,FINANCE,Regulatory Services,REG,Deputy Chief Executive / Finance Services,Grants,3700,Other Supplies & Services,OtherSS,22/01/2021,V773612,238.21,AJW Motors Ltd,7539.21
Broxtowe Borough Council,http://statistics.data.gov.uk/id/local-authority/37UD,Finance,FINANCE,Regulatory Services,REG,Deputy Chief Executive / Finance Services,Grants,3700,Other Supplies & Services,OtherSS,22/01/2021,V774135,"2,001.00",AJW Motors Ltd,7539.21
Broxtowe Borough Council,http://statistics.data.gov.uk/id/local-authority/37UD,Finance,FINANCE,Regulatory Services,REG,Deputy Chief Executive / Finance Services,Covid Closed lockdown payment,3704,Other Supplies & Services,OtherSS,22/01/2021,V774657,"4,000.00",AJW Motors Ltd,7539.21
Broxtowe Borough Council,http://statistics.data.gov.uk/id/local-authority/37UD,Finance,FINANCE,Regulatory Services,REG,Deputy Chief Executive / Finance Services,Grants,3700,Other Supplies & Services,OtherSS,22/01/2021,V775316,"1,300.00",AJW Motors Ltd,7539.21
Broxtowe Borough Council,http://statistics.data.gov.uk/id/local-authority/37UD,Finance,FINANCE,Regulatory Services,REG,Deputy Chief Executive / Finance Services,Grants,3700,Other Supplies & Services,OtherSS,03/03/2021,V780997,2096,AJW Motors Ltd,2096
Broxtowe Borough Council,http://statistics.data.gov.uk/id/local-authority/37UD,Finance,FINANCE,Finance Services,FINANCE,Deputy Chief Executive / Finance Services,Grants,3700,Other Supplies & Services,OtherSS,20/11/2020,V765802,"1,500.00",AK Training and Beauty Ltd.,1500
Broxtowe Borough Council,http://statistics.data.gov.uk/id/local-authority/37UD,Finance,FINANCE,Finance Services,FINANCE,Deputy Chief Executive / Finance Services,Grants,3700,Other Supplies & Services,OtherSS,20/11/2020,V765616,"1,334.00",AK Training and Beauty Ltd.,1334
Broxtowe Borough Council,http://statistics.data.gov.uk/id/local-authority/37UD,Finance,FINANCE,Finance Services,FINANCE,Deputy Chief Executive / Finance Services,Grants,3700,Other Supplies & Services,OtherSS,20/11/2020,V765436,285.86,AK Training and Beauty Ltd.,285.86
Broxtowe Borough Council,http://statistics.data.gov.uk/id/local-authority/37UD,Finance,FINANCE,Finance Services,FINANCE,Deputy Chief Executive / Finance Services,Grants,3700,Other Supplies & Services,OtherSS,14/12/2020,V769088,750,AK Training and Beauty Ltd.,750
Broxtowe Borough Council,http://statistics.data.gov.uk/id/local-authority/37UD,Finance,FINANCE,Regulatory Services,REG,Deputy Chief Executive / Finance Services,Grants,3700,Other Supplies & Services,OtherSS,22/01/2021,V773329,238.21,AK Training and Beauty Ltd.,7539.21
Broxtowe Borough Council,http://statistics.data.gov.uk/id/local-authority/37UD,Finance,FINANCE,Regulatory Services,REG,Deputy Chief Executive / Finance Services,Grants,3700,Other Supplies & Services,OtherSS,22/01/2021,V773852,"2,001.00",AK Training and Beauty Ltd.,7539.21
Broxtowe Borough Council,http://statistics.data.gov.uk/id/local-authority/37UD,Finance,FINANCE,Regulatory Services,REG,Deputy Chief Executive / Finance Services,Covid Closed lockdown payment,3704,Other Supplies & Services,OtherSS,22/01/2021,V774374,"4,000.00",AK Training and Beauty Ltd.,7539.21
Broxtowe Borough Council,http://statistics.data.gov.uk/id/local-authority/37UD,Finance,FINANCE,Regulatory Services,REG,Deputy Chief Executive / Finance Services,Grants,3700,Other Supplies & Services,OtherSS,22/01/2021,V774905,"1,300.00",AK Training and Beauty Ltd.,7539.21
Broxtowe Borough Council,http://statistics.data.gov.uk/id/local-authority/37UD,Finance,FINANCE,Regulatory Services,REG,Deputy Chief Executive / Finance Services,Grants,3700,Other Supplies & Services,OtherSS,03/03/2021,V780715,2096,AK Training and Beauty Ltd.,2096
Broxtowe Borough Council,http://statistics.data.gov.uk/id/local-authority/37UD,Finance,FINANCE,Finance Services,FINANCE,Deputy Chief Executive / Finance Services,Grants,3700,Other Supplies & Services,OtherSS,18/12/2020,V769747,533.71,Akbar Balti Restaurant,3567.85
Broxtowe Borough Council,http://statistics.data.gov.uk/id/local-authority/37UD,Finance,FINANCE,Finance Services,FINANCE,Deputy Chief Executive / Finance Services,Grants,3700,Other Supplies & Services,OtherSS,18/12/2020,V769757,200.14,Akbar Balti Restaurant,3567.85
Broxtowe Borough Council,http://statistics.data.gov.uk/id/local-authority/37UD,Finance,FINANCE,Finance Services,FINANCE,Deputy Chief Executive / Finance Services,Grants,3700,Other Supplies & Services,OtherSS,18/12/2020,V769766,1334,Akbar Balti Restaurant,3567.85
Broxtowe Borough Council,http://statistics.data.gov.uk/id/local-authority/37UD,Finance,FINANCE,Finance Services,FINANCE,Deputy Chief Executive / Finance Services,Grants,3700,Other Supplies & Services,OtherSS,18/12/2020,V769808,1500,Akbar Balti Restaurant,3567.85
Broxtowe Borough Council,http://statistics.data.gov.uk/id/local-authority/37UD,Finance,FINANCE,Finance Services,FINANCE,Deputy Chief Executive / Finance Services,Grants,3700,Other Supplies & Services,OtherSS,21/12/2020,V770313,750,Akbar Balti Restaurant,750
Broxtowe Borough Council,http://statistics.data.gov.uk/id/local-authority/37UD,Finance,FINANCE,Regulatory Services,REG,Deputy Chief Executive / Finance Services,Grants,3700,Other Supplies & Services,OtherSS,22/01/2021,V773611,238.21,Akbar Balti Restaurant,7539.21
Broxtowe Borough Council,http://statistics.data.gov.uk/id/local-authority/37UD,Finance,FINANCE,Regulatory Services,REG,Deputy Chief Executive / Finance Services,Grants,3700,Other Supplies & Services,OtherSS,22/01/2021,V774134,"2,001.00",Akbar Balti Restaurant,7539.21
Broxtowe Borough Council,http://statistics.data.gov.uk/id/local-authority/37UD,Finance,FINANCE,Regulatory Services,REG,Deputy Chief Executive / Finance Services,Covid Closed lockdown payment,3704,Other Supplies & Services,OtherSS,22/01/2021,V774656,"4,000.00",Akbar Balti Restaurant,7539.21
Broxtowe Borough Council,http://statistics.data.gov.uk/id/local-authority/37UD,Finance,FINANCE,Regulatory Services,REG,Deputy Chief Executive / Finance Services,Grants,3700,Other Supplies & Services,OtherSS,22/01/2021,V775315,"1,300.00",Akbar Balti Restaurant,7539.21
Broxtowe Borough Council,http://statistics.data.gov.uk/id/local-authority/37UD,Finance,FINANCE,Regulatory Services,REG,Deputy Chief Executive / Finance Services,Grants,3700,Other Supplies & Services,OtherSS,03/03/2021,V780996,2096,Akbar Balti Restaurant,2096
Broxtowe Borough Council,http://statistics.data.gov.uk/id/local-authority/37UD,Inventories,2INV,Inventories,2INV,Strategic Director / Enviromental Services,Stores Purchased - August,9364,Assets,Assets,06/09/2019,V724547,823.96,AKW Medi-Care LTD,988.75
Broxtowe Borough Council,http://statistics.data.gov.uk/id/local-authority/37UD,General,GEN,General,GEN,Strategic Director / Enviromental Services,Stores Purchased - October,9366,Stores,Stores,18/10/2019,V728174,258.4,AKW Medi-Care LTD,310.08
Broxtowe Borough Council,http://statistics.data.gov.uk/id/local-authority/37UD,Housing Revenue Account,HRA,Housing Revenue Account,HRA,Deputy Chief Executive / Capital Works,New construction,9002,Capital Expenditure,CapExp,06/12/2019,V733538,675.72,AKW Medi-Care LTD,1562.94
Broxtowe Borough Council,http://statistics.data.gov.uk/id/local-authority/37UD,General,GEN,General,GEN,Strategic Director / Enviromental Services,Stores Purchased - December,9368,Stores,Stores,06/12/2019,V733592,626.73,AKW Medi-Care LTD,1562.94
Broxtowe Borough Council,http://statistics.data.gov.uk/id/local-authority/37UD,General,GEN,General,GEN,Strategic Director / Enviromental Services,Stores Purchased - January,9369,Stores,Stores,17/01/2020,V736698,617.97,AKW Medi-Care LTD,857.72
Broxtowe Borough Council,http://statistics.data.gov.uk/id/local-authority/37UD,Housing Revenue Account,HRA,Housing Revenue Account,HRA,Deputy Chief Executive / Capital Works,New construction,9002,Capital Expenditure,CapExp,07/08/2020,V756412,"1,377.84",AKW Medi-Care LTD,3230.57
Broxtowe Borough Council,http://statistics.data.gov.uk/id/local-authority/37UD,Housing Revenue Account,HRA,Housing Revenue Account,HRA,Deputy Chief Executive / Capital Works,New construction,9002,Capital Expenditure,CapExp,07/08/2020,V756412,212.64,AKW Medi-Care LTD,3230.57
Broxtowe Borough Council,http://statistics.data.gov.uk/id/local-authority/37UD,Housing Revenue Account,HRA,Housing Revenue Account,HRA,Deputy Chief Executive / Capital Works,New construction,9002,Capital Expenditure,CapExp,07/08/2020,V756412,"1,550.64",AKW Medi-Care LTD,3230.57
Broxtowe Borough Council,http://statistics.data.gov.uk/id/local-authority/37UD,Housing Revenue Account,HRA,Housing Revenue Account,HRA,Deputy Chief Executive / Capital Works,New construction,9002,Capital Expenditure,CapExp,07/08/2020,V756412,567.36,AKW Medi-Care LTD,3230.57
Broxtowe Borough Council,http://statistics.data.gov.uk/id/local-authority/37UD,Housing Revenue Account,HRA,Housing Revenue Account,HRA,Deputy Chief Executive / Capital Works,New construction,9002,Capital Expenditure,CapExp,07/08/2020,V756412,608.16,AKW Medi-Care LTD,3230.57
Broxtowe Borough Council,http://statistics.data.gov.uk/id/local-authority/37UD,Housing Revenue Account,HRA,Housing Revenue Account,HRA,Deputy Chief Executive / Capital Works,New construction,9002,Capital Expenditure,CapExp,07/08/2020,V756413,"-3,036.76",AKW Medi-Care LTD,3230.57
Broxtowe Borough Council,http://statistics.data.gov.uk/id/local-authority/37UD,Housing Revenue Account,HRA,Housing Revenue Account,HRA,Deputy Chief Executive / Capital Works,New construction,9002,Capital Expenditure,CapExp,07/08/2020,V756412,420.84,AKW Medi-Care LTD,3230.57
Broxtowe Borough Council,http://statistics.data.gov.uk/id/local-authority/37UD,Housing Revenue Account,HRA,Housing Revenue Account,HRA,Deputy Chief Executive / Capital Works,New construction,9002,Capital Expenditure,CapExp,07/08/2020,V756412,420.84,AKW Medi-Care LTD,3230.57
Broxtowe Borough Council,http://statistics.data.gov.uk/id/local-authority/37UD,Inventories,2INV,Inventories,2INV,Strategic Director / Enviromental Services,Stores Purchased - July,9363,Assets,Assets,07/08/2020,V756356,82.75,AKW Medi-Care LTD,3230.57
Broxtowe Borough Council,http://statistics.data.gov.uk/id/local-authority/37UD,Inventories,2INV,Inventories,2INV,Strategic Director / Enviromental Services,Stores Purchased - July,9363,Assets,Assets,07/08/2020,V756209,487.82,AKW Medi-Care LTD,3230.57
Broxtowe Borough Council,http://statistics.data.gov.uk/id/local-authority/37UD,Inventories,2INV,Inventories,2INV,Strategic Director / Enviromental Services,Stores Purchased - August,9364,Assets,Assets,14/08/2020,V756836,922.23,AKW Medi-Care LTD,1106.68
Broxtowe Borough Council,http://statistics.data.gov.uk/id/local-authority/37UD,Inventories,2INV,Inventories,2INV,Strategic Director / Enviromental Services,Stores Purchased - October,9366,Assets,Assets,09/10/2020,V761820,86.82,AKW Medi-Care LTD,593.96
Broxtowe Borough Council,http://statistics.data.gov.uk/id/local-authority/37UD,Inventories,2INV,Inventories,2INV,Strategic Director / Enviromental Services,Stores Purchased - October,9366,Assets,Assets,09/10/2020,V761820,408.15,AKW Medi-Care LTD,593.96
Broxtowe Borough Council,http://statistics.data.gov.uk/id/local-authority/37UD,Inventories,2INV,Inventories,2INV,Strategic Director / Enviromental Services,Stores Purchased - January,9369,Assets,Assets,01/02/2021,V776095,975.64,AKW Medi-Care LTD,1170.77
Broxtowe Borough Council,http://statistics.data.gov.uk/id/local-authority/37UD,Finance,FINANCE,Regulatory Services,REG,Deputy Chief Executive / Finance Services,Grants,3700,Other Supplies & Services,OtherSS,15/02/2021,V778350,238.2,Alan Blake,7573.2
Broxtowe Borough Council,http://statistics.data.gov.uk/id/local-authority/37UD,Finance,FINANCE,Regulatory Services,REG,Deputy Chief Executive / Finance Services,Grants,3700,Other Supplies & Services,OtherSS,15/02/2021,V778386,2001,Alan Blake,7573.2
Broxtowe Borough Council,http://statistics.data.gov.uk/id/local-authority/37UD,Finance,FINANCE,Regulatory Services,REG,Deputy Chief Executive / Finance Services,Covid Closed lockdown payment,3704,Other Supplies & Services,OtherSS,15/02/2021,V778422,4000,Alan Blake,7573.2
Broxtowe Borough Council,http://statistics.data.gov.uk/id/local-authority/37UD,Finance,FINANCE,Regulatory Services,REG,Deputy Chief Executive / Finance Services,Grants,3700,Other Supplies & Services,OtherSS,15/02/2021,V778252,1334,Alan Blake,7573.2
Broxtowe Borough Council,http://statistics.data.gov.uk/id/local-authority/37UD,Finance,FINANCE,Regulatory Services,REG,Deputy Chief Executive / Finance Services,Grants,3700,Other Supplies & Services,OtherSS,03/03/2021,V781130,2096,Alan Blake,2096
Broxtowe Borough Council,http://statistics.data.gov.uk/id/local-authority/37UD,Finance,FINANCE,Finance Services,FINANCE,Deputy Chief Executive / Finance Services,Grants,3700,Other Supplies & Services,OtherSS,11/12/2020,V768763,1500,Alan Morgan Master Locksmiths,1500
Broxtowe Borough Council,http://statistics.data.gov.uk/id/local-authority/37UD,Finance,FINANCE,Finance Services,FINANCE,Deputy Chief Executive / Finance Services,Grants,3700,Other Supplies & Services,OtherSS,14/12/2020,V769401,750,Alan Morgan Master Locksmiths,750
Broxtowe Borough Council,http://statistics.data.gov.uk/id/local-authority/37UD,Finance,FINANCE,Regulatory Services,REG,Deputy Chief Executive / Finance Services,Grants,3700,Other Supplies & Services,OtherSS,22/01/2021,V775219,"1,300.00",Alan Morgan Master Locksmiths,1300
Broxtowe Borough Council,http://statistics.data.gov.uk/id/local-authority/37UD,Provisions,3PRO,Short Term Provisions,3PRO,Deputy Chief Executive / Finance Services,Other Payments,9231,Liabilities,Liabil,08/01/2021,V771813,582,Alarm,698.4
Broxtowe Borough Council,http://statistics.data.gov.uk/id/local-authority/37UD,Finance,FINANCE,Regulatory Services,REG,Deputy Chief Executive / Finance Services,Grants,3700,Other Supplies & Services,OtherSS,08/02/2021,V777706,2000,Alease Reid,2000
Broxtowe Borough Council,http://statistics.data.gov.uk/id/local-authority/37UD,Finance,FINANCE,Regulatory Services,REG,Deputy Chief Executive / Finance Services,Grants,3700,Other Supplies & Services,OtherSS,08/02/2021,V777708,2000,Alex Orchiston,2000
Broxtowe Borough Council,http://statistics.data.gov.uk/id/local-authority/37UD,Finance,FINANCE,Regulatory Services,REG,Deputy Chief Executive / Finance Services,Grants,3700,Other Supplies & Services,OtherSS,08/02/2021,V777720,1000,Ali Noor Private limited,1000
Broxtowe Borough Council,http://statistics.data.gov.uk/id/local-authority/37UD,Finance,FINANCE,Regulatory Services,REG,Deputy Chief Executive / Finance Services,Grants,3700,Other Supplies & Services,OtherSS,08/02/2021,V777675,1000,Ali Shirzad,1000
Broxtowe Borough Council,http://statistics.data.gov.uk/id/local-authority/37UD,Finance,FINANCE,Regulatory Services,REG,Deputy Chief Executive / Revenues and Benefits,Miscellaneous Expenses,3800,Other Supplies & Services,OtherSS,20/11/2019,V731428,300,Alistair Townsend Limited,360
Broxtowe Borough Council,http://statistics.data.gov.uk/id/local-authority/37UD,Inventories,2INV,Inventories,2INV,Strategic Director / Enviromental Business and Project,Stores Purchased - July,9363,Assets,Assets,26/07/2019,V719956,31.2,Allchem (Midlands) Company,339.7
Broxtowe Borough Council,http://statistics.data.gov.uk/id/local-authority/37UD,Inventories,2INV,Inventories,2INV,Strategic Director / Enviromental Business and Project,Stores Purchased - July,9363,Assets,Assets,26/07/2019,V719956,112.32,Allchem (Midlands) Company,339.7
Broxtowe Borough Council,http://statistics.data.gov.uk/id/local-authority/37UD,Inventories,2INV,Inventories,2INV,Strategic Director / Enviromental Business and Project,Stores Purchased - July,9363,Assets,Assets,26/07/2019,V719956,57.6,Allchem (Midlands) Company,339.7
Broxtowe Borough Council,http://statistics.data.gov.uk/id/local-authority/37UD,Inventories,2INV,Inventories,2INV,Strategic Director / Enviromental Business and Project,Stores Purchased - July,9363,Assets,Assets,26/07/2019,V719956,55.8,Allchem (Midlands) Company,339.7
Broxtowe Borough Council,http://statistics.data.gov.uk/id/local-authority/37UD,Inventories,2INV,Inventories,2INV,Strategic Director / Enviromental Business and Project,Stores Purchased - July,9363,Assets,Assets,26/07/2019,V719956,26.16,Allchem (Midlands) Company,339.7
Broxtowe Borough Council,http://statistics.data.gov.uk/id/local-authority/37UD,Inventories,2INV,Inventories,2INV,Strategic Director / Enviromental Services,Stores Purchased - August,9364,Assets,Assets,13/09/2019,V725140,46.8,Allchem (Midlands) Company,313.25
Broxtowe Borough Council,http://statistics.data.gov.uk/id/local-authority/37UD,Inventories,2INV,Inventories,2INV,Strategic Director / Enviromental Services,Stores Purchased - August,9364,Assets,Assets,13/09/2019,V725140,124.8,Allchem (Midlands) Company,313.25
Broxtowe Borough Council,http://statistics.data.gov.uk/id/local-authority/37UD,Inventories,2INV,Inventories,2INV,Strategic Director / Enviromental Services,Stores Purchased - August,9364,Assets,Assets,13/09/2019,V725140,7,Allchem (Midlands) Company,313.25
Broxtowe Borough Council,http://statistics.data.gov.uk/id/local-authority/37UD,Inventories,2INV,Inventories,2INV,Strategic Director / Enviromental Services,Stores Purchased - August,9364,Assets,Assets,13/09/2019,V725140,43.2,Allchem (Midlands) Company,313.25
Broxtowe Borough Council,http://statistics.data.gov.uk/id/local-authority/37UD,Inventories,2INV,Inventories,2INV,Strategic Director / Enviromental Services,Stores Purchased - August,9364,Assets,Assets,13/09/2019,V725140,39.24,Allchem (Midlands) Company,313.25
Broxtowe Borough Council,http://statistics.data.gov.uk/id/local-authority/37UD,Inventories,2INV,Inventories,2INV,Strategic Director / Enviromental Services,Stores Purchased - October,9366,Assets,Assets,01/11/2019,V729001,37.16,Allchem (Midlands) Company,605.76
Broxtowe Borough Council,http://statistics.data.gov.uk/id/local-authority/37UD,Inventories,2INV,Inventories,2INV,Strategic Director / Enviromental Services,Stores Purchased - October,9366,Assets,Assets,01/11/2019,V729000,72,Allchem (Midlands) Company,605.76
Broxtowe Borough Council,http://statistics.data.gov.uk/id/local-authority/37UD,Inventories,2INV,Inventories,2INV,Strategic Director / Enviromental Services,Stores Purchased - October,9366,Assets,Assets,01/11/2019,V729001,9,Allchem (Midlands) Company,605.76
Broxtowe Borough Council,http://statistics.data.gov.uk/id/local-authority/37UD,Inventories,2INV,Inventories,2INV,Strategic Director / Enviromental Services,Stores Purchased - October,9366,Assets,Assets,01/11/2019,V729001,58.8,Allchem (Midlands) Company,605.76
Broxtowe Borough Council,http://statistics.data.gov.uk/id/local-authority/37UD,Inventories,2INV,Inventories,2INV,Strategic Director / Enviromental Services,Stores Purchased - October,9366,Assets,Assets,01/11/2019,V729001,124.8,Allchem (Midlands) Company,605.76
Broxtowe Borough Council,http://statistics.data.gov.uk/id/local-authority/37UD,Inventories,2INV,Inventories,2INV,Strategic Director / Enviromental Services,Stores Purchased - October,9366,Assets,Assets,01/11/2019,V729000,57.6,Allchem (Midlands) Company,605.76
Broxtowe Borough Council,http://statistics.data.gov.uk/id/local-authority/37UD,Inventories,2INV,Inventories,2INV,Strategic Director / Enviromental Services,Stores Purchased - October,9366,Assets,Assets,01/11/2019,V729000,66.96,Allchem (Midlands) Company,605.76
Broxtowe Borough Council,http://statistics.data.gov.uk/id/local-authority/37UD,Inventories,2INV,Inventories,2INV,Strategic Director / Enviromental Services,Stores Purchased - October,9366,Assets,Assets,01/11/2019,V729000,78.48,Allchem (Midlands) Company,605.76
Broxtowe Borough Council,http://statistics.data.gov.uk/id/local-authority/37UD,Inventories,2INV,Inventories,2INV,Strategic Director / Enviromental Services,Stores Purchased - October,9366,Assets,Assets,15/11/2019,V731200,7,Allchem (Midlands) Company,411.07
Broxtowe Borough Council,http://statistics.data.gov.uk/id/local-authority/37UD,Inventories,2INV,Inventories,2INV,Strategic Director / Enviromental Services,Stores Purchased - December,9368,Assets,Assets,15/11/2019,V731199,7,Allchem (Midlands) Company,411.07
Broxtowe Borough Council,http://statistics.data.gov.uk/id/local-authority/37UD,Inventories,2INV,Inventories,2INV,Strategic Director / Enviromental Services,Stores Purchased - December,9368,Assets,Assets,15/11/2019,V731199,31.2,Allchem (Midlands) Company,411.07
Broxtowe Borough Council,http://statistics.data.gov.uk/id/local-authority/37UD,Inventories,2INV,Inventories,2INV,Strategic Director / Enviromental Services,Stores Purchased - December,9368,Assets,Assets,15/11/2019,V731199,58.8,Allchem (Midlands) Company,411.07
Broxtowe Borough Council,http://statistics.data.gov.uk/id/local-authority/37UD,Inventories,2INV,Inventories,2INV,Strategic Director / Enviromental Services,Stores Purchased - December,9368,Assets,Assets,15/11/2019,V731199,74.88,Allchem (Midlands) Company,411.07
Broxtowe Borough Council,http://statistics.data.gov.uk/id/local-authority/37UD,Inventories,2INV,Inventories,2INV,Strategic Director / Enviromental Services,Stores Purchased - December,9368,Assets,Assets,15/11/2019,V731199,49.2,Allchem (Midlands) Company,411.07
Broxtowe Borough Council,http://statistics.data.gov.uk/id/local-authority/37UD,Inventories,2INV,Inventories,2INV,Strategic Director / Enviromental Services,Stores Purchased - December,9368,Assets,Assets,15/11/2019,V731199,13.44,Allchem (Midlands) Company,411.07
Broxtowe Borough Council,http://statistics.data.gov.uk/id/local-authority/37UD,Inventories,2INV,Inventories,2INV,Strategic Director / Enviromental Services,Stores Purchased - December,9368,Assets,Assets,15/11/2019,V731199,55.8,Allchem (Midlands) Company,411.07
Broxtowe Borough Council,http://statistics.data.gov.uk/id/local-authority/37UD,Inventories,2INV,Inventories,2INV,Strategic Director / Enviromental Services,Stores Purchased - December,9368,Assets,Assets,15/11/2019,V731199,45.24,Allchem (Midlands) Company,411.07
Broxtowe Borough Council,http://statistics.data.gov.uk/id/local-authority/37UD,General,GEN,General,GEN,Strategic Director / Enviromental Operations,Stores Purchased - December,9368,Stores,Stores,13/03/2020,V742411,44.64,Allchem (Midlands) Company,975.36
Broxtowe Borough Council,http://statistics.data.gov.uk/id/local-authority/37UD,General,GEN,General,GEN,Strategic Director / Enviromental Operations,Stores Purchased - January,9369,Stores,Stores,13/03/2020,V742411,96,Allchem (Midlands) Company,975.36
Broxtowe Borough Council,http://statistics.data.gov.uk/id/local-authority/37UD,General,GEN,General,GEN,Strategic Director / Enviromental Operations,Stores Purchased - January,9369,Stores,Stores,13/03/2020,V742411,57.6,Allchem (Midlands) Company,975.36
Broxtowe Borough Council,http://statistics.data.gov.uk/id/local-authority/37UD,General,GEN,General,GEN,Strategic Director / Enviromental Operations,Stores Purchased - February,9370,Stores,Stores,13/03/2020,V742408,46.8,Allchem (Midlands) Company,975.36
Broxtowe Borough Council,http://statistics.data.gov.uk/id/local-authority/37UD,General,GEN,General,GEN,Strategic Director / Enviromental Operations,Stores Purchased - February,9370,Stores,Stores,13/03/2020,V742408,124.8,Allchem (Midlands) Company,975.36
Broxtowe Borough Council,http://statistics.data.gov.uk/id/local-authority/37UD,General,GEN,General,GEN,Strategic Director / Enviromental Services,Stores Purchased - February,9370,Stores,Stores,13/03/2020,V742363,7,Allchem (Midlands) Company,975.36
Broxtowe Borough Council,http://statistics.data.gov.uk/id/local-authority/37UD,General,GEN,General,GEN,Strategic Director / Enviromental Services,Stores Purchased - February,9370,Stores,Stores,13/03/2020,V742363,58.8,Allchem (Midlands) Company,975.36
Broxtowe Borough Council,http://statistics.data.gov.uk/id/local-authority/37UD,General,GEN,General,GEN,Strategic Director / Enviromental Services,Stores Purchased - February,9370,Stores,Stores,13/03/2020,V742363,7,Allchem (Midlands) Company,975.36
Broxtowe Borough Council,http://statistics.data.gov.uk/id/local-authority/37UD,General,GEN,General,GEN,Strategic Director / Enviromental Services,Stores Purchased - February,9370,Stores,Stores,13/03/2020,V742409,7,Allchem (Midlands) Company,975.36
Broxtowe Borough Council,http://statistics.data.gov.uk/id/local-authority/37UD,General,GEN,General,GEN,Strategic Director / Enviromental Services,Stores Purchased - February,9370,Stores,Stores,13/03/2020,V742410,190,Allchem (Midlands) Company,975.36
Broxtowe Borough Council,http://statistics.data.gov.uk/id/local-authority/37UD,General,GEN,General,GEN,Strategic Director / Enviromental Services,Stores Purchased - February,9370,Stores,Stores,13/03/2020,V742363,66.96,Allchem (Midlands) Company,975.36
Broxtowe Borough Council,http://statistics.data.gov.uk/id/local-authority/37UD,General,GEN,General,GEN,Strategic Director / Enviromental Services,Stores Purchased - February,9370,Stores,Stores,13/03/2020,V742409,66.96,Allchem (Midlands) Company,975.36
Broxtowe Borough Council,http://statistics.data.gov.uk/id/local-authority/37UD,General,GEN,General,GEN,Strategic Director / Enviromental Services,Stores Purchased - February,9370,Stores,Stores,13/03/2020,V742363,39.24,Allchem (Midlands) Company,975.36
Broxtowe Borough Council,http://statistics.data.gov.uk/id/local-authority/37UD,Inventories,2INV,Inventories,2INV,Strategic Director / Enviromental Services,Stores Purchased - May,9361,Assets,Assets,03/07/2020,V753366,58.8,Allchem (Midlands) Company,687.77
Broxtowe Borough Council,http://statistics.data.gov.uk/id/local-authority/37UD,Inventories,2INV,Inventories,2INV,Strategic Director / Enviromental Services,Stores Purchased - June,9362,Assets,Assets,03/07/2020,V753361,58.8,Allchem (Midlands) Company,687.77
Broxtowe Borough Council,http://statistics.data.gov.uk/id/local-authority/37UD,Inventories,2INV,Inventories,2INV,Strategic Director / Enviromental Services,Stores Purchased - June,9362,Assets,Assets,03/07/2020,V753362,72,Allchem (Midlands) Company,687.77
Broxtowe Borough Council,http://statistics.data.gov.uk/id/local-authority/37UD,Inventories,2INV,Inventories,2INV,Strategic Director / Enviromental Services,Stores Purchased - June,9362,Assets,Assets,03/07/2020,V753364,7,Allchem (Midlands) Company,687.77
Broxtowe Borough Council,http://statistics.data.gov.uk/id/local-authority/37UD,Inventories,2INV,Inventories,2INV,Strategic Director / Enviromental Services,Stores Purchased - June,9362,Assets,Assets,03/07/2020,V753361,26.88,Allchem (Midlands) Company,687.77
Broxtowe Borough Council,http://statistics.data.gov.uk/id/local-authority/37UD,Inventories,2INV,Inventories,2INV,Strategic Director / Enviromental Services,Stores Purchased - June,9362,Assets,Assets,03/07/2020,V753364,25,Allchem (Midlands) Company,687.77
Broxtowe Borough Council,http://statistics.data.gov.uk/id/local-authority/37UD,Inventories,2INV,Inventories,2INV,Strategic Director / Enviromental Services,Stores Purchased - June,9362,Assets,Assets,03/07/2020,V753362,11.7,Allchem (Midlands) Company,687.77
Broxtowe Borough Council,http://statistics.data.gov.uk/id/local-authority/37UD,Inventories,2INV,Inventories,2INV,Strategic Director / Enviromental Services,Stores Purchased - June,9362,Assets,Assets,03/07/2020,V753364,78,Allchem (Midlands) Company,687.77
Broxtowe Borough Council,http://statistics.data.gov.uk/id/local-authority/37UD,Inventories,2INV,Inventories,2INV,Strategic Director / Enviromental Services,Stores Purchased - May,9361,Assets,Assets,03/07/2020,V753365,168,Allchem (Midlands) Company,687.77
Broxtowe Borough Council,http://statistics.data.gov.uk/id/local-authority/37UD,Inventories,2INV,Inventories,2INV,Strategic Director / Enviromental Services,Stores Purchased - May,9361,Assets,Assets,03/07/2020,V753366,66.96,Allchem (Midlands) Company,687.77
Broxtowe Borough Council,http://statistics.data.gov.uk/id/local-authority/37UD,Inventories,2INV,Inventories,2INV,Strategic Director / Enviromental Services,Stores Purchased - July,9363,Assets,Assets,14/08/2020,V756923,55.74,Allchem (Midlands) Company,557.86
Broxtowe Borough Council,http://statistics.data.gov.uk/id/local-authority/37UD,Inventories,2INV,Inventories,2INV,Strategic Director / Enviromental Services,Stores Purchased - July,9363,Assets,Assets,14/08/2020,V756935,7,Allchem (Midlands) Company,557.86
Broxtowe Borough Council,http://statistics.data.gov.uk/id/local-authority/37UD,Inventories,2INV,Inventories,2INV,Strategic Director / Enviromental Services,Stores Purchased - July,9363,Assets,Assets,14/08/2020,V756935,7,Allchem (Midlands) Company,557.86
Broxtowe Borough Council,http://statistics.data.gov.uk/id/local-authority/37UD,Inventories,2INV,Inventories,2INV,Strategic Director / Enviromental Services,Stores Purchased - July,9363,Assets,Assets,14/08/2020,V756923,28.8,Allchem (Midlands) Company,557.86
Broxtowe Borough Council,http://statistics.data.gov.uk/id/local-authority/37UD,Inventories,2INV,Inventories,2INV,Strategic Director / Enviromental Services,Stores Purchased - July,9363,Assets,Assets,14/08/2020,V756923,55.8,Allchem (Midlands) Company,557.86
Broxtowe Borough Council,http://statistics.data.gov.uk/id/local-authority/37UD,Inventories,2INV,Inventories,2INV,Strategic Director / Enviromental Services,Stores Purchased - July,9363,Assets,Assets,14/08/2020,V756923,26.16,Allchem (Midlands) Company,557.86
Broxtowe Borough Council,http://statistics.data.gov.uk/id/local-authority/37UD,Inventories,2INV,Inventories,2INV,Strategic Director / Enviromental Services,Stores Purchased - July,9363,Assets,Assets,14/08/2020,V756934,13.08,Allchem (Midlands) Company,557.86
Broxtowe Borough Council,http://statistics.data.gov.uk/id/local-authority/37UD,Inventories,2INV,Inventories,2INV,Strategic Director / Enviromental Services,Stores Purchased - July,9363,Assets,Assets,14/08/2020,V756923,67.86,Allchem (Midlands) Company,557.86
Broxtowe Borough Council,http://statistics.data.gov.uk/id/local-authority/37UD,Inventories,2INV,Inventories,2INV,Strategic Director / Enviromental Services,Stores Purchased - August,9364,Assets,Assets,14/08/2020,V756936,14,Allchem (Midlands) Company,557.86
Broxtowe Borough Council,http://statistics.data.gov.uk/id/local-authority/37UD,Inventories,2INV,Inventories,2INV,Strategic Director / Enviromental Services,Stores Purchased - August,9364,Assets,Assets,14/08/2020,V756936,14,Allchem (Midlands) Company,557.86
Broxtowe Borough Council,http://statistics.data.gov.uk/id/local-authority/37UD,Inventories,2INV,Inventories,2INV,Strategic Director / Enviromental Services,Stores Purchased - August,9364,Assets,Assets,14/08/2020,V756936,58.8,Allchem (Midlands) Company,557.86
Broxtowe Borough Council,http://statistics.data.gov.uk/id/local-authority/37UD,Inventories,2INV,Inventories,2INV,Strategic Director / Enviromental Services,Stores Purchased - August,9364,Assets,Assets,14/08/2020,V756936,21.6,Allchem (Midlands) Company,557.86
Broxtowe Borough Council,http://statistics.data.gov.uk/id/local-authority/37UD,Inventories,2INV,Inventories,2INV,Strategic Director / Enviromental Services,Stores Purchased - August,9364,Assets,Assets,14/08/2020,V756936,55.8,Allchem (Midlands) Company,557.86
Broxtowe Borough Council,http://statistics.data.gov.uk/id/local-authority/37UD,Inventories,2INV,Inventories,2INV,Strategic Director / Enviromental Services,Stores Purchased - August,9364,Assets,Assets,14/08/2020,V756936,39.24,Allchem (Midlands) Company,557.86
Broxtowe Borough Council,http://statistics.data.gov.uk/id/local-authority/37UD,Inventories,2INV,Inventories,2INV,Strategic Director / Enviromental Services,Stores Purchased - September,9365,Assets,Assets,09/10/2020,V761766,74.32,Allchem (Midlands) Company,438.29
Broxtowe Borough Council,http://statistics.data.gov.uk/id/local-authority/37UD,Inventories,2INV,Inventories,2INV,Strategic Director / Enviromental Services,Stores Purchased - September,9365,Assets,Assets,09/10/2020,V761765,14,Allchem (Midlands) Company,438.29
Broxtowe Borough Council,http://statistics.data.gov.uk/id/local-authority/37UD,Inventories,2INV,Inventories,2INV,Strategic Director / Enviromental Services,Stores Purchased - September,9365,Assets,Assets,09/10/2020,V761765,14,Allchem (Midlands) Company,438.29
Broxtowe Borough Council,http://statistics.data.gov.uk/id/local-authority/37UD,Inventories,2INV,Inventories,2INV,Strategic Director / Enviromental Services,Stores Purchased - September,9365,Assets,Assets,09/10/2020,V761766,39.2,Allchem (Midlands) Company,438.29
Broxtowe Borough Council,http://statistics.data.gov.uk/id/local-authority/37UD,Inventories,2INV,Inventories,2INV,Strategic Director / Enviromental Services,Stores Purchased - September,9365,Assets,Assets,09/10/2020,V761765,26.88,Allchem (Midlands) Company,438.29
Broxtowe Borough Council,http://statistics.data.gov.uk/id/local-authority/37UD,Inventories,2INV,Inventories,2INV,Strategic Director / Enviromental Services,Stores Purchased - September,9365,Assets,Assets,09/10/2020,V761766,13.44,Allchem (Midlands) Company,438.29
Broxtowe Borough Council,http://statistics.data.gov.uk/id/local-authority/37UD,Inventories,2INV,Inventories,2INV,Strategic Director / Enviromental Services,Stores Purchased - September,9365,Assets,Assets,09/10/2020,V761765,72,Allchem (Midlands) Company,438.29
Broxtowe Borough Council,http://statistics.data.gov.uk/id/local-authority/37UD,Inventories,2INV,Inventories,2INV,Strategic Director / Enviromental Services,Stores Purchased - September,9365,Assets,Assets,09/10/2020,V761766,86.4,Allchem (Midlands) Company,438.29
Broxtowe Borough Council,http://statistics.data.gov.uk/id/local-authority/37UD,Inventories,2INV,Inventories,2INV,Strategic Director / Enviromental Services,Stores Purchased - September,9365,Assets,Assets,09/10/2020,V761766,25,Allchem (Midlands) Company,438.29
Broxtowe Borough Council,http://statistics.data.gov.uk/id/local-authority/37UD,Inventories,2INV,Inventories,2INV,Strategic Director / Enviromental Services,Stores Purchased - September,9365,Assets,Assets,27/11/2020,V766191,72,Allchem (Midlands) Company,1043.71
Broxtowe Borough Council,http://statistics.data.gov.uk/id/local-authority/37UD,Inventories,2INV,Inventories,2INV,Strategic Director / Enviromental Services,Stores Purchased - September,9365,Assets,Assets,27/11/2020,V766194,72,Allchem (Midlands) Company,1043.71
Broxtowe Borough Council,http://statistics.data.gov.uk/id/local-authority/37UD,Inventories,2INV,Inventories,2INV,Strategic Director / Enviromental Services,Stores Purchased - September,9365,Assets,Assets,27/11/2020,V766194,39,Allchem (Midlands) Company,1043.71
Broxtowe Borough Council,http://statistics.data.gov.uk/id/local-authority/37UD,Inventories,2INV,Inventories,2INV,Strategic Director / Enviromental Services,Stores Purchased - October,9366,Assets,Assets,27/11/2020,V766193,50,Allchem (Midlands) Company,1043.71
Broxtowe Borough Council,http://statistics.data.gov.uk/id/local-authority/37UD,Inventories,2INV,Inventories,2INV,Strategic Director / Enviromental Services,Stores Purchased - October,9366,Assets,Assets,27/11/2020,V766193,66.96,Allchem (Midlands) Company,1043.71
Broxtowe Borough Council,http://statistics.data.gov.uk/id/local-authority/37UD,Inventories,2INV,Inventories,2INV,Strategic Director / Enviromental Services,Stores Purchased - October,9366,Assets,Assets,27/11/2020,V766193,39.24,Allchem (Midlands) Company,1043.71
Broxtowe Borough Council,http://statistics.data.gov.uk/id/local-authority/37UD,Inventories,2INV,Inventories,2INV,Strategic Director / Enviromental Services,Stores Purchased - November,9367,Assets,Assets,27/11/2020,V766188,78.4,Allchem (Midlands) Company,1043.71
Broxtowe Borough Council,http://statistics.data.gov.uk/id/local-authority/37UD,Inventories,2INV,Inventories,2INV,Strategic Director / Enviromental Services,Stores Purchased - November,9367,Assets,Assets,27/11/2020,V766189,249.6,Allchem (Midlands) Company,1043.71
Broxtowe Borough Council,http://statistics.data.gov.uk/id/local-authority/37UD,Inventories,2INV,Inventories,2INV,Strategic Director / Enviromental Services,Stores Purchased - November,9367,Assets,Assets,27/11/2020,V766188,49.2,Allchem (Midlands) Company,1043.71
Broxtowe Borough Council,http://statistics.data.gov.uk/id/local-authority/37UD,Inventories,2INV,Inventories,2INV,Strategic Director / Enviromental Services,Stores Purchased - November,9367,Assets,Assets,27/11/2020,V766190,86.4,Allchem (Midlands) Company,1043.71
Broxtowe Borough Council,http://statistics.data.gov.uk/id/local-authority/37UD,Inventories,2INV,Inventories,2INV,Strategic Director / Enviromental Services,Stores Purchased - November,9367,Assets,Assets,27/11/2020,V766190,66.96,Allchem (Midlands) Company,1043.71
Broxtowe Borough Council,http://statistics.data.gov.uk/id/local-authority/37UD,Inventories,2INV,Inventories,2INV,Strategic Director / Enviromental Services,Stores Purchased - December,9368,Assets,Assets,19/02/2021,V778538,72,Allchem (Midlands) Company,820.56
Broxtowe Borough Council,http://statistics.data.gov.uk/id/local-authority/37UD,Inventories,2INV,Inventories,2INV,Strategic Director / Enviromental Services,Stores Purchased - December,9368,Assets,Assets,19/02/2021,V778539,14,Allchem (Midlands) Company,820.56
Broxtowe Borough Council,http://statistics.data.gov.uk/id/local-authority/37UD,Inventories,2INV,Inventories,2INV,Strategic Director / Enviromental Services,Stores Purchased - December,9368,Assets,Assets,19/02/2021,V778538,14,Allchem (Midlands) Company,820.56
Broxtowe Borough Council,http://statistics.data.gov.uk/id/local-authority/37UD,Inventories,2INV,Inventories,2INV,Strategic Director / Enviromental Services,Stores Purchased - December,9368,Assets,Assets,19/02/2021,V778539,14,Allchem (Midlands) Company,820.56
Broxtowe Borough Council,http://statistics.data.gov.uk/id/local-authority/37UD,Inventories,2INV,Inventories,2INV,Strategic Director / Enviromental Services,Stores Purchased - December,9368,Assets,Assets,19/02/2021,V778540,21,Allchem (Midlands) Company,820.56
Broxtowe Borough Council,http://statistics.data.gov.uk/id/local-authority/37UD,Inventories,2INV,Inventories,2INV,Strategic Director / Enviromental Services,Stores Purchased - December,9368,Assets,Assets,19/02/2021,V778540,78.4,Allchem (Midlands) Company,820.56
Broxtowe Borough Council,http://statistics.data.gov.uk/id/local-authority/37UD,Inventories,2INV,Inventories,2INV,Strategic Director / Enviromental Services,Stores Purchased - December,9368,Assets,Assets,19/02/2021,V778541,78.4,Allchem (Midlands) Company,820.56
Broxtowe Borough Council,http://statistics.data.gov.uk/id/local-authority/37UD,Inventories,2INV,Inventories,2INV,Strategic Director / Enviromental Services,Stores Purchased - December,9368,Assets,Assets,19/02/2021,V778539,7,Allchem (Midlands) Company,820.56
Broxtowe Borough Council,http://statistics.data.gov.uk/id/local-authority/37UD,Inventories,2INV,Inventories,2INV,Strategic Director / Enviromental Services,Stores Purchased - December,9368,Assets,Assets,19/02/2021,V778539,66.96,Allchem (Midlands) Company,820.56
Broxtowe Borough Council,http://statistics.data.gov.uk/id/local-authority/37UD,Inventories,2INV,Inventories,2INV,Strategic Director / Enviromental Services,Stores Purchased - December,9368,Assets,Assets,19/02/2021,V778538,39.24,Allchem (Midlands) Company,820.56
Broxtowe Borough Council,http://statistics.data.gov.uk/id/local-authority/37UD,Inventories,2INV,Inventories,2INV,Strategic Director / Enviromental Services,Stores Purchased - January,9369,Assets,Assets,19/02/2021,V778542,78.4,Allchem (Midlands) Company,820.56
Broxtowe Borough Council,http://statistics.data.gov.uk/id/local-authority/37UD,Inventories,2INV,Inventories,2INV,Strategic Director / Enviromental Services,Stores Purchased - January,9369,Assets,Assets,19/02/2021,V778542,114,Allchem (Midlands) Company,820.56
Broxtowe Borough Council,http://statistics.data.gov.uk/id/local-authority/37UD,Inventories,2INV,Inventories,2INV,Strategic Director / Enviromental Services,Stores Purchased - January,9369,Assets,Assets,19/02/2021,V778542,86.4,Allchem (Midlands) Company,820.56
Broxtowe Borough Council,http://statistics.data.gov.uk/id/local-authority/37UD,Inventories,2INV,Inventories,2INV,Strategic Director / Enviromental Services,Stores Purchased - December,9368,Assets,Assets,12/03/2021,V781671,16.44,Allchem (Midlands) Company,347.62
Broxtowe Borough Council,http://statistics.data.gov.uk/id/local-authority/37UD,Inventories,2INV,Inventories,2INV,Strategic Director / Enviromental Services,Stores Purchased - January,9369,Assets,Assets,12/03/2021,V781673,16.44,Allchem (Midlands) Company,347.62
Broxtowe Borough Council,http://statistics.data.gov.uk/id/local-authority/37UD,Inventories,2INV,Inventories,2INV,Strategic Director / Enviromental Services,Stores Purchased - February,9370,Assets,Assets,12/03/2021,V781674,78,Allchem (Midlands) Company,347.62
Broxtowe Borough Council,http://statistics.data.gov.uk/id/local-authority/37UD,Inventories,2INV,Inventories,2INV,Strategic Director / Enviromental Services,Stores Purchased - February,9370,Assets,Assets,12/03/2021,V781674,78.4,Allchem (Midlands) Company,347.62
Broxtowe Borough Council,http://statistics.data.gov.uk/id/local-authority/37UD,Inventories,2INV,Inventories,2INV,Strategic Director / Enviromental Services,Stores Purchased - February,9370,Assets,Assets,12/03/2021,V781674,14,Allchem (Midlands) Company,347.62
Broxtowe Borough Council,http://statistics.data.gov.uk/id/local-authority/37UD,Inventories,2INV,Inventories,2INV,Strategic Director / Enviromental Services,Stores Purchased - February,9370,Assets,Assets,12/03/2021,V781674,86.4,Allchem (Midlands) Company,347.62
Broxtowe Borough Council,http://statistics.data.gov.uk/id/local-authority/37UD,Works,WORKS,Waste Management,WASTMAN,Tech and Works / Works Adminstration Kimberley,Repairs / Servicing  - Materials,5520,Transport Account,TRANACC,21/06/2019,V716568,554.8,Alliance Electronics,665.76
Broxtowe Borough Council,http://statistics.data.gov.uk/id/local-authority/37UD,Housing Revenue Account,HRA,Housing Revenue Account,HRA,Deputy Chief Executive / Capital Works,New construction,9002,Capital Expenditure,CapExp,03/01/2020,V735926,483.33,AllMovesUK Ltd,580
Broxtowe Borough Council,http://statistics.data.gov.uk/id/local-authority/37UD,Works,WORKS,Waste Management,WASTMAN,Strategic Director / Enviromental Business and Project,Repairs / Servicing  - Materials,5520,Transport Account,TranAcc,19/07/2019,V719290,335,Allscreens Nationwide Ltd,546
Broxtowe Borough Council,http://statistics.data.gov.uk/id/local-authority/37UD,Technical,TECHNICA,Highways,HIGHWYS,Strategic Director / Enviromental Business and Project,Repairs / Servicing  - Materials,5520,Transport Account,TranAcc,19/07/2019,V718519,120,Allscreens Nationwide Ltd,546
Broxtowe Borough Council,http://statistics.data.gov.uk/id/local-authority/37UD,Works,WORKS,Waste Management,WASTMAN,Strategic Director / Enviromental Services,Repairs / Servicing  - Materials,5520,Transport Account,TRANACC,18/10/2019,V728222,335,Allscreens Nationwide Ltd,402
Broxtowe Borough Council,http://statistics.data.gov.uk/id/local-authority/37UD,Works,WORKS,Waste Management,WASTMAN,Strategic Director / Enviromental Services,Repairs / Servicing  - Materials,5520,Transport Account,TranAcc,29/11/2019,V731665,220,Allscreens Nationwide Ltd,264
Broxtowe Borough Council,http://statistics.data.gov.uk/id/local-authority/37UD,Works,WORKS,Waste Management,WASTMAN,Strategic Director / Enviromental Services,Repairs / Servicing  - Materials,5520,Transport Account,TRANACC,13/03/2020,V742132,448,Allscreens Nationwide Ltd,537.6
Broxtowe Borough Council,http://statistics.data.gov.uk/id/local-authority/37UD,Works,WORKS,Waste Management,WASTMAN,Strategic Director / Enviromental Services,Repairs / Servicing  - Materials,5520,Transport Account,TranAcc,13/11/2020,V764486,284,Allscreens Nationwide Ltd,340.8
Broxtowe Borough Council,http://statistics.data.gov.uk/id/local-authority/37UD,Finance,FINANCE,Regulatory Services,REG,Deputy Chief Executive / Finance Services,Grants,3700,Other Supplies & Services,OtherSS,15/02/2021,V778340,238.21,Allure Nails and Beauty,7859.07
Broxtowe Borough Council,http://statistics.data.gov.uk/id/local-authority/37UD,Finance,FINANCE,Regulatory Services,REG,Deputy Chief Executive / Finance Services,Grants,3700,Other Supplies & Services,OtherSS,15/02/2021,V778376,2001,Allure Nails and Beauty,7859.07
Broxtowe Borough Council,http://statistics.data.gov.uk/id/local-authority/37UD,Finance,FINANCE,Regulatory Services,REG,Deputy Chief Executive / Finance Services,Covid Closed lockdown payment,3704,Other Supplies & Services,OtherSS,15/02/2021,V778412,4000,Allure Nails and Beauty,7859.07
Broxtowe Borough Council,http://statistics.data.gov.uk/id/local-authority/37UD,Finance,FINANCE,Regulatory Services,REG,Deputy Chief Executive / Finance Services,Grants,3700,Other Supplies & Services,OtherSS,15/02/2021,V778235,285.86,Allure Nails and Beauty,7859.07
Broxtowe Borough Council,http://statistics.data.gov.uk/id/local-authority/37UD,Finance,FINANCE,Regulatory Services,REG,Deputy Chief Executive / Finance Services,Grants,3700,Other Supplies & Services,OtherSS,15/02/2021,V778242,1334,Allure Nails and Beauty,7859.07
Broxtowe Borough Council,http://statistics.data.gov.uk/id/local-authority/37UD,Finance,FINANCE,Regulatory Services,REG,Deputy Chief Executive / Finance Services,Grants,3700,Other Supplies & Services,OtherSS,03/03/2021,V781098,2096,Allure Nails and Beauty,2096
Broxtowe Borough Council,http://statistics.data.gov.uk/id/local-authority/37UD,Works,WORKS,Other Works,WKSOTHER,Strategic Director / Enviromental Business and Project,Protective Clothing,3222,Other Supplies & Services,OtherSS,19/07/2019,V718675,324,ALMA Engineering Company,388.8
Broxtowe Borough Council,http://statistics.data.gov.uk/id/local-authority/37UD,Technical,TECHNICA,Parks & Recreation Grounds,RECGRD,Deputy Chief Executive / Property Services,Repairs & Maintenance,1000,Central Pot,Central,06/09/2019,V723318,1280,Alpha Drain Services Ltd,4705.2
Broxtowe Borough Council,http://statistics.data.gov.uk/id/local-authority/37UD,Technical,TECHNICA,Parks & Recreation Grounds,RECGRD,Deputy Chief Executive / Property Services,Repairs & Maintenance,1000,Central Pot,Central,06/09/2019,V723316,2641,Alpha Drain Services Ltd,4705.2
Broxtowe Borough Council,http://statistics.data.gov.uk/id/local-authority/37UD,Community Development,COMDEV,Other Community Development,COMOTHER,Strategic Director / Enviromental Services,Drainage/Dykes & Ditches,1243,Other Prem,OthPrem,15/11/2019,V730966,450,Alpha Drain Services Ltd,540
Broxtowe Borough Council,http://statistics.data.gov.uk/id/local-authority/37UD,Technical,TECHNICA,Parks & Recreation Grounds,RECGRD,Strategic Director / Enviromental Business and Project,Repairs & Maintenance,1000,Central Pot,Central,31/07/2020,V755208,360,Alpha Drain Services Ltd,864
Broxtowe Borough Council,http://statistics.data.gov.uk/id/local-authority/37UD,Technical,TECHNICA,Parks & Recreation Grounds,RECGRD,Strategic Director / Enviromental Business and Project,Repairs & Maintenance,1000,Central Pot,Central,31/07/2020,V755208,360,Alpha Drain Services Ltd,864
Broxtowe Borough Council,http://statistics.data.gov.uk/id/local-authority/37UD,Chief Executive,CE,Human Resources,HR,Chief Executive  / Human Res,Course & Examination Fees,720,Indirect Employee Exp Oncosts,Oncosts,19/02/2021,V778561,780,Alpha Parking Ltd,936
Broxtowe Borough Council,http://statistics.data.gov.uk/id/local-authority/37UD,Works,WORKS,Other Works,WKSOTHER,Tech and Works / Works Adminstration Kimberley,Equipment Tools and Materials,3006,Equipment,Equip,24/05/2019,V713384,659.56,Alpha Power Cleaners Ltd,791.47
Broxtowe Borough Council,http://statistics.data.gov.uk/id/local-authority/37UD,Works,WORKS,Other Works,WKSOTHER,Strategic Director / Enviromental Services,Equipment Tools and Materials,3006,Equipment,Equip,07/02/2020,V739229,544.85,Alpha Power Cleaners Ltd,653.81
Broxtowe Borough Council,http://statistics.data.gov.uk/id/local-authority/37UD,Technical Works,TW,Technical Works,TW,Strategic Director / Enviromental Services,Vehicles & Plant,9003,Capital Expenditure,CapExp,10/07/2020,V753820,"5,490.10",Alpha Power Cleaners Ltd,6588.12
Broxtowe Borough Council,http://statistics.data.gov.uk/id/local-authority/37UD,Chief Executive,CE,ICT & Customer Services,ICT,Strategic Director / IT Services,Software Maintenance,3436,Other Supplies & Services,OtherSS,03/07/2020,V752294,"1,500.00",Alphametrics Financial Systems Ltd,1800
Broxtowe Borough Council,http://statistics.data.gov.uk/id/local-authority/37UD,Finance,FINANCE,Finance Services,FINANCE,Deputy Chief Executive / Finance Services,Grants,3700,Other Supplies & Services,OtherSS,24/11/2020,V765912,"1,334.00",Alterations online,2834
Broxtowe Borough Council,http://statistics.data.gov.uk/id/local-authority/37UD,Finance,FINANCE,Finance Services,FINANCE,Deputy Chief Executive / Finance Services,Grants,3700,Other Supplies & Services,OtherSS,24/11/2020,V766003,"1,500.00",Alterations online,2834
Broxtowe Borough Council,http://statistics.data.gov.uk/id/local-authority/37UD,Finance,FINANCE,Finance Services,FINANCE,Deputy Chief Executive / Finance Services,Grants,3700,Other Supplies & Services,OtherSS,14/12/2020,V769079,750,Alterations online,750
Broxtowe Borough Council,http://statistics.data.gov.uk/id/local-authority/37UD,Finance,FINANCE,Regulatory Services,REG,Deputy Chief Executive / Finance Services,Grants,3700,Other Supplies & Services,OtherSS,22/01/2021,V773337,238.21,Alterations online,7539.21
Broxtowe Borough Council,http://statistics.data.gov.uk/id/local-authority/37UD,Finance,FINANCE,Regulatory Services,REG,Deputy Chief Executive / Finance Services,Grants,3700,Other Supplies & Services,OtherSS,22/01/2021,V773860,"2,001.00",Alterations online,7539.21
Broxtowe Borough Council,http://statistics.data.gov.uk/id/local-authority/37UD,Finance,FINANCE,Regulatory Services,REG,Deputy Chief Executive / Finance Services,Covid Closed lockdown payment,3704,Other Supplies & Services,OtherSS,22/01/2021,V774382,"4,000.00",Alterations online,7539.21
Broxtowe Borough Council,http://statistics.data.gov.uk/id/local-authority/37UD,Finance,FINANCE,Regulatory Services,REG,Deputy Chief Executive / Finance Services,Grants,3700,Other Supplies & Services,OtherSS,22/01/2021,V774913,"1,300.00",Alterations online,7539.21
Broxtowe Borough Council,http://statistics.data.gov.uk/id/local-authority/37UD,Finance,FINANCE,Regulatory Services,REG,Deputy Chief Executive / Finance Services,Grants,3700,Other Supplies & Services,OtherSS,03/03/2021,V780722,2096,Alterations online,2096
Broxtowe Borough Council,http://statistics.data.gov.uk/id/local-authority/37UD,Chief Executive,CE,Human Resources,HR,Chief Executive  / Legal Services,Course & Examination Fees,720,Indirect Employee Exp Oncosts,Oncosts,07/08/2020,V756368,"1,085.00",Altior,1302
Broxtowe Borough Council,http://statistics.data.gov.uk/id/local-authority/37UD,Works,WORKS,Other Works,WKSOTHER,Strategic Director / Enviromental Business and Project,Grounds Maintenance - External,1205,Other Prem,OthPrem,05/07/2019,V718320,375.5,Amberol Limited,450.6
Broxtowe Borough Council,http://statistics.data.gov.uk/id/local-authority/37UD,Finance,FINANCE,Regulatory Services,REG,Deputy Chief Executive / Finance Services,Grants,3700,Other Supplies & Services,OtherSS,22/01/2021,V773679,238.21,Ambucopter Trading Company Ltd,7539.21
